Workbook

Sheet Intro
F2: Exploratory Software for Confidence Intervals
F3: ESCI Chapters 14-15 | L3: www.thenewstatistics.com
G5: Geoff Cumming | N5: Copyright © Geoff Cumming 2011
H6: School of Psychological Science | N6: ESCI is free software: you can redistribute it and/or modify it under the terms of the GNU General Public License
H7: La Trobe University, Melbourne | N7: as published by the Free Software Foundation, either version 3 of the License, or (at your option) any later version.
H8: Australia 3086 | N8: This program is distributed in the hope that it will be useful, but WITHOUT ANY WARRANTY; without even the implied warranty of
H9: esci@latrobe.edu.au | N9: MERCHANTABILITY or FITNESS FOR A PARTICULAR PURPOSE. Scroll down to see the GNU General Public License for more details.
B12: ► ESCI Chapters 14-15 accompanies the book Understanding The New Statistics: Effect Sizes, Confidence Intervals, and Meta-analysis (Routledge, 2012)
B13: ► For help, see the book's Appendix A.
B14: ► Use the tabs below to go to your page of choice.
B15: ► At any page, explore--with guidance from the relevant chapters of the book.
B19: Click the tabs at the bottom of the screen to go to these pages:
C21: See r See Chapter 14. Select any target value of Pearson r, and see scatter plots that have this degree of correlation.
C23: r to z See Chapter 14. See a single r with CI. Investigate Fisher's r to z transformation, and its use to place a CI on r. See a cat's eye interval on r.
C25: Sample r See Chapter 14. Take a sequence of samples, see the dance of the correlations. See r values, with their CIs, and the sampling distribution of r values.
C27: Two correlations See Chapter 14. See a figure showing any two independent r values, with their CIs, and the overlap of these CIs. See the CI on the difference.
C29: Figure See Chapter 15. Enter data for up to four data series and see a figure showing the means (or other ESs) and CIs. See a second figure showing differences, with CIs.
B45: Please scroll down to see the GNU General Public License below
B61: GNU GENERAL PUBLIC LICENSE
B62: Version 3, 29 June 2007
B64: Copyright (C) 2007 Free Software Foundation, Inc. <http://fsf.org/>
B65: Everyone is permitted to copy and distribute verbatim copies
B66: of this license document, but changing it is not allowed.
B68: Preamble
B70: The GNU General Public License is a free, copyleft license for
B71: software and other kinds of works.
B73: The licenses for most software and other practical works are designed
B74: to take away your freedom to share and change the works. By contrast,
B75: the GNU General Public License is intended to guarantee your freedom to
B76: share and change all versions of a program--to make sure it remains free
B77: software for all its users. We, the Free Software Foundation, use the
B78: GNU General Public License for most of our software; it applies also to
B79: any other work released this way by its authors. You can apply it to
B80: your programs, too.
B82: When we speak of free software, we are referring to freedom, not
B83: price. Our General Public Licenses are designed to make sure that you
B84: have the freedom to distribute copies of free software (and charge for
B85: them if you wish), that you receive source code or can get it if you
B86: want it, that you can change the software or use pieces of it in new
B87: free programs, and that you know you can do these things.
B89: To protect your rights, we need to prevent others from denying you
B90: these rights or asking you to surrender the rights. Therefore, you have
B91: certain responsibilities if you distribute copies of the software, or if
B92: you modify it: responsibilities to respect the freedom of others.
B94: For example, if you distribute copies of such a program, whether
B95: gratis or for a fee, you must pass on to the recipients the same
B96: freedoms that you received. You must make sure that they, too, receive
B97: or can get the source code. And you must show them these terms so they
B98: know their rights.
B100: Developers that use the GNU GPL protect your rights with two steps:
B101: (1) assert copyright on the software, and (2) offer you this License
B102: giving you legal permission to copy, distribute and/or modify it.
B104: For the developers' and authors' protection, the GPL clearly explains
B105: that there is no warranty for this free software. For both users' and
B106: authors' sake, the GPL requires that modified versions be marked as
B107: changed, so that their problems will not be attributed erroneously to
B108: authors of previous versions.
B110: Some devices are designed to deny users access to install or run
B111: modified versions of the software inside them, although the manufacturer
B112: can do so. This is fundamentally incompatible with the aim of
B113: protecting users' freedom to change the software. The systematic
B114: pattern of such abuse occurs in the area of products for individuals to
B115: use, which is precisely where it is most unacceptable. Therefore, we
B116: have designed this version of the GPL to prohibit the practice for those
B117: products. If such problems arise substantially in other domains, we
B118: stand ready to extend this provision to those domains in future versions
B119: of the GPL, as needed to protect the freedom of users.
B121: Finally, every program is threatened constantly by software patents.
B122: States should not allow patents to restrict development and use of
B123: software on general-purpose computers, but in those that do, we wish to
B124: avoid the special danger that patents applied to a free program could
B125: make it effectively proprietary. To prevent this, the GPL assures that
B126: patents cannot be used to render the program non-free.
B128: The precise terms and conditions for copying, distribution and
B129: modification follow.
B131: TERMS AND CONDITIONS
B133: 0. Definitions.
B135: "This License" refers to version 3 of the GNU General Public License.
B137: "Copyright" also means copyright-like laws that apply to other kinds of
B138: works, such as semiconductor masks.
B140: "The Program" refers to any copyrightable work licensed under this
B141: License. Each licensee is addressed as "you". "Licensees" and
B142: "recipients" may be individuals or organizations.
B144: To "modify" a work means to copy from or adapt all or part of the work
B145: in a fashion requiring copyright permission, other than the making of an
B146: exact copy. The resulting work is called a "modified version" of the
B147: earlier work or a work "based on" the earlier work.
B149: A "covered work" means either the unmodified Program or a work based
B150: on the Program.
B152: To "propagate" a work means to do anything with it that, without
B153: permission, would make you directly or secondarily liable for
B154: infringement under applicable copyright law, except executing it on a
B155: computer or modifying a private copy. Propagation includes copying,
B156: distribution (with or without modification), making available to the
B157: public, and in some countries other activities as well.
B159: To "convey" a work means any kind of propagation that enables other
B160: parties to make or receive copies. Mere interaction with a user through
B161: a computer network, with no transfer of a copy, is not conveying.
B163: An interactive user interface displays "Appropriate Legal Notices"
B164: to the extent that it includes a convenient and prominently visible
B165: feature that (1) displays an appropriate copyright notice, and (2)
B166: tells the user that there is no warranty for the work (except to the
B167: extent that warranties are provided), that licensees may convey the
B168: work under this License, and how to view a copy of this License. If
B169: the interface presents a list of user commands or options, such as a
B170: menu, a prominent item in the list meets this criterion.
B172: 1. Source Code.
B174: The "source code" for a work means the preferred form of the work
B175: for making modifications to it. "Object code" means any non-source
B176: form of a work.
B178: A "Standard Interface" means an interface that either is an official
B179: standard defined by a recognized standards body, or, in the case of
B180: interfaces specified for a particular programming language, one that
B181: is widely used among developers working in that language.
B183: The "System Libraries" of an executable work include anything, other
B184: than the work as a whole, that (a) is included in the normal form of
B185: packaging a Major Component, but which is not part of that Major
B186: Component, and (b) serves only to enable use of the work with that
B187: Major Component, or to implement a Standard Interface for which an
B188: implementation is available to the public in source code form. A
B189: "Major Component", in this context, means a major essential component
B190: (kernel, window system, and so on) of the specific operating system
B191: (if any) on which the executable work runs, or a compiler used to
B192: produce the work, or an object code interpreter used to run it.
B194: The "Corresponding Source" for a work in object code form means all
B195: the source code needed to generate, install, and (for an executable
B196: work) run the object code and to modify the work, including scripts to
B197: control those activities. However, it does not include the work's
B198: System Libraries, or general-purpose tools or generally available free
B199: programs which are used unmodified in performing those activities but
B200: which are not part of the work. For example, Corresponding Source
B201: includes interface definition files associated with source files for
B202: the work, and the source code for shared libraries and dynamically
B203: linked subprograms that the work is specifically designed to require,
B204: such as by intimate data communication or control flow between those
B205: subprograms and other parts of the work.
B207: The Corresponding Source need not include anything that users
B208: can regenerate automatically from other parts of the Corresponding
B209: Source.
B211: The Corresponding Source for a work in source code form is that
B212: same work.
B214: 2. Basic Permissions.
B216: All rights granted under this License are granted for the term of
B217: copyright on the Program, and are irrevocable provided the stated
B218: conditions are met. This License explicitly affirms your unlimited
B219: permission to run the unmodified Program. The output from running a
B220: covered work is covered by this License only if the output, given its
B221: content, constitutes a covered work. This License acknowledges your
B222: rights of fair use or other equivalent, as provided by copyright law.
B224: You may make, run and propagate covered works that you do not
B225: convey, without conditions so long as your license otherwise remains
B226: in force. You may convey covered works to others for the sole purpose
B227: of having them make modifications exclusively for you, or provide you
B228: with facilities for running those works, provided that you comply with
B229: the terms of this License in conveying all material for which you do
B230: not control copyright. Those thus making or running the covered works
B231: for you must do so exclusively on your behalf, under your direction
B232: and control, on terms that prohibit them from making any copies of
B233: your copyrighted material outside their relationship with you.
B235: Conveying under any other circumstances is permitted solely under
B236: the conditions stated below. Sublicensing is not allowed; section 10
B237: makes it unnecessary.
B239: 3. Protecting Users' Legal Rights From Anti-Circumvention Law.
B241: No covered work shall be deemed part of an effective technological
B242: measure under any applicable law fulfilling obligations under article
B243: 11 of the WIPO copyright treaty adopted on 20 December 1996, or
B244: similar laws prohibiting or restricting circumvention of such
B245: measures.
B247: When you convey a covered work, you waive any legal power to forbid
B248: circumvention of technological measures to the extent such circumvention
B249: is effected by exercising rights under this License with respect to
B250: the covered work, and you disclaim any intention to limit operation or
B251: modification of the work as a means of enforcing, against the work's
B252: users, your or third parties' legal rights to forbid circumvention of
B253: technological measures.
B255: 4. Conveying Verbatim Copies.
B257: You may convey verbatim copies of the Program's source code as you
B258: receive it, in any medium, provided that you conspicuously and
B259: appropriately publish on each copy an appropriate copyright notice;
B260: keep intact all notices stating that this License and any
B261: non-permissive terms added in accord with section 7 apply to the code;
B262: keep intact all notices of the absence of any warranty; and give all
B263: recipients a copy of this License along with the Program.
B265: You may charge any price or no price for each copy that you convey,
B266: and you may offer support or warranty protection for a fee.
B268: 5. Conveying Modified Source Versions.
B270: You may convey a work based on the Program, or the modifications to
B271: produce it from the Program, in the form of source code under the
B272: terms of section 4, provided that you also meet all of these conditions:
B274: a) The work must carry prominent notices stating that you modified
B275: it, and giving a relevant date.
B277: b) The work must carry prominent notices stating that it is
B278: released under this License and any conditions added under section
B279: 7. This requirement modifies the requirement in section 4 to
B280: "keep intact all notices".
B282: c) You must license the entire work, as a whole, under this
B283: License to anyone who comes into possession of a copy. This
B284: License will therefore apply, along with any applicable section 7
B285: additional terms, to the whole of the work, and all its parts,
B286: regardless of how they are packaged. This License gives no
... 371 more rows

Sheet See r
F1: See r | I1: 5 | K1: =$J$1 -> 0 | L1: 0 | M1: 0 | N1: 0 | O1: 0 | P1: 0 | Q1: 0 | R1: 0 | S1: 0 | AK1: slider | AL1: for zoom | AM1: =AM2/2 -> 3 | AN1: y against | AO1: slope | AP1: =BD3 -> 0.243527747 | AQ1: =IF(AU3,-11,NA()) ->  | AR1: =$AP$2+$AP$1*AQ1 ->  | AS1: x against | AT1: slope | AU1: =BD5 -> 0.369567717 | AV1: =IF(AU4,-11,NA()) ->  | AW1: =$AU$2+$AU$1*AV1 ->  | BC1: covariance | BD1: =SUM(BE9:BE308)/(COUNT(BE9:BE308)-1) -> 0.204720258
F2: See scatter plots for any | J2: =$J$1 -> 0 | S2: =$J$1 -> 0 | AK2: 130 | AL2: zoom ctr | AM2: 6 | AN2: x | AO2: intercept | AP2: =BD4 -> -0.1361098553 | AQ2: =IF(AU3,11,NA()) ->  | AR2: =$AP$2+$AP$1*AQ2 ->  | AS2: y | AT2: intercept | AU2: =BD6 -> -0.1076044755 | AV2: =IF(AU4,11,NA()) ->  | AW2: =$AU$2+$AU$1*AV2 ->  | BC2: r | BD2: =BD1/(AN7*AO7) -> 0.2999999891
A3: For seed | B3: =RAND() -> 0.7545896983 | F3: chosen target value of Pearson's r | J3: 0 | S3: 0 | AK3: N | AN3: correl | AO3: =BD2 -> 0.2999999891 | AQ3: display zero axes? | AR3: TRUE | AT3: Disp y against x? | AU3: FALSE | BC3: slope y ag x | BD3: =BD1/(AN7^2) -> 0.243527747
A4: Seed | B4: 0.7761950672 | J4: 0 | S4: 0 | AK4: 30 | AN4: tweak | AO4: 1.399824504 | AP4: =IF(AR3,0,NA()) -> 0 | AQ4: 0 | AT4: Disp x against y? | AU4: FALSE | BC4: intercept y ag x | BD4: =AO6-BD3*AN6 -> -0.1361098553
J5: 0 | S5: 0 | AL5: sqrt(1-r^2) | AM5: =SQRT(1-H8^2) -> 0.9539392014 | AN5: for zero | AO5: =1000*(H8-AO3) -> 1.086008294e-05 | AQ5: display means? | AR5: FALSE | AS5: x marg? | AT5: FALSE | BC5: slope x ag y | BD5: =BD1/(AO7^2) -> 0.369567717
D6: 1 | E6: Choose r and N | J6: 0 | S6: 0 | AL6: for tweak | AM6: mean | AN6: =AVERAGE(AN9:AN308) -> -0.2261614302 | AO6: =AVERAGE(AO9:AO308) -> -0.1911864389 | AP6: =IF(AR5,AN6,NA()) ->  | AQ6: =AO6 -> -0.1911864389 | AS6: y marg? | AT6: FALSE | AU6: spacer | AV6: 0.98 | AW6: 0.975 | AX6: spacer | BC6: intercept x ag y | BD6: =AO6-BD5*AN6 -> -0.1076044755
G7: Target | H7: r | J7: 0 | S7: 0 | AL7: =IF(ABS(H8)<0.01,0.01,H8) -> 0.3 | AM7: sd | AN7: =STDEV(AN9:AN308) -> 0.9168666682 | AO7: =STDEV(AO9:AO308) -> 0.7442749403 | AP7: Main display | AR7: point past | AS7: Disp pts past edge | AU7: Disp x marginal dbn | AW7: Disp y marginal dbn | AY7: x marg dbn ext pts | BA7: y marg dbn ext pts | BC7: To calc r and reg lines
F8: SLIDER | H8: =(AK2-100)/100 -> 0.3 | J8: 0 | S8: 0 | AK8: n | AL8: Rand x | AM8: Rand y | AN8: x | AO8: y | AP8: x disp | AQ8: y disp | AR8: edge? | AS8: x ext | AT8: y ext | AU8: x dbn | AV8: min y | AW8: min x | AX8: y dbn | AY8: x dbn ed | AZ8: min y | BA8: min x | BB8: y dbn ed | BC8: x-Mx | BD8: y-My | BE8: Xprod
G9: Calculated | H9: =IF(ABS(AO3)<0.001,0,AO3) -> 0.2999999891 | J9: 0 | S9: 0 | AK9: 1 | AL9: =IF(AK9>$F$11,"",MOD(B4*100000013,1)) -> 0.8142541498 | AM9: =IF(AK9>$F$11,"",MOD(AL9*100000013,1)) -> 0.5647618026 | AN9: =IF(AK9>$F$11,"",NORMSINV(AL9)) -> 0.8936826697 | AO9: =IF(AK9>$F$11,"",AN9*$AL$7*$AO$4+$AM$5*NORMSINV(AM9)) -> 0.5308426943 | AP9: =IF(AN9="",NA(),AN9) -> 0.8936826697 | AQ9: =IF(AO9="",NA(),AO9) -> 0.5308426943 | AR9: =OR(AP9<-forzoom,AP9>forzoom,AQ9<-forzoom,AQ9>forzoom) -> FALSE | AS9: =IF(AR9,IF(ISNA(AP9),NA(),IF(AP9<-forzoom,-forzoom,IF(AP9>forzoom,forzoom,AP9))),NA()) ->  | AT9: =IF(ISNA(AQ9),NA(),IF(AQ9<-forzoom,-forzoom,IF(AQ9>forzoom,forzoom,AQ9))) -> 0.5308426943 | AU9: =IF($AT$5,AP9,NA()) ->  | AV9: =-forzoom*$AV$6 -> -2.94 | AW9: =IF($AT$6,-forzoom*$AW$6,NA()) ->  | AX9: =AQ9 -> 0.5308426943 | AY9: =IF($AT$5,IF(AP9>forzoom,forzoom,IF(AP9<-forzoom,-forzoom,NA())),NA()) ->  | AZ9: =-forzoom*$AV$6 -> -2.94 | BA9: =-forzoom*$AW$6 -> -2.925 | BB9: =IF($AT$6,IF(AQ9>forzoom,forzoom,IF(AQ9<-forzoom,-forzoom,NA())),NA()) ->  | BC9: =IF(AN9="","",AN9-$AN$6) -> 1.1198441 | BD9: =IF(AO9="","",AO9-$AO$6) -> 0.7220291332 | BE9: =IF(BC9="","",BC9*BD9) -> 0.8085600648
D10: 2 | J10: 0 | S10: 0 | AK10: 2 | AL10: =IF(AK10>$F$11,"",MOD(AM9*100000013,1)) -> 0.5973164886 | AM10: 0.6274762601 | AN10: 0.2464072136 | AO10: =IF(AK10>$F$11,"",AN10*$AL$7*$AO$4+$AM$5*NORMSINV(AM10)) -> 0.4136766843 | AP10: =IF(AN10="",NA(),AN10) -> 0.2464072136 | AQ10: =IF(AO10="",NA(),AO10) -> 0.4136766843 | AR10: FALSE | AT10: 0.4136766843 | AV10: -2.94 | AX10: 0.4136766843 | AZ10: -2.94 | BA10: -2.925 | BC10: =IF(AN10="","",AN10-$AN$6) -> 0.4725686438 | BD10: =IF(AO10="","",AO10-$AO$6) -> 0.6048631232 | BE10: =IF(BC10="","",BC10*BD10) -> 0.2858393458
E11: N | F11: =AK4 -> 30 | J11: 0 | S11: 0 | AK11: 3 | AL11: 0.1637946218 | AM11: 0.3118519038 | AN11: -0.9789812507 | AO11: -0.8791306783 | AP11: -0.9789812507 | AQ11: -0.8791306783 | AR11: FALSE | AT11: -0.8791306783 | AV11: -2.94 | AX11: -0.8791306783 | AZ11: -2.94 | BA11: -2.925 | BC11: -0.7528198205 | BD11: -0.6879442394 | BE11: 0.5178980589
J12: 0 | S12: 0 | AK12: 4 | AL12: 0.4336943477 | AM12: 0.4119484872 | AN12: -0.1669763019 | AO12: -0.2824066746 | AP12: -0.1669763019 | AQ12: -0.2824066746 | AR12: FALSE | AT12: -0.2824066746 | AV12: -2.94 | AX12: -0.2824066746 | AZ12: -2.94 | BA12: -2.925 | BC12: 0.05918512831 | BD12: -0.09122023567 | BE12: -0.005398881352
D13: 3 | J13: 0 | S13: 0 | AK13: 5 | AL13: 0.0715893358 | AM13: 0.5105830878 | AN13: -1.464055914 | AO13: -0.5895174619 | AP13: -1.464055914 | AQ13: -0.5895174619 | AR13: FALSE | AT13: -0.5895174619 | AV13: -2.94 | AX13: -0.5895174619 | AZ13: -2.94 | BA13: -2.925 | BC13: -1.237894484 | BD13: -0.398331023 | BE13: 0.493091776
J14: 0 | S14: 0 | AK14: 6 | AL14: 0.4177734703 | AM14: 0.4593105763 | AN14: -0.2075927822 | AO14: -0.1846427127 | AP14: -0.2075927822 | AQ14: -0.1846427127 | AR14: FALSE | AT14: -0.1846427127 | AV14: -2.94 | AX14: -0.1846427127 | AZ14: -2.94 | BA14: -2.925 | BC14: 0.018568648 | BD14: 0.006543726174 | BE14: 0.0001215081479
J15: 0 | S15: 0 | AK15: 7 | AL15: 0.6030069441 | AM15: 0.245122835 | AN15: 0.2611379694 | AO15: -0.5484757571 | AP15: 0.2611379694 | AQ15: -0.5484757571 | AR15: FALSE | AT15: -0.5484757571 | AV15: -2.94 | AX15: -0.5484757571 | AZ15: -2.94 | BA15: -2.925 | BC15: 0.4872993996 | BD15: -0.3572893182 | BE15: -0.1741068703
J16: 0 | S16: 0 | AK16: 8 | AL16: 0.6906061023 | AM16: 0.2126167268 | AN16: 0.4975690891 | AO16: -0.551694155 | AP16: 0.4975690891 | AQ16: -0.551694155 | AR16: FALSE | AT16: -0.551694155 | AV16: -2.94 | AX16: -0.551694155 | AZ16: -2.94 | BA16: -2.925 | BC16: 0.7237305193 | BD16: -0.3605077161 | BE16: -0.2609104365
D17: 4 | E17: Descriptive statistics | J17: 0 | S17: 0 | AK17: 9 | AL17: 0.4396270365 | AM17: 0.3603808135 | AN17: -0.1519148788 | AO17: -0.4047733105 | AP17: -0.1519148788 | AQ17: -0.4047733105 | AR17: FALSE | AT17: -0.4047733105 | AV17: -2.94 | AX17: -0.4047733105 | AZ17: -2.94 | BA17: -2.925 | BC17: 0.07424655139 | BD17: -0.2135868716 | BE17: -0.01585808864
F18: X | G18: Y | J18: 0 | S18: 0 | AK18: 10 | AL18: 0.03289292753 | AM18: 0.1803508252 | AN18: -1.839880013 | AO18: -1.644580755 | AP18: -1.839880013 | AQ18: -1.644580755 | AR18: FALSE | AT18: -1.644580755 | AV18: -2.94 | AX18: -1.644580755 | AZ18: -2.94 | BA18: -2.925 | BC18: -1.613718582 | BD18: -1.453394316 | BE18: 2.345369415
E19: Mean | F19: =AN6 -> -0.2261614302 | G19: =AO6 -> -0.1911864389 | J19: 0 | S19: 0 | AK19: 11 | AL19: 0.8636151403 | AM19: 0.2588838786 | AN19: 1.096706488 | AO19: -0.1564395107 | AP19: 1.096706488 | AQ19: -0.1564395107 | AR19: FALSE | AT19: -0.1564395107 | AV19: -2.94 | AX19: -0.1564395107 | AZ19: -2.94 | BA19: -2.925 | BC19: 1.322867918 | BD19: 0.03474692823 | BE19: 0.04596559661
E20: SD | F20: =AN7 -> 0.9168666682 | G20: =AO7 -> 0.7442749403 | J20: 0 | S20: 0 | AK20: 12 | AL20: 0.2243580669 | AM20: 0.6083014458 | AN20: -0.7575571614 | AO20: -0.05590125447 | AP20: -0.7575571614 | AQ20: -0.05590125447 | AR20: FALSE | AT20: -0.05590125447 | AV20: -2.94 | AX20: -0.05590125447 | AZ20: -2.94 | BA20: -2.925 | BC20: -0.5313957312 | BD20: 0.1352851844 | BE20: -0.0718899695
J21: 0 | S21: 0 | AK21: 13 | AL21: 0.4920977205 | AM21: 0.4476510733 | AN21: -0.01980937271 | AO21: -0.1338555304 | AP21: -0.01980937271 | AQ21: -0.1338555304 | AR21: FALSE | AT21: -0.1338555304 | AV21: -2.94 | AX21: -0.1338555304 | AZ21: -2.94 | BA21: -2.925 | BC21: 0.2063520575 | BD21: 0.05733090851 | BE21: 0.01183035093
E22: Display cross through means | J22: 0 | S22: 0 | AK22: 14 | AL22: 0.1531240791 | AM22: 0.9014368504 | AN22: -1.023126248 | AO22: 0.8007146187 | AP22: -1.023126248 | AQ22: 0.8007146187 | AR22: FALSE | AT22: 0.8007146187 | AV22: -2.94 | AX22: 0.8007146187 | AZ22: -2.94 | BA22: -2.925 | BC22: -0.7969648174 | BD22: 0.9919010576 | BE22: -0.7905102452
J23: 0 | S23: 0 | AK23: 15 | AL23: 0.7615371794 | AM23: 0.8350686282 | AN23: 0.7112559529 | AO23: 1.228199236 | AP23: 0.7112559529 | AQ23: 1.228199236 | AR23: FALSE | AT23: 1.228199236 | AV23: -2.94 | AX23: 1.228199236 | AZ23: -2.94 | BA23: -2.925 | BC23: 0.9374173831 | BD23: 1.419385674 | BE23: 1.330556805
J24: 0 | S24: 0 | AK24: 16 | AL24: 0.6750869602 | AM24: 0.7957799882 | AN24: 0.4540038169 | AO24: 0.9792238774 | AP24: 0.4540038169 | AQ24: 0.9792238774 | AR24: FALSE | AT24: 0.9792238774 | AV24: -2.94 | AX24: 0.9792238774 | AZ24: -2.94 | BA24: -2.925 | BC24: 0.6801652471 | BD24: 1.170410316 | BE24: 0.7960724219
D25: 7 | E25: Regression lines | J25: 0 | S25: 0 | AK25: 17 | AL25: 0.1621068567 | AM25: 0.7777649611 | AN25: -0.9858357624 | AO25: 0.3154463637 | AP25: -0.9858357624 | AQ25: 0.3154463637 | AR25: FALSE | AT25: 0.3154463637 | AV25: -2.94 | AX25: 0.3154463637 | AZ25: -2.94 | BA25: -2.925 | BC25: -0.7596743323 | BD25: 0.5066328026 | BE25: -0.384875936
E26: Y against X | J26: 0 | S26: 0 | AK26: 18 | AL26: 0.2232911438 | AM26: 0.2802834958 | AN26: -0.7611252042 | AO26: -0.8748246887 | AP26: -0.7611252042 | AQ26: -0.8748246887 | AR26: FALSE | AT26: -0.8748246887 | AV26: -2.94 | AX26: -0.8748246887 | AZ26: -2.94 | BA26: -2.925 | BC26: -0.534963774 | BD26: -0.6836382498 | BE26: 0.3657216981
F27: Slope | G27: =IF(AU3,AP1,"") ->  | J27: 0 | S27: 0 | AK27: 19 | AL27: 0.2220660299 | AM27: 0.8774856776 | AN27: -0.7652342641 | AO27: 0.7876051015 | AP27: -0.7652342641 | AQ27: 0.7876051015 | AR27: FALSE | AT27: 0.7876051015 | AV27: -2.94 | AX27: 0.7876051015 | AZ27: -2.94 | BA27: -2.925 | BC27: -0.5390728339 | BD27: 0.9787915404 | BE27: -0.5276399295
E28: X against Y | J28: 0 | S28: 0 | AK28: 20 | AL28: 0.1673045009 | AM28: 0.2687046975 | AN28: -0.9648718514 | AO28: -0.9935232691 | AP28: -0.9648718514 | AQ28: -0.9935232691 | AR28: FALSE | AT28: -0.9935232691 | AV28: -2.94 | AX28: -0.9935232691 | AZ28: -2.94 | BA28: -2.925 | BC28: -0.7387104212 | BD28: -0.8023368302 | BE28: 0.5926945777
F29: Slope | G29: =IF(AU4,AU1,"") ->  | J29: 0 | S29: 0 | AK29: 21 | AL29: 0.2421349138 | AM29: 0.5279685706 | AN29: -0.6994516363 | AO29: -0.2268003498 | AP29: -0.6994516363 | AQ29: -0.2268003498 | AR29: FALSE | AT29: -0.2268003498 | AV29: -2.94 | AX29: -0.2268003498 | AZ29: -2.94 | BA29: -2.925 | BC29: -0.4732902061 | BD29: -0.03561391091 | BE29: 0.01685571524
J30: 0 | S30: 0 | AK30: 22 | AL30: 0.9225933403 | AM30: 0.02148060501 | AN30: 1.422733865 | AO30: -1.333382534 | AP30: 1.422733865 | AQ30: -1.333382534 | AR30: FALSE | AT30: -1.333382534 | AV30: -2.94 | AX30: -1.333382534 | AZ30: -2.94 | BA30: -2.925 | BC30: 1.648895296 | BD30: -1.142196095 | BE30: -1.883361768
J31: 0 | S31: 0 | AK31: 23 | AL31: 0.7798696607 | AM31: 0.2118186206 | AN31: 0.7717530928 | AO31: -0.4391768083 | AP31: 0.7717530928 | AQ31: -0.4391768083 | AR31: FALSE | AT31: -0.4391768083 | AV31: -2.94 | AX31: -0.4391768083 | AZ31: -2.94 | BA31: -2.925 | BC31: 0.997914523 | BD31: -0.2479903694 | BE31: -0.2474731912
J32: 0 | S32: 0 | AK32: 24 | AL32: 0.8098974079 | AM32: 0.3176029176 | AN32: 0.8775182987 | AO32: -0.0840491238 | AP32: =IF(AN32="",NA(),AN32) -> 0.8775182987 | AQ32: =IF(AO32="",NA(),AO32) -> -0.0840491238 | AR32: FALSE | AT32: -0.0840491238 | AU32: =IF($AT$5,AP32,NA()) ->  | AV32: -2.94 | AX32: =AQ32 -> -0.0840491238 | AZ32: -2.94 | BA32: -2.925 | BC32: =IF(AN32="","",AN32-$AN$6) -> 1.103679729 | BD32: =IF(AO32="","",AO32-$AO$6) -> 0.1071373151 | BE32: =IF(BC32="","",BC32*BD32) -> 0.1182452829
J33: 0 | S33: 0 | AK33: 25 | AL33: 0.8840373605 | AM33: 0.5473829955 | AN33: 1.195414101 | AO33: 0.6155795354 | AP33: 1.195414101 | AQ33: 0.6155795354 | AR33: FALSE | AT33: 0.6155795354 | AV33: -2.94 | AX33: 0.6155795354 | AZ33: -2.94 | BA33: -2.925 | BC33: 1.421575532 | BD33: 0.8067659743 | BE33: 1.146878769
I34: 6 | J34: 0 | S34: 0 | AK34: 26 | AL34: 0.6646048874 | AM34: 0.3764930218 | AN34: 0.425063719 | AO34: -0.1217045559 | AP34: 0.425063719 | AQ34: -0.1217045559 | AR34: FALSE | AT34: -0.1217045559 | AV34: -2.94 | AX34: -0.1217045559 | AZ34: -2.94 | BA34: -2.925 | BC34: 0.6512251492 | BD34: 0.06948188304 | BE34: 0.04524834965
J35: 0 | S35: 0 | AK35: 27 | AL35: 0.07899104059 | AM35: 0.08562605083 | AN35: -1.411890922 | AO35: -1.898091481 | AP35: -1.411890922 | AQ35: -1.898091481 | AR35: FALSE | AT35: -1.898091481 | AV35: -2.94 | AX35: -1.898091481 | AZ35: -2.94 | BA35: -2.925 | BC35: -1.185729492 | BD35: -1.706905042 | BE35: 2.023927648
J36: 0 | S36: 0 | AK36: 28 | AL36: 0.1961273998 | AM36: 0.5298769921 | AN36: -0.8555354287 | AO36: -0.2877719289 | AP36: -0.8555354287 | AQ36: -0.2877719289 | AR36: FALSE | AT36: -0.2877719289 | AV36: -2.94 | AX36: -0.2877719289 | AZ36: -2.94 | BA36: -2.925 | BC36: -0.6293739985 | BD36: -0.09658548999 | BE36: 0.06078839603
AK37: 29 | AL37: 0.09904466569 | AM37: 0.8570043296 | AN37: -1.287014221 | AO37: 0.4773337111 | AP37: -1.287014221 | AQ37: 0.4773337111 | AR37: FALSE | AT37: 0.4773337111 | AV37: -2.94 | AX37: 0.4773337111 | AZ37: -2.94 | BA37: -2.925 | BC37: -1.060852791 | BD37: 0.66852015 | BE37: -0.709201467
AK38: 30 | AL38: 0.09727500379 | AM38: 0.6436605901 | AN38: -1.297235971 | AO38: -0.1934724489 | AP38: -1.297235971 | AQ38: -0.1934724489 | AR38: FALSE | AT38: -0.1934724489 | AV38: -2.94 | AX38: -0.1934724489 | AZ38: -2.94 | BA38: -2.925 | BC38: -1.071074541 | BD38: -0.002286010008 | BE38: 0.002448487119
AK39: 31 | AV39: -2.94 | AZ39: -2.94 | BA39: -2.925
AK40: 32 | AV40: -2.94 | AZ40: -2.94 | BA40: -2.925
AK41: 33 | AV41: -2.94 | AZ41: -2.94 | BA41: -2.925
AK42: 34 | AV42: -2.94 | AZ42: -2.94 | BA42: -2.925
AK43: 35 | AV43: -2.94 | AZ43: -2.94 | BA43: -2.925
AK44: 36 | AV44: -2.94 | AZ44: -2.94 | BA44: -2.925
AK45: 37 | AV45: -2.94 | AZ45: -2.94 | BA45: -2.925
AK46: 38 | AV46: -2.94 | AZ46: -2.94 | BA46: -2.925
AK47: 39 | AV47: -2.94 | AZ47: -2.94 | BA47: -2.925
AK48: 40 | AV48: -2.94 | AZ48: -2.94 | BA48: -2.925
AK49: 41 | AV49: -2.94 | AZ49: -2.94 | BA49: -2.925
AK50: 42 | AV50: -2.94 | AZ50: -2.94 | BA50: -2.925
AK51: 43 | AV51: -2.94 | AZ51: -2.94 | BA51: -2.925
AK52: 44 | AV52: -2.94 | AZ52: -2.94 | BA52: -2.925
AK53: 45 | AV53: -2.94 | AZ53: -2.94 | BA53: -2.925
AK54: 46 | AV54: -2.94 | AZ54: -2.94 | BA54: -2.925
AK55: 47 | AV55: -2.94 | AZ55: -2.94 | BA55: -2.925
AK56: 48 | AV56: -2.94 | AZ56: -2.94 | BA56: -2.925
AK57: 49 | AV57: -2.94 | AZ57: -2.94 | BA57: -2.925
AK58: 50 | AV58: -2.94 | AZ58: -2.94 | BA58: -2.925
AK59: 51 | AV59: -2.94 | AZ59: -2.94 | BA59: -2.925
AK60: 52 | AV60: -2.94 | AZ60: -2.94 | BA60: -2.925
AK61: 53 | AV61: -2.94 | AZ61: -2.94 | BA61: -2.925
AK62: 54 | AV62: -2.94 | AZ62: -2.94 | BA62: -2.925
AK63: 55 | AV63: -2.94 | AZ63: -2.94 | BA63: -2.925
AK64: 56 | AV64: -2.94 | AZ64: -2.94 | BA64: -2.925
AK65: 57 | AV65: -2.94 | AZ65: -2.94 | BA65: -2.925
AK66: 58 | AV66: -2.94 | AZ66: -2.94 | BA66: -2.925
AK67: 59 | AV67: -2.94 | AZ67: -2.94 | BA67: -2.925
AK68: 60 | AV68: -2.94 | AZ68: -2.94 | BA68: -2.925
AK69: 61 | AV69: -2.94 | AZ69: -2.94 | BA69: -2.925
AK70: 62 | AV70: -2.94 | AZ70: -2.94 | BA70: -2.925
AK71: 63 | AV71: -2.94 | AZ71: -2.94 | BA71: -2.925
AK72: 64 | AV72: -2.94 | AZ72: -2.94 | BA72: -2.925
AK73: 65 | AM73: =IF(AK73>$F$11,"",MOD(AL73*100000013,1)) ->  | AN73: =IF(AK73>$F$11,"",NORMSINV(AL73)) ->  | AO73: =IF(AK73>$F$11,"",AN73*$AL$7*$AO$4+$AM$5*NORMSINV(AM73)) ->  | AR73: =OR(AP73<-forzoom,AP73>forzoom,AQ73<-forzoom,AQ73>forzoom) ->  | AS73: =IF(AR73,IF(ISNA(AP73),NA(),IF(AP73<-forzoom,-forzoom,IF(AP73>forzoom,forzoom,AP73))),NA()) ->  | AT73: =IF(ISNA(AQ73),NA(),IF(AQ73<-forzoom,-forzoom,IF(AQ73>forzoom,forzoom,AQ73))) ->  | AV73: =-forzoom*$AV$6 -> -2.94 | AW73: =IF($AT$6,-forzoom*$AW$6,NA()) ->  | AY73: =IF($AT$5,IF(AP73>forzoom,forzoom,IF(AP73<-forzoom,-forzoom,NA())),NA()) ->  | AZ73: =-forzoom*$AV$6 -> -2.94 | BA73: =-forzoom*$AW$6 -> -2.925 | BB73: =IF($AT$6,IF(AQ73>forzoom,forzoom,IF(AQ73<-forzoom,-forzoom,NA())),NA()) -> 
AK74: 66 | AL74: =IF(AK74>$F$11,"",MOD(AM73*100000013,1)) ->  | AV74: -2.94 | AZ74: -2.94 | BA74: -2.925
AK75: 67 | AV75: -2.94 | AZ75: -2.94 | BA75: -2.925
AK76: 68 | AV76: -2.94 | AZ76: -2.94 | BA76: -2.925
AK77: 69 | AV77: -2.94 | AZ77: -2.94 | BA77: -2.925
AK78: 70 | AV78: -2.94 | AZ78: -2.94 | BA78: -2.925
AK79: 71 | AV79: -2.94 | AZ79: -2.94 | BA79: -2.925
AK80: 72 | AV80: -2.94 | AZ80: -2.94 | BA80: -2.925
AK81: 73 | AV81: -2.94 | AZ81: -2.94 | BA81: -2.925
AK82: 74 | AV82: -2.94 | AZ82: -2.94 | BA82: -2.925
AK83: 75 | AV83: -2.94 | AZ83: -2.94 | BA83: -2.925
AK84: 76 | AV84: -2.94 | AZ84: -2.94 | BA84: -2.925
AK85: 77 | AV85: -2.94 | AZ85: -2.94 | BA85: -2.925
AK86: 78 | AV86: -2.94 | AZ86: -2.94 | BA86: -2.925
AK87: 79 | AV87: -2.94 | AZ87: -2.94 | BA87: -2.925
AK88: 80 | AV88: -2.94 | AZ88: -2.94 | BA88: -2.925
AK89: 81 | AV89: -2.94 | AZ89: -2.94 | BA89: -2.925
AK90: 82 | AV90: -2.94 | AZ90: -2.94 | BA90: -2.925
AK91: 83 | AV91: -2.94 | AZ91: -2.94 | BA91: -2.925
AK92: 84 | AV92: -2.94 | AZ92: -2.94 | BA92: -2.925
AK93: 85 | AV93: -2.94 | AZ93: -2.94 | BA93: -2.925
AK94: 86 | AV94: -2.94 | AZ94: -2.94 | BA94: -2.925
AK95: 87 | AV95: -2.94 | AZ95: -2.94 | BA95: -2.925
AK96: 88 | AP96: =IF(AN96="",NA(),AN96) ->  | AQ96: =IF(AO96="",NA(),AO96) ->  | AU96: =IF($AT$5,AP96,NA()) ->  | AV96: -2.94 | AX96: =AQ96 ->  | AZ96: -2.94 | BA96: -2.925 | BC96: =IF(AN96="","",AN96-$AN$6) ->  | BD96: =IF(AO96="","",AO96-$AO$6) ->  | BE96: =IF(BC96="","",BC96*BD96) -> 
AK97: 89 | AV97: -2.94 | AZ97: -2.94 | BA97: -2.925
AK98: 90 | AV98: -2.94 | AZ98: -2.94 | BA98: -2.925
AK99: 91 | AV99: -2.94 | AZ99: -2.94 | BA99: -2.925
AK100: 92 | AV100: -2.94 | AZ100: -2.94 | BA100: -2.925
AK101: 93 | AV101: -2.94 | AZ101: -2.94 | BA101: -2.925
AK102: 94 | AV102: -2.94 | AZ102: -2.94 | BA102: -2.925
AK103: 95 | AV103: -2.94 | AZ103: -2.94 | BA103: -2.925
AK104: 96 | AV104: -2.94 | AZ104: -2.94 | BA104: -2.925
AK105: 97 | AV105: -2.94 | AZ105: -2.94 | BA105: -2.925
AK106: 98 | AV106: -2.94 | AZ106: -2.94 | BA106: -2.925
AK107: 99 | AV107: -2.94 | AZ107: -2.94 | BA107: -2.925
AK108: 100 | AV108: -2.94 | AZ108: -2.94 | BA108: -2.925
AK109: 101 | AV109: -2.94 | AZ109: -2.94 | BA109: -2.925
AK110: 102 | AV110: -2.94 | AZ110: -2.94 | BA110: -2.925
AK111: 103 | AV111: -2.94 | AZ111: -2.94 | BA111: -2.925
AK112: 104 | AV112: -2.94 | AZ112: -2.94 | BA112: -2.925
AK113: 105 | AV113: -2.94 | AZ113: -2.94 | BA113: -2.925
AK114: 106 | AV114: -2.94 | AZ114: -2.94 | BA114: -2.925
AK115: 107 | AV115: -2.94 | AZ115: -2.94 | BA115: -2.925
AK116: 108 | AV116: -2.94 | AZ116: -2.94 | BA116: -2.925
AK117: 109 | AV117: -2.94 | AZ117: -2.94 | BA117: -2.925
AK118: 110 | AV118: -2.94 | AZ118: -2.94 | BA118: -2.925
AK119: 111 | AV119: -2.94 | AZ119: -2.94 | BA119: -2.925
AK120: 112 | AV120: -2.94 | AZ120: -2.94 | BA120: -2.925
AK121: 113 | AV121: -2.94 | AZ121: -2.94 | BA121: -2.925
AK122: 114 | AV122: -2.94 | AZ122: -2.94 | BA122: -2.925
AK123: 115 | AV123: -2.94 | AZ123: -2.94 | BA123: -2.925
AK124: 116 | AV124: -2.94 | AZ124: -2.94 | BA124: -2.925
AK125: 117 | AV125: -2.94 | AZ125: -2.94 | BA125: -2.925
AK126: 118 | AV126: -2.94 | AZ126: -2.94 | BA126: -2.925
AK127: 119 | AV127: -2.94 | AZ127: -2.94 | BA127: -2.925
AK128: 120 | AV128: -2.94 | AZ128: -2.94 | BA128: -2.925
AK129: 121 | AV129: -2.94 | AZ129: -2.94 | BA129: -2.925
AK130: 122 | AV130: -2.94 | AZ130: -2.94 | BA130: -2.925
AK131: 123 | AV131: -2.94 | AZ131: -2.94 | BA131: -2.925
AK132: 124 | AV132: -2.94 | AZ132: -2.94 | BA132: -2.925
AK133: 125 | AV133: -2.94 | AZ133: -2.94 | BA133: -2.925
AK134: 126 | AV134: -2.94 | AZ134: -2.94 | BA134: -2.925
AK135: 127 | AV135: -2.94 | AZ135: -2.94 | BA135: -2.925
AK136: 128 | AV136: -2.94 | AZ136: -2.94 | BA136: -2.925
AK137: 129 | AM137: =IF(AK137>$F$11,"",MOD(AL137*100000013,1)) ->  | AN137: =IF(AK137>$F$11,"",NORMSINV(AL137)) ->  | AO137: =IF(AK137>$F$11,"",AN137*$AL$7*$AO$4+$AM$5*NORMSINV(AM137)) ->  | AR137: =OR(AP137<-forzoom,AP137>forzoom,AQ137<-forzoom,AQ137>forzoom) ->  | AS137: =IF(AR137,IF(ISNA(AP137),NA(),IF(AP137<-forzoom,-forzoom,IF(AP137>forzoom,forzoom,AP137))),NA()) ->  | AT137: =IF(ISNA(AQ137),NA(),IF(AQ137<-forzoom,-forzoom,IF(AQ137>forzoom,forzoom,AQ137))) ->  | AV137: =-forzoom*$AV$6 -> -2.94 | AW137: =IF($AT$6,-forzoom*$AW$6,NA()) ->  | AY137: =IF($AT$5,IF(AP137>forzoom,forzoom,IF(AP137<-forzoom,-forzoom,NA())),NA()) ->  | AZ137: =-forzoom*$AV$6 -> -2.94 | BA137: =-forzoom*$AW$6 -> -2.925 | BB137: =IF($AT$6,IF(AQ137>forzoom,forzoom,IF(AQ137<-forzoom,-forzoom,NA())),NA()) -> 
AK138: 130 | AL138: =IF(AK138>$F$11,"",MOD(AM137*100000013,1)) ->  | AV138: -2.94 | AZ138: -2.94 | BA138: -2.925
AK139: 131 | AV139: -2.94 | AZ139: -2.94 | BA139: -2.925
AK140: 132 | AV140: -2.94 | AZ140: -2.94 | BA140: -2.925
AK141: 133 | AV141: -2.94 | AZ141: -2.94 | BA141: -2.925
AK142: 134 | AV142: -2.94 | AZ142: -2.94 | BA142: -2.925
AK143: 135 | AV143: -2.94 | AZ143: -2.94 | BA143: -2.925
AK144: 136 | AV144: -2.94 | AZ144: -2.94 | BA144: -2.925
AK145: 137 | AV145: -2.94 | AZ145: -2.94 | BA145: -2.925
AK146: 138 | AV146: -2.94 | AZ146: -2.94 | BA146: -2.925
AK147: 139 | AV147: -2.94 | AZ147: -2.94 | BA147: -2.925
AK148: 140 | AV148: -2.94 | AZ148: -2.94 | BA148: -2.925
AK149: 141 | AV149: -2.94 | AZ149: -2.94 | BA149: -2.925
AK150: 142 | AV150: -2.94 | AZ150: -2.94 | BA150: -2.925
AK151: 143 | AV151: -2.94 | AZ151: -2.94 | BA151: -2.925
AK152: 144 | AV152: -2.94 | AZ152: -2.94 | BA152: -2.925
AK153: 145 | AV153: -2.94 | AZ153: -2.94 | BA153: -2.925
AK154: 146 | AV154: -2.94 | AZ154: -2.94 | BA154: -2.925
AK155: 147 | AV155: -2.94 | AZ155: -2.94 | BA155: -2.925
AK156: 148 | AV156: -2.94 | AZ156: -2.94 | BA156: -2.925
AK157: 149 | AV157: -2.94 | AZ157: -2.94 | BA157: -2.925
AK158: 150 | AV158: -2.94 | AZ158: -2.94 | BA158: -2.925
AK159: 151 | AV159: -2.94 | AZ159: -2.94 | BA159: -2.925
AK160: 152 | AP160: =IF(AN160="",NA(),AN160) ->  | AQ160: =IF(AO160="",NA(),AO160) ->  | AU160: =IF($AT$5,AP160,NA()) ->  | AV160: -2.94 | AX160: =AQ160 ->  | AZ160: -2.94 | BA160: -2.925 | BC160: =IF(AN160="","",AN160-$AN$6) ->  | BD160: =IF(AO160="","",AO160-$AO$6) ->  | BE160: =IF(BC160="","",BC160*BD160) -> 
AK161: 153 | AV161: -2.94 | AZ161: -2.94 | BA161: -2.925
AK162: 154 | AV162: -2.94 | AZ162: -2.94 | BA162: -2.925
AK163: 155 | AV163: -2.94 | AZ163: -2.94 | BA163: -2.925
AK164: 156 | AV164: -2.94 | AZ164: -2.94 | BA164: -2.925
AK165: 157 | AV165: -2.94 | AZ165: -2.94 | BA165: -2.925
AK166: 158 | AV166: -2.94 | AZ166: -2.94 | BA166: -2.925
AK167: 159 | AV167: -2.94 | AZ167: -2.94 | BA167: -2.925
AK168: 160 | AV168: -2.94 | AZ168: -2.94 | BA168: -2.925
AK169: 161 | AV169: -2.94 | AZ169: -2.94 | BA169: -2.925
AK170: 162 | AV170: -2.94 | AZ170: -2.94 | BA170: -2.925
AK171: 163 | AV171: -2.94 | AZ171: -2.94 | BA171: -2.925
AK172: 164 | AV172: -2.94 | AZ172: -2.94 | BA172: -2.925
AK173: 165 | AV173: -2.94 | AZ173: -2.94 | BA173: -2.925
AK174: 166 | AV174: -2.94 | AZ174: -2.94 | BA174: -2.925
AK175: 167 | AV175: -2.94 | AZ175: -2.94 | BA175: -2.925
AK176: 168 | AV176: -2.94 | AZ176: -2.94 | BA176: -2.925
AK177: 169 | AV177: -2.94 | AZ177: -2.94 | BA177: -2.925
AK178: 170 | AV178: -2.94 | AZ178: -2.94 | BA178: -2.925
AK179: 171 | AV179: -2.94 | AZ179: -2.94 | BA179: -2.925
AK180: 172 | AV180: -2.94 | AZ180: -2.94 | BA180: -2.925
AK181: 173 | AV181: -2.94 | AZ181: -2.94 | BA181: -2.925
AK182: 174 | AV182: -2.94 | AZ182: -2.94 | BA182: -2.925
AK183: 175 | AV183: -2.94 | AZ183: -2.94 | BA183: -2.925
AK184: 176 | AV184: -2.94 | AZ184: -2.94 | BA184: -2.925
AK185: 177 | AV185: -2.94 | AZ185: -2.94 | BA185: -2.925
AK186: 178 | AV186: -2.94 | AZ186: -2.94 | BA186: -2.925
AK187: 179 | AV187: -2.94 | AZ187: -2.94 | BA187: -2.925
AK188: 180 | AV188: -2.94 | AZ188: -2.94 | BA188: -2.925
AK189: 181 | AV189: -2.94 | AZ189: -2.94 | BA189: -2.925
AK190: 182 | AV190: -2.94 | AZ190: -2.94 | BA190: -2.925
AK191: 183 | AV191: -2.94 | AZ191: -2.94 | BA191: -2.925
AK192: 184 | AV192: -2.94 | AZ192: -2.94 | BA192: -2.925
AK193: 185 | AV193: -2.94 | AZ193: -2.94 | BA193: -2.925
AK194: 186 | AV194: -2.94 | AZ194: -2.94 | BA194: -2.925
AK195: 187 | AV195: -2.94 | AZ195: -2.94 | BA195: -2.925
AK196: 188 | AV196: -2.94 | AZ196: -2.94 | BA196: -2.925
AK197: 189 | AV197: -2.94 | AZ197: -2.94 | BA197: -2.925
AK198: 190 | AV198: -2.94 | AZ198: -2.94 | BA198: -2.925
AK199: 191 | AV199: -2.94 | AZ199: -2.94 | BA199: -2.925
AK200: 192 | AV200: -2.94 | AZ200: -2.94 | BA200: -2.925
... 108 more rows

Sheet r to z
C1: Fisher's r to z transformation | J1: =$I$1 -> 0 | K1: 0 | L1: 0 | M1: 0 | N1: 0 | O1: 0 | P1: 0 | Q1: 0 | R1: 0 | S1: 0 | T1: 0 | U1: 0 | V1: 0 | W1: 0 | X1: 0 | Y1: 0 | Z1: 0 | AA1: 0 | AB1: 0 | AC1: 0 | AN1: For bulges | AP1: z bulge | AQ1: 0.001 | AS1: bulge height | AT1: 35 | BB1: z | BC1: r | BD1: z
C2: See the CI on correlation r. | I2: =$I$1 -> 0 | L2: Set to zero o'lap 0 | M2: =#REF!*10000 ->  | O2: =$I$1 -> 0 | P2: 0 | X2: =$I$1 -> 0 | AC2: =$I$1 -> 0 | AN2: No pts | AO2: 1000 | AP2: r bulge | AQ2: 0.002 | AS2: cat's eye on r | AT2: FALSE | AV2: slider | BB2: =0.5*LN((1+BC2)/(1-BC2)) -> -3.800201167 | BC2: -0.999 | BD2: =BB2 -> -3.800201167
C3: See how Fisher's r to z transformation | I3: 0 | L3: Set to zero o'lap .5 | M3: =(#REF!-0.5)*10000 ->  | O3: 0 | P3: 0 | X3: 0 | AC3: 0 | AN3: z low | AO3: -3 | AP3: N | AQ3: 30 | AV3: 1600 | BB3: -3.453377389 | BC3: -0.998 | BD3: -3.453377389
C4: is used to calculate the CI. | I4: 0 | K4: For display | L4: 1 | M4: =E9 -> 0.6 | O4: 0 | P4: 0 | X4: 0 | AC4: 0 | AN4: z inc | AO4: =-2*AO3/AO2 -> 0.006 | AP4: for C | AQ4: 95 | BB4: -3.250394522 | BC4: -0.997 | BD4: -3.250394522
C5: See a cat's eye CI on r. | I5: 0 | J5: z for C | K5: =NORMSINV(0.5+C14/200) -> 1.959963985 | L5: =IF(ancount=1,2,NA()) -> 2 | M5: =#REF! ->  | O5: 0 | P5: 0 | X5: 0 | AC5: 0 | AN5: Cat's eye on z CI | AU5: Cat's eye on z | BB5: -3.106303048 | BC5: -0.996 | BD5: -3.106303048
I6: 0 | J6: For overlap lines | L6: tweak | M6: 0.04 | O6: 0 | P6: 0 | X6: 0 | AC6: 0 | AN6: z | AO6: curve+ | AP6: disp+ | AQ6: disp- | AR6: z for bars | AS6: y | AT6: bars | AU6: x | AV6: x + | AW6: x - | AX6: r back | AY6: r for bar | AZ6: bars | BA6: dz/dr | BB6: -2.994480708 | BC6: -0.995 | BD6: -2.994480708
A7: 1 | B7: Set correlation and set size | I7: 0 | J7: =IF(ancount=1,IF(E22>F22,1+M6,1),NA()) -> 1.04 | K7: =MAX(E22:F22) -> 0.3058420678 | L7: =IF(ancount=1,IF(E21>F21,1,1+M6),NA()) -> 1 | M7: =MIN(E21:F21) -> 0.7895901951 | O7: 0 | P7: 0 | X7: 0 | AC7: 0 | AN7: =AO3 -> -3 | AO7: =$F$16*NORMDIST(AN7,$K$10,$K$11,FALSE) -> 7.826481085e-79 | AP7: =IF(AND($AT$2,ancount>=3),AO7*$AQ$1,NA()) ->  | AQ7: =IF(AND($AT$2,ancount>=3),-AO7*$AQ$1,NA()) ->  | AR7: =IF(AND($AT$2,AN7>$K$13,AN7<$K$12),AN7,NA()) ->  | AS7: 0 | AT7: =IF(ISNUMBER(AR7),AP7,NA()) ->  | AU7: 1 | AV7: =IF($AT$2,AU7+AO7*$AQ$2*BA7,NA()) ->  | AW7: =IF($AT$2,AU7-AO7*$AQ$2*BA7,NA()) ->  | AX7: =(EXP(2*AN7)-1)/(EXP(2*AN7)+1) -> -0.9950547537 | AY7: =IF(AND($AT$2,AX7>$E$22,AX7<$E$21),AX7,NA()) ->  | AZ7: =IF(ISNUMBER(AY7),AV7-AU7,NA()) ->  | BA7: =(AN7-AN8)/(AX7-AX8) -> 100.7538949 | BB7: -2.903069241 | BC7: -0.994 | BD7: -2.903069241
I8: 0 | J8: =IF(ancount=1,IF(E22>F22,2,2-M6),NA()) -> 2 | K8: =MAX(E22:F22) -> 0.3058420678 | L8: =IF(ancount=1,IF(E21>F21,2-M6,2),NA()) -> 1.96 | M8: =MIN(E21:F21) -> 0.7895901951 | O8: 0 | P8: 0 | X8: 0 | AC8: 0 | AN8: =AN7+$AO$4 -> -2.994 | AO8: 1.422949379e-78 | AR8: =IF(AND($AT$2,AN8>$K$13,AN8<$K$12),AN8,NA()) ->  | AS8: 0 | AU8: 1 | AV8: =IF($AT$2,AU8+AO8*$AQ$2*BA8,NA()) ->  | AW8: =IF($AT$2,AU8-AO8*$AQ$2*BA8,NA()) ->  | AX8: =(EXP(2*AN8)-1)/(EXP(2*AN8)+1) -> -0.9949952026 | AZ8: =IF(ISNUMBER(AY8),AV8-AU8,NA()) ->  | BA8: =(AN8-AN9)/(AX8-AX9) -> 99.55805267 | BB8: -2.825743086 | BC8: -0.993 | BD8: -2.825743086
D9: r | E9: =(AV3-1000)/1000 -> 0.6 | F9: N | I9: 0 | K9: r1 | L9: r2 | M9: Diff z | N9: =ABS(K10-L10) ->  | O9: 0 | P9: 0 | X9: 0 | AC9: 0 | AN9: =AN8+$AO$4 -> -2.988 | AO9: 2.584581471e-78 | AS9: 0 | AU9: 1 | AX9: -0.9949349363 | BA9: 98.37647499 | BB9: -2.758726448 | BC9: -0.992 | BD9: -2.758726448
C10: SLIDER | F10: =AQ3 -> 30 | I10: 0 | J10: z | K10: =0.5*LN((1+E9)/(1-E9)) -> 0.6931471806 | L10: =0.5*LN((1+#REF!)/(1-#REF!)) ->  | M10: SD diff z | N10: =SQRT(1/(F10-3)+1/(#REF!-3)) ->  | O10: 0 | P10: 0 | X10: 0 | AC10: 0 | AN10: -2.982 | AO10: 4.689957081e-78 | AS10: 0 | AU10: 1 | AX10: -0.9948739461 | BA10: 97.20899169 | BB10: -2.699583863 | BC10: -0.991 | BD10: -2.699583863
I11: 0 | J11: SD of z | K11: =1/SQRT(F10-3) -> 0.1924500897 | L11: =1/SQRT(#REF!) ->  | M11: z for diff | N11: =N9/N10 ->  | O11: 0 | P11: 0 | X11: 0 | AC11: 0 | AN11: -2.976 | AO11: 8.5020837e-78 | AS11: 0 | AU11: 1 | AX11: -0.9948122234 | BA11: 96.05543465 | BB11: -2.646652412 | BC11: -0.99 | BD11: -2.646652412
I12: 0 | J12: CI(z) ul | K12: =K10+$K$5*K11 -> 1.070342425 | L12: =L10+$K$5*L11 ->  | M12: For rtz display | O12: 0 | P12: 0 | X12: 0 | AC12: 0 | AN12: -2.97 | AO12: 1.539783812e-77 | AS12: 0 | AU12: 1 | AX12: -0.9947497595 | BA12: 94.91563776 | BB12: -2.598746003 | BC12: -0.989 | BD12: -2.598746003
A13: 2 | I13: 0 | J13: CI(z) ll | K13: =K10-$K$5*K11 -> 0.3159519359 | L13: =L10-$K$5*L11 ->  | M13: -0.06 | N13: -1 | O13: 0 | P13: 0 | X13: 0 | AC13: 0 | AN13: -2.964 | AO13: 2.785941474e-77 | AS13: 0 | AU13: 1 | AX13: -0.9946865455 | BA13: 93.78943688 | BB13: -2.554988869 | BC13: -0.988 | BD13: -2.554988869
B14: C | C14: =IF(AQ4<100,AQ4,99+(AQ4-99)/10) -> 95 | E14: Display cat's eye intervals | I14: 0 | J14: CI(z)moe | K14: =$K$5*K11 -> 0.3771952447 | M14: 0 | N14: 1 | O14: 0 | P14: 0 | X14: 0 | AC14: 0 | AN14: -2.958 | AO14: 5.035726025e-77 | AS14: 0 | AU14: 1 | AX14: -0.9946225724 | BA14: 92.67666984 | BB14: -2.514715943 | BC14: -0.987 | BD14: -2.514715943
I15: 0 | J15: Animation points | M15: -9 | N15: 9 | O15: 0 | P15: 0 | X15: 0 | AC15: 0 | AN15: -2.952 | AO15: 9.093478921e-77 | AS15: 0 | AU15: 1 | AX15: -0.9945578312 | BA15: 91.5771764 | BB15: -2.477410257 | BC15: -0.986 | BD15: -2.477410257
E16: Amount of bulge | F16: =AT1 -> 35 | I16: 0 | J16: =IF(ancount>=2,1,NA()) ->  | K16: =E9 -> 0.6 | L16: Lfig | M16: rtz? | N16: TRUE | O16: 0 | P16: 0 | X16: 0 | AC16: 0 | AN16: -2.946 | AO16: 1.640498739e-76 | AS16: 0 | AU16: 1 | AX16: -0.9944923126 | BA16: 90.49079823 | BB16: -2.442661996 | BC16: -0.985 | BD16: -2.442661996
I17: 0 | J17: =IF(ancount>=4,1+M6,NA()) ->  | K17: =E21 -> 0.7895901951 | L17: Lfig | M17: counter | N17: 1 | O17: 0 | P17: 0 | X17: 0 | AC17: =$I$1 -> 0 | AN17: -2.94 | AO17: 2.956647864e-76 | AS17: 0 | AU17: 1 | AX17: -0.9944260076 | BA17: 89.41737889 | BB17: -2.410140783 | BC17: -0.984 | BD17: -2.410140783
I18: 0 | J18: =IF(ancount>=4,1+M6,NA()) ->  | K18: =E22 -> 0.3058420678 | L18: Lfig | O18: 0 | P18: 0 | X18: 0 | AC18: 0 | AN18: -2.934 | AO18: 5.323547963e-76 | AS18: 0 | AU18: 1 | AX18: -0.9943589065 | BA18: 88.3567638 | BB18: -2.379576392 | BC18: -0.983 | BD18: -2.379576392
A19: 3 | B19: Descriptive statistics | I19: 0 | J19: =IF(ancount>=2,VLOOKUP(E9,BC2:BD2000,2),NA()) ->  | K19: =E9 -> 0.6 | L19: Rfig | O19: 0 | P19: 0 | X19: 0 | AC19: 0 | AN19: -2.928 | AO19: 9.575922112e-76 | AS19: 0 | AU19: 1 | AX19: -0.994291 | BA19: 87.30880024 | BB19: -2.350744978 | BC19: -0.982 | BD19: -2.350744978
E20: r | I20: 0 | J20: =IF(ancount>=2,VLOOKUP(E9,BC2:BD2000,2),NA()) ->  | K20: 0 | L20: Rfig | O20: 0 | P20: 0 | X20: 0 | AC20: 0 | AN20: -2.922 | AO20: 1.720829746e-75 | AS20: 0 | AU20: 1 | AX20: -0.9942222784 | BA20: 86.2733373 | BB20: -2.323459034 | BC20: -0.981 | BD20: -2.323459034
D21: upper CI limit (UL) | E21: =(EXP(2*K12)-1)/(EXP(2*K12)+1) -> 0.7895901951 | I21: 0 | J21: =IF(ancount>=3,VLOOKUP(E9,BC2:BD2000,2),NA()) ->  | K21: 0 | L21: Rfig | O21: 0 | P21: 0 | X21: 0 | AC21: 0 | AN21: -2.916 | AO21: 3.089392372e-75 | AS21: 0 | AU21: 1 | AX21: -0.994152732 | BA21: 85.25022586 | BB21: -2.297559925 | BC21: -0.98 | BD21: -2.297559925
D22: lower CI limit (LL) | E22: =(EXP(2*K13)-1)/(EXP(2*K13)+1) -> 0.3058420678 | I22: 0 | J22: =IF(ancount>=4,K13,NA()) ->  | K22: =VLOOKUP(K13,BB2:BC2000,2) -> 0.305 | L22: Rfig | O22: =$I$1 -> 0 | P22: 0 | X22: 0 | AC22: 0 | AN22: -2.91 | AO22: 5.540973855e-75 | AS22: 0 | AU22: 1 | AX22: -0.994082351 | BA22: 84.2393186 | BB22: -2.272912254 | BC22: -0.979 | BD22: -2.272912254
I23: 0 | J23: =IF(ancount>=4,K12,NA()) ->  | K23: =VLOOKUP(K12,BB2:BC2000,2) -> 0.789 | L23: Rfig | O23: 0 | P23: 0 | X23: 0 | AC23: 0 | AN23: -2.904 | AO23: 9.928348148e-75 | AS23: 0 | AU23: 1 | AX23: -0.9940111253 | BA23: 83.24046995 | BB23: -2.249399529 | BC23: -0.978 | BD23: -2.249399529
D24: CI arm length | E24: r | I24: 0 | J24: =IF(ancount>=4,K13,NA()) ->  | K24: =VLOOKUP(K13,BB2:BC2000,2) -> 0.305 | L24: =3+K13 -> 3.315951936 | O24: 0 | P24: 0 | X24: 0 | AC24: 0 | AN24: -2.898 | AO24: 1.777238695e-74 | AS24: 0 | AU24: 1 | AX24: -0.993939045 | BA24: 82.25353607 | BB24: -2.226920804 | BC24: -0.977 | BD24: -2.226920804
D25: upper arm | E25: =E21-E9 -> 0.1895901951 | I25: 0 | J25: =IF(ancount>=4,K12,NA()) ->  | K25: =VLOOKUP(K12,BB2:BC2000,2) -> 0.789 | L25: =3+K12 -> 4.070342425 | O25: 0 | P25: 0 | X25: 0 | AC25: 0 | AN25: -2.892 | AO25: 3.17828171e-74 | AS25: 0 | AU25: 1 | AX25: -0.9938660998 | BA25: 81.27837483 | BB25: -2.205388024 | BC25: -0.976 | BD25: -2.205388024
D26: lower arm | E26: =E9-E22 -> 0.2941579322 | I26: 0 | J26: z1 label | K26: for cond'l format | O26: 0 | P26: 0 | X26: 0 | AC26: 0 | AN26: -2.886 | AO26: 5.67828103e-74 | AS26: 0 | AU26: 1 | AX26: -0.9937922794 | BA26: 80.31484583 | BB26: -2.184723926 | BC26: -0.975 | BD26: -2.184723926
D27: MOEav | E27: =(E25+E26)/2 -> 0.2418740637 | I27: 0 | J27: =IF(ancount=2,VLOOKUP(E9,BC2:BD2000,2),"") ->  | K27: =IF(E9>=#REF!,9,-9) ->  | O27: 0 | P27: 0 | X27: 0 | AC27: 0 | AN27: -2.88 | AO27: 1.013489475e-73 | AS27: 0 | AU27: 1 | AX27: -0.9937175734 | BA27: 79.36281029 | BB27: -2.164860341 | BC27: -0.974 | BD27: -2.164860341
I28: 0 | O28: 0 | P28: 0 | X28: 0 | AC28: 0 | AN28: -2.874 | AO28: 1.807171914e-73 | AS28: 0 | AU28: 1 | AX28: -0.9936419713 | BA28: 78.42213114 | BB28: -2.14573682 | BC28: -0.973 | BD28: -2.14573682
I29: 0 | O29: 0 | P29: 0 | X29: 0 | AC29: 0 | AN29: -2.868 | AO29: 3.219271166e-73 | AS29: 0 | AU29: 1 | AX29: -0.9935654623 | BA29: 77.49267291 | BB29: -2.127299512 | BC29: -0.972 | BD29: -2.127299512
A30: 4 | B30: r to z transformation | I30: 0 | O30: 0 | P30: 0 | X30: 0 | AC30: 0 | AN30: -2.862 | AO30: 5.729193849e-73 | AS30: 0 | AU30: 1 | AX30: -0.9934880356 | BA30: 76.57430175 | BB30: -2.109500239 | BC30: -0.971 | BD30: -2.109500239
C31: Display r to z transformation | I31: 0 | O31: 0 | P31: 0 | X31: 0 | AC31: 0 | AN31: -2.856 | AO31: 1.018608603e-72 | AS31: 0 | AU31: 1 | AX31: -0.9934096803 | BA31: 75.66688543 | BB31: -2.09229572 | BC31: -0.97 | BD31: -2.09229572
I32: 0 | O32: 0 | P32: 0 | X32: 0 | AC32: 0 | AN32: -2.85 | AO32: 1.809251864e-72 | AS32: 0 | AU32: 1 | AX32: -0.9933303854 | BA32: 74.77029326 | BB32: -2.075646937 | BC32: -0.969 | BD32: -2.075646937
I33: 0 | O33: 0 | P33: 0 | X33: 0 | AC33: 0 | AN33: -2.844 | AO33: 3.210469757e-72 | AS33: 0 | AU33: 1 | AX33: -0.9932501396 | BA33: 73.88439615 | BB33: -2.059518587 | BC33: -0.968 | BD33: -2.059518587
I34: 0 | O34: 0 | P34: 0 | X34: 0 | AC34: 0 | AN34: -2.838 | AO34: 5.691359294e-72 | AS34: 0 | AU34: 1 | AX34: -0.9931689317 | BA34: 73.00906651 | BB34: -2.043878628 | BC34: -0.967 | BD34: -2.043878628
I35: 0 | O35: 0 | P35: 0 | X35: 0 | AC35: 0 | AN35: -2.832 | AO35: 1.007955339e-71 | AS35: 0 | AU35: 1 | AX35: -0.9930867501 | BA35: 72.1441783 | BB35: -2.028697888 | BC35: -0.966 | BD35: -2.028697888
AN36: -2.826 | AO36: 1.783382256e-71 | AS36: 0 | AU36: 1 | AX36: -0.9930035833 | BA36: 71.28960698 | BB36: -2.013949731 | BC36: -0.965 | BD36: -2.013949731
AN37: -2.82 | AO37: 3.152284878e-71 | AS37: 0 | AU37: 1 | AX37: -0.9929194196 | BA37: 70.44522948 | BB37: -1.999609775 | BC37: -0.964 | BD37: -1.999609775
AN38: -2.814 | AO38: 5.566527283e-71 | AS38: 0 | AU38: 1 | AX38: -0.992834247 | BA38: 69.61092422 | BB38: -1.985655641 | BC38: -0.963 | BD38: -1.985655641
AN39: -2.808 | AO39: 9.820217145e-71 | AS39: 0 | AU39: 1 | AX39: -0.9927480536 | BA39: 68.78657105 | BB39: -1.97206674 | BC39: -0.962 | BD39: -1.97206674
AN40: -2.802 | AO40: 1.730755442e-70 | AS40: 0 | AU40: 1 | AX40: -0.9926608273 | BA40: 67.97205126 | BB40: -1.95882409 | BC40: -0.961 | BD40: -1.95882409
AN41: -2.796 | AO41: 3.047391041e-70 | AS41: 0 | AU41: 1 | AX41: -0.9925725557 | BA41: 67.16724756 | BB41: -1.945910149 | BC41: -0.96 | BD41: -1.945910149
AN42: -2.79 | AO42: 5.360416468e-70 | AS42: 0 | AU42: 1 | AX42: -0.9924832265 | BA42: 66.37204406 | BB42: -1.933308676 | BC42: -0.959 | BD42: -1.933308676
AN43: -2.784 | AO43: 9.419909814e-70 | AS43: 0 | AU43: 1 | AX43: -0.992392827 | BA43: 65.58632625 | BB43: -1.921004602 | BC43: -0.958 | BD43: -1.921004602
AN44: -2.778 | AO44: 1.653761293e-69 | AS44: 0 | AU44: 1 | AX44: -0.9923013445 | BA44: 64.80998098 | BB44: -1.908983926 | BC44: -0.957 | BD44: -1.908983926
AN45: -2.772 | AO45: 2.900526024e-69 | AS45: 0 | AU45: 1 | AX45: -0.9922087662 | BA45: 64.04289646 | BB45: -1.897233608 | BC45: -0.956 | BD45: -1.897233608
AN46: -2.766 | AO46: 5.082279856e-69 | AS46: 0 | AU46: 1 | AX46: -0.992115079 | BA46: 63.28496222 | BB46: -1.885741491 | BC46: -0.955 | BD46: -1.885741491
AN47: -2.76 | AO47: 8.896480905e-69 | AS47: 0 | AU47: 1 | AX47: -0.9920202697 | BA47: 62.53606913 | BB47: -1.874496218 | BC47: -0.954 | BD47: -1.874496218
AN48: -2.754 | AO48: 1.555807253e-68 | AS48: 0 | AU48: 1 | AX48: -0.9919243251 | BA48: 61.79610933 | BB48: -1.863487165 | BC48: -0.953 | BD48: -1.863487165
AN49: -2.748 | AO49: 2.7181361e-68 | AS49: 0 | AU49: 1 | AX49: -0.9918272316 | BA49: 61.06497629 | BB49: -1.852704378 | BC49: -0.952 | BD49: -1.852704378
AN50: -2.742 | AO50: 4.744216188e-68 | AS50: 0 | AU50: 1 | AX50: -0.9917289756 | BA50: 60.3425647 | BB50: -1.842138521 | BC50: -0.951 | BD50: -1.842138521
AN51: -2.736 | AO51: 8.272477779e-68 | AS51: 0 | AU51: 1 | AX51: -0.9916295433 | BA51: 59.62877054 | BB51: -1.831780823 | BC51: -0.95 | BD51: -1.831780823
AN52: -2.73 | AO52: 1.441068461e-67 | AS52: 0 | AU52: 1 | AX52: -0.9915289207 | BA52: 58.92349103 | BB52: -1.821623033 | BC52: -0.949 | BD52: -1.821623033
AN53: -2.724 | AO53: 2.50790732e-67 | AS53: 0 | AU53: 1 | AX53: -0.9914270938 | BA53: 58.2266246 | BB53: -1.811657383 | BC53: -0.948 | BD53: -1.811657383
AN54: -2.718 | AO54: 4.36029847e-67 | AS54: 0 | AU54: 1 | AX54: -0.9913240481 | BA54: 57.5380709 | BB54: -1.801876546 | BC54: -0.947 | BD54: -1.801876546
AN55: -2.712 | AO55: 7.573538191e-67 | AS55: 0 | AU55: 1 | AX55: -0.9912197693 | BA55: 56.85773078 | BB55: -1.792273608 | BC55: -0.946 | BD55: -1.792273608
AN56: -2.706 | AO56: 1.314193415e-66 | AS56: 0 | AU56: 1 | AX56: -0.9911142428 | BA56: 56.18550628 | BB56: -1.782842035 | BC56: -0.945 | BD56: -1.782842035
AN57: -2.7 | AO57: 2.278230279e-66 | AS57: 0 | AU57: 1 | AX57: -0.9910074537 | BA57: 55.52130058 | BB57: -1.773575647 | BC57: -0.944 | BD57: -1.773575647
AN58: -2.694 | AO58: 3.945606934e-66 | AS58: 0 | AU58: 1 | AX58: -0.990899387 | BA58: 54.86501804 | BB58: -1.764468591 | BC58: -0.943 | BD58: -1.764468591
AN59: -2.688 | AO59: 6.826653854e-66 | AS59: 0 | AU59: 1 | AX59: -0.9907900277 | BA59: 54.21656416 | BB59: -1.755515319 | BC59: -0.942 | BD59: -1.755515319
AN60: -2.682 | AO60: 1.179994037e-65 | AS60: 0 | AU60: 1 | AX60: -0.9906793605 | BA60: 53.57584555 | BB60: -1.74671057 | BC60: -0.941 | BD60: -1.74671057
AN61: -2.676 | AO61: 2.037650092e-65 | AS61: 0 | AU61: 1 | AX61: -0.9905673697 | BA61: 52.94276996 | BB61: -1.738049345 | BC61: -0.94 | BD61: -1.738049345
AN62: -2.67 | AO62: 3.515258524e-65 | AS62: 0 | AU62: 1 | AX62: -0.9904540398 | BA62: 52.31724622 | BB62: -1.729526896 | BC62: -0.939 | BD62: -1.729526896
AN63: -2.664 | AO63: 6.058467708e-65 | AS63: 0 | AU63: 1 | AX63: -0.9903393548 | BA63: 51.69918425 | BB63: -1.721138704 | BC63: -0.938 | BD63: -1.721138704
AN64: -2.658 | AO64: 1.043148627e-64 | AS64: 0 | AU64: 1 | AX64: -0.9902232988 | BA64: 51.08849505 | BB64: -1.712880469 | BC64: -0.937 | BD64: -1.712880469
AN65: -2.652 | AO65: 1.7943512e-64 | AS65: 0 | AU65: 1 | AX65: -0.9901058556 | BA65: 50.48509068 | BB65: -1.704748092 | BC65: -0.936 | BD65: -1.704748092
AN66: -2.646 | AO66: 3.083518612e-64 | AS66: 0 | AU66: 1 | AX66: -0.9899870086 | BA66: 49.88888424 | BB66: =0.5*LN((1+BC66)/(1-BC66)) -> -1.696737668 | BC66: -0.935 | BD66: =BB66 -> -1.696737668
AN67: -2.64 | AO67: 5.293751669e-64 | AS67: 0 | AU67: 1 | AX67: -0.9898667413 | BA67: 49.29978989 | BB67: -1.688845467 | BC67: -0.934 | BD67: -1.688845467
AN68: -2.634 | AO68: 9.079426574e-64 | AS68: 0 | AU68: 1 | AX68: -0.989745037 | BA68: 48.7177228 | BB68: -1.68106793 | BC68: -0.933 | BD68: -1.68106793
AN69: -2.628 | AO69: 1.555718953e-63 | AS69: 0 | AU69: 1 | AX69: -0.9896218785 | BA69: 48.14259914 | BB69: -1.673401655 | BC69: -0.932 | BD69: -1.673401655
AN70: -2.622 | AO70: 2.663064777e-63 | AS70: 0 | AU70: 1 | AX70: -0.9894972487 | BA70: 47.57433609 | BB70: -1.665843389 | BC70: -0.931 | BD70: -1.665843389
AN71: -2.616 | AO71: =$F$16*NORMDIST(AN71,$K$10,$K$11,FALSE) -> 4.554179919e-63 | AP71: =IF(AND($AT$2,ancount>=3),AO71*$AQ$1,NA()) ->  | AQ71: =IF(AND($AT$2,ancount>=3),-AO71*$AQ$1,NA()) ->  | AS71: 0 | AT71: =IF(ISNUMBER(AR71),AP71,NA()) ->  | AU71: 1 | AX71: -0.9893711303 | AY71: =IF(AND($AT$2,AX71>$E$22,AX71<$E$21),AX71,NA()) ->  | BA71: 47.01285183 | BB71: -1.65839002 | BC71: -0.93 | BD71: -1.65839002
AN72: -2.61 | AO72: 7.780661171e-63 | AR72: =IF(AND($AT$2,AN72>$K$13,AN72<$K$12),AN72,NA()) ->  | AS72: 0 | AU72: 1 | AV72: =IF($AT$2,AU72+AO72*$AQ$2*BA72,NA()) ->  | AW72: =IF($AT$2,AU72-AO72*$AQ$2*BA72,NA()) ->  | AX72: =(EXP(2*AN72)-1)/(EXP(2*AN72)+1) -> -0.9892435057 | AZ72: =IF(ISNUMBER(AY72),AV72-AU72,NA()) ->  | BA72: =(AN72-AN73)/(AX72-AX73) -> 46.4580655 | BB72: -1.651038568 | BC72: -0.929 | BD72: -1.651038568
AN73: =AN72+$AO$4 -> -2.604 | AO73: 1.328007991e-62 | AS73: 0 | AU73: 1 | AX73: -0.9891143569 | BA73: 45.90989721 | BB73: -1.643786178 | BC73: -0.928 | BD73: -1.643786178
AN74: -2.598 | AO74: 2.264450017e-62 | AS74: 0 | AU74: 1 | AX74: -0.9889836662 | BA74: 45.36826802 | BB74: -1.636630114 | BC74: -0.927 | BD74: -1.636630114
AN75: -2.592 | AO75: 3.857470874e-62 | AS75: 0 | AU75: 1 | AX75: -0.9888514151 | BA75: 44.83309994 | BB75: -1.62956775 | BC75: -0.926 | BD75: -1.62956775
AN76: -2.586 | AO76: 6.564783951e-62 | AS76: 0 | AU76: 1 | AX76: -0.9887175854 | BA76: 44.30431591 | BB76: -1.622596567 | BC76: -0.925 | BD76: -1.622596567
AN77: -2.58 | AO77: 1.116133352e-61 | AS77: 0 | AU77: 1 | AX77: -0.9885821584 | BA77: 43.78183976 | BB77: -1.615714145 | BC77: -0.924 | BD77: -1.615714145
AN78: -2.574 | AO78: 1.895787257e-61 | AS78: 0 | AU78: 1 | AX78: -0.9884451153 | BA78: 43.26559628 | BB78: -1.608918162 | BC78: -0.923 | BD78: -1.608918162
AN79: -2.568 | AO79: 3.216925323e-61 | AS79: 0 | AU79: 1 | AX79: -0.988306437 | BA79: 42.75551112 | BB79: -1.602206381 | BC79: -0.922 | BD79: -1.602206381
AN80: -2.562 | AO80: 5.45343605e-61 | AS80: 0 | AU80: 1 | AX80: -0.9881661042 | BA80: 42.25151082 | BB80: -1.595576655 | BC80: -0.921 | BD80: -1.595576655
AN81: -2.556 | AO81: 9.235859888e-61 | AS81: 0 | AU81: 1 | AX81: -0.9880240975 | BA81: 41.75352281 | BB81: -1.589026915 | BC81: -0.92 | BD81: -1.589026915
AN82: -2.55 | AO82: 1.562652146e-60 | AS82: 0 | AU82: 1 | AX82: -0.987880397 | BA82: 41.26147538 | BB82: -1.582555171 | BC82: -0.919 | BD82: -1.582555171
AN83: -2.544 | AO83: 2.641345152e-60 | AS83: 0 | AU83: 1 | AX83: -0.9877349829 | BA83: 40.77529767 | BB83: -1.576159504 | BC83: -0.918 | BD83: -1.576159504
AN84: -2.538 | AO84: 4.460318419e-60 | AS84: 0 | AU84: 1 | AX84: -0.987587835 | BA84: 40.29491967 | BB84: -1.569838068 | BC84: -0.917 | BD84: -1.569838068
AN85: -2.532 | AO85: 7.524617669e-60 | AS85: 0 | AU85: 1 | AX85: -0.9874389329 | BA85: 39.82027221 | BB85: -1.56358908 | BC85: -0.916 | BD85: -1.56358908
AN86: -2.526 | AO86: 1.268179936e-59 | AS86: 0 | AU86: 1 | AX86: -0.9872882558 | BA86: 39.35128693 | BB86: -1.557410823 | BC86: -0.915 | BD86: -1.557410823
AN87: -2.52 | AO87: 2.135281728e-59 | AS87: 0 | AU87: 1 | AX87: -0.9871357831 | BA87: 38.88789631 | BB87: -1.551301638 | BC87: -0.914 | BD87: -1.551301638
AN88: -2.514 | AO88: 3.591760377e-59 | AS88: 0 | AU88: 1 | AX88: -0.9869814934 | BA88: 38.43003361 | BB88: -1.545259925 | BC88: -0.913 | BD88: -1.545259925
AN89: -2.508 | AO89: 6.035835463e-59 | AS89: 0 | AU89: 1 | AX89: -0.9868253655 | BA89: 37.9776329 | BB89: -1.53928414 | BC89: -0.912 | BD89: -1.53928414
AN90: -2.502 | AO90: 1.013316922e-58 | AS90: 0 | AU90: 1 | AX90: -0.9866673778 | BA90: 37.53062903 | BB90: -1.533372787 | BC90: -0.911 | BD90: -1.533372787
AN91: -2.496 | AO91: 1.699538723e-58 | AS91: 0 | AU91: 1 | AX91: -0.9865075084 | BA91: 37.08895763 | BB91: -1.527524425 | BC91: -0.91 | BD91: -1.527524425
AN92: -2.49 | AO92: 2.847703039e-58 | AS92: 0 | AU92: 1 | AX92: -0.9863457352 | BA92: 36.65255511 | BB92: -1.521737659 | BC92: -0.909 | BD92: -1.521737659
AN93: -2.484 | AO93: 4.766901729e-58 | AS93: 0 | AU93: 1 | AX93: -0.9861820358 | BA93: 36.22135862 | BB93: -1.516011137 | BC93: -0.908 | BD93: -1.516011137
AN94: -2.478 | AO94: 7.971784776e-58 | AS94: 0 | AU94: 1 | AX94: -0.9860163877 | BA94: 35.79530606 | BB94: -1.510343556 | BC94: -0.907 | BD94: -1.510343556
AN95: -2.472 | AO95: 1.331842277e-57 | AS95: 0 | AU95: 1 | AX95: -0.9858487679 | BA95: 35.37433609 | BB95: -1.504733651 | BC95: -0.906 | BD95: -1.504733651
AN96: -2.466 | AO96: 2.222940787e-57 | AS96: 0 | AU96: 1 | AX96: -0.9856791534 | BA96: 34.95838808 | BB96: -1.499180198 | BC96: -0.905 | BD96: -1.499180198
AN97: -2.46 | AO97: 3.706643838e-57 | AS97: 0 | AU97: 1 | AX97: -0.9855075208 | BA97: 34.54740214 | BB97: -1.493682012 | BC97: -0.904 | BD97: -1.493682012
AN98: -2.454 | AO98: 6.174640638e-57 | AS98: 0 | AU98: 1 | AX98: -0.9853338464 | BA98: 34.14131908 | BB98: -1.488237944 | BC98: -0.903 | BD98: -1.488237944
AN99: -2.448 | AO99: 1.027591213e-56 | AS99: 0 | AU99: 1 | AX99: -0.9851581063 | BA99: 33.74008043 | BB99: -1.482846882 | BC99: -0.902 | BD99: -1.482846882
AN100: -2.442 | AO100: 1.708468368e-56 | AS100: 0 | AU100: 1 | AX100: -0.9849802762 | BA100: 33.3436284 | BB100: -1.477507746 | BC100: -0.901 | BD100: -1.477507746
AN101: -2.436 | AO101: 2.837731942e-56 | AS101: 0 | AU101: 1 | AX101: -0.9848003318 | BA101: 32.95190592 | BB101: -1.47221949 | BC101: -0.9 | BD101: -1.47221949
AN102: -2.43 | AO102: 4.70883704e-56 | AS102: 0 | AU102: 1 | AX102: -0.9846182482 | BA102: 32.56485657 | BB102: -1.466981097 | BC102: -0.899 | BD102: -1.466981097
AN103: -2.424 | AO103: 7.806094758e-56 | AS103: 0 | AU103: 1 | AX103: -0.9844340005 | BA103: 32.1824246 | BB103: -1.461791583 | BC103: -0.898 | BD103: -1.461791583
AN104: -2.418 | AO104: 1.292801486e-55 | AS104: 0 | AU104: 1 | AX104: -0.9842475634 | BA104: 31.80455497 | BB104: -1.456649991 | BC104: -0.897 | BD104: -1.456649991
AN105: -2.412 | AO105: 2.138984965e-55 | AS105: 0 | AU105: 1 | AX105: -0.9840589111 | BA105: 31.43119324 | BB105: -1.451555392 | BC105: -0.896 | BD105: -1.451555392
AN106: -2.406 | AO106: 3.535586665e-55 | AS106: 0 | AU106: 1 | AX106: -0.983868018 | BA106: 31.06228565 | BB106: -1.446506884 | BC106: -0.895 | BD106: -1.446506884
AN107: -2.4 | AO107: 5.838390081e-55 | AS107: 0 | AU107: 1 | AX107: -0.9836748577 | BA107: 30.69777909 | BB107: -1.44150359 | BC107: -0.894 | BD107: -1.44150359
AN108: -2.394 | AO108: 9.63169219e-55 | AS108: 0 | AU108: 1 | AX108: -0.9834794038 | BA108: 30.33762106 | BB108: -1.436544658 | BC108: -0.893 | BD108: -1.436544658
AN109: -2.388 | AO109: 1.587413054e-54 | AS109: 0 | AU109: 1 | AX109: -0.9832816296 | BA109: 29.98175969 | BB109: -1.431629261 | BC109: -0.892 | BD109: -1.431629261
AN110: -2.382 | AO110: 2.613696557e-54 | AS110: 0 | AU110: 1 | AX110: -0.9830815079 | BA110: 29.63014375 | BB110: -1.426756593 | BC110: -0.891 | BD110: -1.426756593
AN111: -2.376 | AO111: 4.29930494e-54 | AS111: 0 | AU111: 1 | AX111: -0.9828790114 | BA111: 29.2827226 | BB111: -1.421925871 | BC111: -0.89 | BD111: -1.421925871
AN112: -2.37 | AO112: 7.065114418e-54 | AS112: 0 | AU112: 1 | AX112: -0.9826741124 | BA112: 28.93944622 | BB112: -1.417136333 | BC112: -0.889 | BD112: -1.417136333
AN113: -2.364 | AO113: 1.159893234e-53 | AS113: 0 | AU113: 1 | AX113: -0.982466783 | BA113: 28.60026515 | BB113: -1.412387238 | BC113: -0.888 | BD113: -1.412387238
AN114: -2.358 | AO114: 1.90236872e-53 | AS114: 0 | AU114: 1 | AX114: -0.9822569947 | BA114: 28.26513058 | BB114: -1.407677863 | BC114: -0.887 | BD114: -1.407677863
AN115: -2.352 | AO115: 3.117089294e-53 | AS115: 0 | AU115: 1 | AX115: -0.982044719 | BA115: 27.93399423 | BB115: -1.403007507 | BC115: -0.886 | BD115: -1.403007507
AN116: -2.346 | AO116: 5.102484056e-53 | AS116: 0 | AU116: 1 | AX116: -0.981829927 | BA116: 27.60680842 | BB116: -1.398375486 | BC116: -0.885 | BD116: -1.398375486
AN117: -2.34 | AO117: 8.344338912e-53 | AS117: 0 | AU117: 1 | AX117: -0.9816125893 | BA117: 27.28352604 | BB117: -1.393781132 | BC117: -0.884 | BD117: -1.393781132
AN118: -2.334 | AO118: 1.363264355e-52 | AS118: 0 | AU118: 1 | AX118: -0.9813926763 | BA118: 26.96410054 | BB118: -1.389223797 | BC118: -0.883 | BD118: -1.389223797
AN119: -2.328 | AO119: 2.225082354e-52 | AS119: 0 | AU119: 1 | AX119: -0.9811701583 | BA119: 26.6484859 | BB119: -1.384702848 | BC119: -0.882 | BD119: -1.384702848
AN120: -2.322 | AO120: 3.628189527e-52 | AS120: 0 | AU120: 1 | AX120: -0.9809450048 | BA120: 26.3366367 | BB120: -1.380217668 | BC120: -0.881 | BD120: -1.380217668
AN121: -2.316 | AO121: 5.910329686e-52 | AS121: 0 | AU121: 1 | AX121: -0.9807171852 | BA121: 26.02850801 | BB121: -1.375767657 | BC121: -0.88 | BD121: -1.375767657
AN122: -2.31 | AO122: 9.618587819e-52 | AS122: 0 | AU122: 1 | AX122: -0.9804866688 | BA122: 25.72405547 | BB122: -1.371352227 | BC122: -0.879 | BD122: -1.371352227
AN123: -2.304 | AO123: 1.56382729e-51 | AS123: 0 | AU123: 1 | AX123: -0.980253424 | BA123: 25.42323524 | BB123: -1.366970808 | BC123: -0.878 | BD123: -1.366970808
AN124: -2.298 | AO124: 2.540060885e-51 | AS124: 0 | AU124: 1 | AX124: -0.9800174195 | BA124: 25.126004 | BB124: -1.362622841 | BC124: -0.877 | BD124: -1.362622841
AN125: -2.292 | AO125: 4.121709046e-51 | AS125: 0 | AU125: 1 | AX125: -0.979778623 | BA125: 24.83231894 | BB125: -1.358307782 | BC125: -0.876 | BD125: -1.358307782
AN126: -2.286 | AO126: 6.681721992e-51 | AS126: 0 | AU126: 1 | AX126: -0.9795370024 | BA126: 24.54213778 | BB126: -1.354025101 | BC126: -0.875 | BD126: -1.354025101
AN127: -2.28 | AO127: 1.08212477e-50 | AS127: 0 | AU127: 1 | AX127: -0.9792925249 | BA127: 24.25541873 | BB127: -1.349774278 | BC127: -0.874 | BD127: -1.349774278
AN128: -2.274 | AO128: 1.750830648e-50 | AS128: 0 | AU128: 1 | AX128: -0.9790451575 | BA128: 23.97212049 | BB128: -1.345554808 | BC128: -0.873 | BD128: -1.345554808
AN129: -2.268 | AO129: 2.830015459e-50 | AS129: 0 | AU129: 1 | AX129: -0.9787948668 | BA129: 23.69220229 | BB129: -1.341366197 | BC129: -0.872 | BD129: -1.341366197
AN130: -2.262 | AO130: 4.569948874e-50 | AS130: 0 | AU130: 1 | AX130: -0.9785416189 | BA130: 23.41562379 | BB130: =0.5*LN((1+BC130)/(1-BC130)) -> -1.337207961 | BC130: -0.871 | BD130: =BB130 -> -1.337207961
AN131: -2.256 | AO131: 7.372448386e-50 | AS131: 0 | AU131: 1 | AX131: -0.9782853797 | BA131: 23.14234519 | BB131: -1.33307963 | BC131: -0.87 | BD131: -1.33307963
AN132: -2.25 | AO132: 1.188201253e-49 | AS132: 0 | AU132: 1 | AX132: -0.9780261147 | BA132: 22.87232712 | BB132: -1.328980742 | BC132: -0.869 | BD132: -1.328980742
AN133: -2.244 | AO133: 1.913137289e-49 | AS133: 0 | AU133: 1 | AX133: -0.977763789 | BA133: 22.60553071 | BB133: -1.324910848 | BC133: -0.868 | BD133: -1.324910848
AN134: -2.238 | AO134: 3.077372959e-49 | AS134: 0 | AU134: 1 | AX134: -0.9774983672 | BA134: 22.34191753 | BB134: -1.320869508 | BC134: -0.867 | BD134: -1.320869508
AN135: -2.232 | AO135: =$F$16*NORMDIST(AN135,$K$10,$K$11,FALSE) -> 4.945292633e-49 | AP135: =IF(AND($AT$2,ancount>=3),AO135*$AQ$1,NA()) ->  | AQ135: =IF(AND($AT$2,ancount>=3),-AO135*$AQ$1,NA()) ->  | AS135: 0 | AT135: =IF(ISNUMBER(AR135),AP135,NA()) ->  | AU135: 1 | AX135: -0.9772298137 | AY135: =IF(AND($AT$2,AX135>$E$22,AX135<$E$21),AX135,NA()) ->  | BA135: 22.08144962 | BB135: -1.316856291 | BC135: -0.866 | BD135: -1.316856291
AN136: -2.226 | AO136: 7.93929106e-49 | AR136: =IF(AND($AT$2,AN136>$K$13,AN136<$K$12),AN136,NA()) ->  | AS136: 0 | AU136: 1 | AV136: =IF($AT$2,AU136+AO136*$AQ$2*BA136,NA()) ->  | AW136: =IF($AT$2,AU136-AO136*$AQ$2*BA136,NA()) ->  | AX136: =(EXP(2*AN136)-1)/(EXP(2*AN136)+1) -> -0.9769580924 | AZ136: =IF(ISNUMBER(AY136),AV136-AU136,NA()) ->  | BA136: =(AN136-AN137)/(AX136-AX137) -> 21.82408948 | BB136: -1.312870777 | BC136: -0.865 | BD136: -1.312870777
AN137: =AN136+$AO$4 -> -2.22 | AO137: 1.273354471e-48 | AS137: 0 | AU137: 1 | AX137: -0.9766831669 | BA137: 21.56980004 | BB137: -1.308912555 | BC137: -0.864 | BD137: -1.308912555
AN138: -2.214 | AO138: 2.040303513e-48 | AS138: 0 | AU138: 1 | AX138: -0.9764050002 | BA138: 21.31854469 | BB138: -1.304981222 | BC138: -0.863 | BD138: -1.304981222
AN139: -2.208 | AO139: 3.266014456e-48 | AS139: 0 | AU139: 1 | AX139: -0.9761235551 | BA139: 21.07028725 | BB139: -1.301076386 | BC139: -0.862 | BD139: -1.301076386
AN140: -2.202 | AO140: 5.222991197e-48 | AS140: 0 | AU140: 1 | AX140: -0.9758387939 | BA140: 20.82499196 | BB140: -1.297197662 | BC140: -0.861 | BD140: -1.297197662
AN141: -2.196 | AO141: 8.344462184e-48 | AS141: 0 | AU141: 1 | AX141: -0.9755506785 | BA141: 20.5826235 | BB141: -1.293344672 | BC141: -0.86 | BD141: -1.293344672
AN142: -2.19 | AO142: 1.331849873e-47 | AS142: 0 | AU142: 1 | AX142: -0.9752591705 | BA142: 20.34314698 | BB142: -1.289517049 | BC142: -0.859 | BD142: -1.289517049
AN143: -2.184 | AO143: 2.123684816e-47 | AS143: 0 | AU143: 1 | AX143: -0.9749642309 | BA143: 20.1065279 | BB143: -1.285714431 | BC143: -0.858 | BD143: -1.285714431
AN144: -2.178 | AO144: 3.383005597e-47 | AS144: 0 | AU144: 1 | AX144: -0.9746658204 | BA144: 19.8727322 | BB144: -1.281936466 | BC144: -0.857 | BD144: -1.281936466
AN145: -2.172 | AO145: 5.38385353e-47 | AS145: 0 | AU145: 1 | AX145: -0.9743638991 | BA145: 19.6417262 | BB145: -1.278182807 | BC145: -0.856 | BD145: -1.278182807
AN146: -2.166 | AO146: 8.55976067e-47 | AS146: 0 | AU146: 1 | AX146: -0.974058427 | BA146: 19.41347664 | BB146: -1.274453116 | BC146: -0.855 | BD146: -1.274453116
AN147: -2.16 | AO147: 1.359589724e-46 | AS147: 0 | AU147: 1 | AX147: -0.9737493633 | BA147: 19.18795066 | BB147: -1.270747062 | BC147: -0.854 | BD147: -1.270747062
AN148: -2.154 | AO148: 2.157406539e-46 | AS148: 0 | AU148: 1 | AX148: -0.9734366671 | BA148: 18.96511577 | BB148: -1.26706432 | BC148: -0.853 | BD148: -1.26706432
AN149: -2.148 | AO149: 3.420061958e-46 | AS149: 0 | AU149: 1 | AX149: -0.9731202968 | BA149: 18.74493989 | BB149: -1.263404571 | BC149: -0.852 | BD149: -1.263404571
AN150: -2.142 | AO150: 5.416438578e-46 | AS150: 0 | AU150: 1 | AX150: -0.9728002104 | BA150: 18.52739131 | BB150: -1.259767503 | BC150: -0.851 | BD150: -1.259767503
AN151: -2.136 | AO151: 8.569816786e-46 | AS151: 0 | AU151: 1 | AX151: -0.9724763655 | BA151: 18.3124387 | BB151: -1.256152812 | BC151: -0.85 | BD151: -1.256152812
AN152: -2.13 | AO152: 1.354587668e-45 | AS152: 0 | AU152: 1 | AX152: -0.9721487194 | BA152: 18.10005112 | BB152: -1.252560197 | BC152: -0.849 | BD152: -1.252560197
AN153: -2.124 | AO153: 2.139048165e-45 | AS153: 0 | AU153: 1 | AX153: -0.9718172286 | BA153: 17.89019797 | BB153: -1.248989366 | BC153: -0.848 | BD153: -1.248989366
AN154: -2.118 | AO154: 3.374518983e-45 | AS154: 0 | AU154: 1 | AX154: -0.9714818494 | BA154: 17.68284904 | BB154: -1.245440029 | BC154: -0.847 | BD154: -1.245440029
AN155: -2.112 | AO155: 5.318400679e-45 | AS155: 0 | AU155: 1 | AX155: -0.9711425376 | BA155: 17.47797447 | BB155: -1.241911906 | BC155: -0.846 | BD155: -1.241911906
AN156: -2.106 | AO156: 8.373906291e-45 | AS156: 0 | AU156: 1 | AX156: -0.9707992484 | BA156: 17.27554476 | BB156: -1.23840472 | BC156: -0.845 | BD156: -1.23840472
AN157: -2.1 | AO157: 1.317203893e-44 | AS157: 0 | AU157: 1 | AX157: -0.9704519366 | BA157: 17.07553075 | BB157: -1.234918198 | BC157: -0.844 | BD157: -1.234918198
AN158: -2.094 | AO158: 2.06993058e-44 | AS158: 0 | AU158: 1 | AX158: -0.9701005566 | BA158: 16.87790365 | BB158: -1.231452076 | BC158: -0.843 | BD158: -1.231452076
AN159: -2.088 | AO159: 3.249648751e-44 | AS159: 0 | AU159: 1 | AX159: -0.9697450622 | BA159: 16.682635 | BB159: -1.228006092 | BC159: -0.842 | BD159: -1.228006092
AN160: -2.082 | AO160: 5.096768733e-44 | AS160: 0 | AU160: 1 | AX160: -0.9693854068 | BA160: 16.48969667 | BB160: -1.22457999 | BC160: -0.841 | BD160: -1.22457999
AN161: -2.076 | AO161: 7.98603667e-44 | AS161: 0 | AU161: 1 | AX161: -0.9690215432 | BA161: 16.29906088 | BB161: -1.221173518 | BC161: -0.84 | BD161: -1.221173518
AN162: -2.07 | AO162: 1.250102253e-43 | AS162: 0 | AU162: 1 | AX162: -0.9686534239 | BA162: 16.11070018 | BB162: -1.21778643 | BC162: -0.839 | BD162: -1.21778643
AN163: -2.064 | AO163: 1.954958946e-43 | AS163: 0 | AU163: 1 | AX163: -0.9682810006 | BA163: 15.92458745 | BB163: -1.214418484 | BC163: -0.838 | BD163: -1.214418484
AN164: -2.058 | AO164: 3.0542713e-43 | AS164: 0 | AU164: 1 | AX164: -0.9679042247 | BA164: 15.74069589 | BB164: -1.211069442 | BC164: -0.837 | BD164: -1.211069442
AN165: -2.052 | AO165: 4.767112999e-43 | AS165: 0 | AU165: 1 | AX165: -0.9675230472 | BA165: 15.55899901 | BB165: -1.207739072 | BC165: -0.836 | BD165: -1.207739072
AN166: -2.046 | AO166: 7.433291215e-43 | AS166: 0 | AU166: 1 | AX166: -0.9671374182 | BA166: 15.37947066 | BB166: -1.204427143 | BC166: -0.835 | BD166: -1.204427143
AN167: -2.04 | AO167: 1.157936421e-42 | AS167: 0 | AU167: 1 | AX167: -0.9667472878 | BA167: 15.20208497 | BB167: -1.201133432 | BC167: -0.834 | BD167: -1.201133432
AN168: -2.034 | AO168: 1.802047137e-42 | AS168: 0 | AU168: 1 | AX168: -0.9663526051 | BA168: 15.02681641 | BB168: -1.197857718 | BC168: -0.833 | BD168: -1.197857718
AN169: -2.028 | AO169: 2.801724612e-42 | AS169: 0 | AU169: 1 | AX169: -0.9659533189 | BA169: 14.85363973 | BB169: -1.194599783 | BC169: -0.832 | BD169: -1.194599783
AN170: -2.022 | AO170: 4.351736686e-42 | AS170: 0 | AU170: 1 | AX170: -0.9655493775 | BA170: 14.68253 | BB170: -1.191359415 | BC170: -0.831 | BD170: -1.191359415
AN171: -2.016 | AO171: 6.75270285e-42 | AS171: 0 | AU171: 1 | AX171: -0.9651407286 | BA171: 14.51346258 | BB171: -1.188136404 | BC171: -0.83 | BD171: -1.188136404
AN172: -2.01 | AO172: 1.046816441e-41 | AS172: 0 | AU172: 1 | AX172: -0.9647273193 | BA172: 14.34641313 | BB172: -1.184930546 | BC172: -0.829 | BD172: -1.184930546
AN173: -2.004 | AO173: 1.621217549e-41 | AS173: 0 | AU173: 1 | AX173: -0.9643090963 | BA173: 14.18135757 | BB173: -1.181741638 | BC173: -0.828 | BD173: -1.181741638
AN174: -1.998 | AO174: 2.508360327e-41 | AS174: 0 | AU174: 1 | AX174: -0.9638860057 | BA174: 14.01827216 | BB174: -1.178569481 | BC174: -0.827 | BD174: -1.178569481
AN175: -1.992 | AO175: 3.877184039e-41 | AS175: 0 | AU175: 1 | AX175: -0.9634579928 | BA175: 13.8571334 | BB175: -1.175413881 | BC175: -0.826 | BD175: -1.175413881
AN176: -1.986 | AO176: 5.987158767e-41 | AS176: 0 | AU176: 1 | AX176: -0.9630250029 | BA176: 13.69791809 | BB176: -1.172274646 | BC176: -0.825 | BD176: -1.172274646
AN177: -1.98 | AO177: 9.236405672e-41 | AS177: 0 | AU177: 1 | AX177: -0.9625869801 | BA177: 13.5406033 | BB177: -1.169151588 | BC177: -0.824 | BD177: -1.169151588
AN178: -1.974 | AO178: 1.423518414e-40 | AS178: 0 | AU178: 1 | AX178: -0.9621438684 | BA178: 13.38516638 | BB178: -1.166044521 | BC178: -0.823 | BD178: -1.166044521
AN179: -1.968 | AO179: 2.19180062e-40 | AS179: 0 | AU179: 1 | AX179: -0.961695611 | BA179: 13.23158495 | BB179: -1.162953264 | BC179: -0.822 | BD179: -1.162953264
AN180: -1.962 | AO180: 3.371451117e-40 | AS180: 0 | AU180: 1 | AX180: -0.9612421505 | BA180: 13.07983688 | BB180: -1.159877637 | BC180: -0.821 | BD180: -1.159877637
AN181: -1.956 | AO181: 5.180963762e-40 | AS181: 0 | AU181: 1 | AX181: -0.9607834292 | BA181: 12.92990033 | BB181: -1.156817465 | BC181: -0.82 | BD181: -1.156817465
AN182: -1.95 | AO182: 7.953936288e-40 | AS182: 0 | AU182: 1 | AX182: -0.9603193885 | BA182: 12.78175371 | BB182: -1.153772574 | BC182: -0.819 | BD182: -1.153772574
AN183: -1.944 | AO183: 1.219920493e-39 | AS183: 0 | AU183: 1 | AX183: -0.9598499694 | BA183: 12.63537568 | BB183: -1.150742794 | BC183: -0.818 | BD183: -1.150742794
AN184: -1.938 | AO184: 1.869213081e-39 | AS184: 0 | AU184: 1 | AX184: -0.9593751121 | BA184: 12.49074517 | BB184: -1.147727958 | BC184: -0.817 | BD184: -1.147727958
AN185: -1.932 | AO185: 2.861303738e-39 | AS185: 0 | AU185: 1 | AX185: -0.9588947565 | BA185: 12.34784134 | BB185: -1.144727901 | BC185: -0.816 | BD185: -1.144727901
AN186: -1.926 | AO186: 4.375694354e-39 | AS186: 0 | AU186: 1 | AX186: -0.9584088416 | BA186: 12.20664362 | BB186: -1.141742461 | BC186: -0.815 | BD186: -1.141742461
AN187: -1.92 | AO187: 6.685099269e-39 | AS187: 0 | AU187: 1 | AX187: -0.957917306 | BA187: 12.06713168 | BB187: -1.138771478 | BC187: -0.814 | BD187: -1.138771478
AN188: -1.914 | AO188: 1.020343985e-38 | AS188: 0 | AU188: 1 | AX188: -0.9574200876 | BA188: 11.92928542 | BB188: -1.135814797 | BC188: -0.813 | BD188: -1.135814797
AN189: -1.908 | AO189: 1.555833871e-38 | AS189: 0 | AU189: 1 | AX189: -0.9569171236 | BA189: 11.793085 | BB189: -1.132872262 | BC189: -0.812 | BD189: -1.132872262
AN190: -1.902 | AO190: 2.370051054e-38 | AS190: 0 | AU190: 1 | AX190: -0.9564083509 | BA190: 11.65851081 | BB190: -1.129943721 | BC190: -0.811 | BD190: -1.129943721
AN191: -1.896 | AO191: 3.60686632e-38 | AS191: 0 | AU191: 1 | AX191: -0.9558937054 | BA191: 11.52554345 | BB191: -1.127029026 | BC191: -0.81 | BD191: -1.127029026
AN192: -1.89 | AO192: 5.483782956e-38 | AS192: 0 | AU192: 1 | AX192: -0.9553731226 | BA192: 11.39416379 | BB192: -1.124128029 | BC192: -0.809 | BD192: -1.124128029
AN193: -1.884 | AO193: 8.32929673e-38 | AS193: 0 | AU193: 1 | AX193: -0.9548465372 | BA193: 11.26435291 | BB193: -1.121240584 | BC193: -0.808 | BD193: -1.121240584
AN194: -1.878 | AO194: 1.263904548e-37 | AS194: 0 | AU194: 1 | AX194: -0.9543138835 | BA194: 11.13609212 | BB194: =0.5*LN((1+BC194)/(1-BC194)) -> -1.118366551 | BC194: -0.807 | BD194: =BB194 -> -1.118366551
AN195: -1.872 | AO195: 1.916011382e-37 | AS195: 0 | AU195: 1 | AX195: -0.9537750948 | BA195: 11.00936294 | BB195: -1.115505787 | BC195: -0.806 | BD195: -1.115505787
AN196: -1.866 | AO196: 2.901748433e-37 | AS196: 0 | AU196: 1 | AX196: -0.9532301042 | BA196: 10.88414712 | BB196: -1.112658156 | BC196: -0.805 | BD196: -1.112658156
AN197: -1.86 | AO197: 4.390351562e-37 | AS197: 0 | AU197: 1 | AX197: -0.9526788437 | BA197: 10.76042664 | BB197: -1.109823521 | BC197: -0.804 | BD197: -1.109823521
AN198: -1.854 | AO198: 6.636157789e-37 | AS198: 0 | AU198: 1 | AX198: -0.952121245 | BA198: 10.63818368 | BB198: -1.107001747 | BC198: -0.803 | BD198: -1.107001747
AN199: -1.848 | AO199: =$F$16*NORMDIST(AN199,$K$10,$K$11,FALSE) -> 1.002102106e-36 | AP199: =IF(AND($AT$2,ancount>=3),AO199*$AQ$1,NA()) ->  | AQ199: =IF(AND($AT$2,ancount>=3),-AO199*$AQ$1,NA()) ->  | AS199: 0 | AT199: =IF(ISNUMBER(AR199),AP199,NA()) ->  | AU199: 1 | AX199: -0.9515572389 | AY199: =IF(AND($AT$2,AX199>$E$22,AX199<$E$21),AX199,NA()) ->  | BA199: 10.51740064 | BB199: -1.104192704 | BC199: -0.802 | BD199: -1.104192704
AN200: -1.842 | AO200: 1.511767874e-36 | AR200: =IF(AND($AT$2,AN200>$K$13,AN200<$K$12),AN200,NA()) ->  | AS200: 0 | AU200: 1 | AV200: =IF($AT$2,AU200+AO200*$AQ$2*BA200,NA()) ->  | AW200: =IF($AT$2,AU200-AO200*$AQ$2*BA200,NA()) ->  | AX200: =(EXP(2*AN200)-1)/(EXP(2*AN200)+1) -> -0.9509867558 | AZ200: =IF(ISNUMBER(AY200),AV200-AU200,NA()) ->  | BA200: =(AN200-AN201)/(AX200-AX201) -> 10.39806011 | BB200: -1.10139626 | BC200: -0.801 | BD200: -1.10139626
... 925 more rows

Sheet Sample r
B1: copyhere | C1: params | G1: Sample r | M1: =$L$1 -> 0 | N1: 0 | O1: 0 | P1: 0 | Q1: 0 | R1: 0 | S1: 0 | T1: 0 | U1: 0 | V1: 0 | W1: 0 | X1: 0 | AY1: slider | AZ1: y initial | BA1: 449 | BC1: ndatasets | BD1: 246 | BF1: Mark r? | BG1: Disp CI? | BH1: latest r | BI1: =CG2 -> 0.480343681 | BJ1: Mark r | BU1: y against | BV1: slope | BW1: =CG3 -> 0.5794390574 | BX1: =IF(AND(NOT(ISNA(BZ9)),CC3),-11,NA()) ->  | BY1: =$BW$2+$BW$1*BX1 ->  | BZ1: x against | CA1: slope | CB1: =CG5 -> 0.3981955461 | CC1: =IF(AND(NOT(ISNA(BZ9)),CC4),-11,NA()) ->  | CD1: =$CB$2+$CB$1*CC1 ->  | CF1: covariance | CG1: =SUM(CG9:CG308)/(COUNT(CG9:CG308)-1) -> 0.4824733666
B2: 0.869312923 | C2: =RAND() -> 0.1652449139 | G2: Take a sequence of samples | L2: =$L$1 -> 0 | X2: =$L$1 -> 0 | AY2: 160 | BC2: ncaptL | BD2: 5 | BF2: FALSE | BG2: FALSE | BH2: z for C | BI2: =NORMSINV(0.5+G20/200) -> 1.959963985 | BJ2: =IF(BF2,J8,NA()) ->  | BK2: 0.07 | BU2: x | BV2: intercept | BW2: =CG4 -> 0.2156326035 | BX2: =IF(AND(NOT(ISNA(BZ9)),CC3),11,NA()) ->  | BY2: =$BW$2+$BW$1*BX2 ->  | BZ2: y | CA2: intercept | CB2: =CG6 -> 0.1345102483 | CC2: =IF(AND(NOT(ISNA(BZ9)),CC4),11,NA()) ->  | CD2: =$CB$2+$CB$1*CC2 ->  | CF2: r | CG2: =CG1/(BX7*BY7) -> 0.480343681
B3: 30 | C3: =G11 -> 30 | G3: See r, CIs, and the | L3: 0 | X3: 0 | AY3: N | AZ3: xinc | BA3: =AM25/40000 -> 0.01955 | BC3: ncaptU | BD3: 5 | BF3: DspCapt? | BG3: rswitch | BH3: z from r | BI3: =0.5*LN((1+BI1)/(1-BI1)) -> 0.5234309443 | BJ3: =IF(BF2,J8,NA()) ->  | BK3: 0.8 | BV3: for zoom | BW3: =BW4/2 -> 3 | BZ3: TRUE | CB3: Disp y against x? | CC3: FALSE | CF3: slope y ag x | CG3: =CG1/(BX7^2) -> 0.5794390574
B4: 0.6 | C4: =J8 -> 0.6 | G4: distribution of r values | L4: 0 | X4: 0 | AY4: 30 | AZ4: yinc | BA4: =AM28/14000 -> 0.03142857143 | BF4: FALSE | BG4: FALSE | BH4: SD of z | BI4: =1/SQRT(G11) -> 0.1825741858 | BV4: zoom ctr | BW4: 6 | CB4: Disp x against y? | CC4: FALSE | CF4: intercept y ag x | CG4: =BY6-CG3*BX6 -> 0.2156326035
B5: 95 | C5: =G20 -> 95 | L5: 0 | X5: 0 | AY5: C | AZ5: maxpoints | BA5: 1000 | BE5: C OK? | BF5: DisOK? | BG5: DispOK? | BH5: CI(z) ul | BI5: =BI3+BI2*BI4 -> 0.8812697731 | BJ5: CI(r) ul | BK5: =(EXP(2*BI5)-1)/(EXP(2*BI5)+1) -> 0.7070548704 | BL5: u arm (r) | BM5: =BK5-BI1 -> 0.2267111894 | BV5: sqrt(1-r^2) | BW5: =SQRT(1-J8^2) -> 0.8 | CA5: display means? | CB5: FALSE | CF5: slope x ag y | CG5: =CG1/(BY7^2) -> 0.3981955461
B6: FALSE | C6: =AND(BF2,BF4,BG2) -> FALSE | E6: 1 | F6: Choose r and n | L6: 0 | X6: 0 | AY6: 95 | BA6: display lastpoint | BE6: =B5=C5 -> TRUE | BF6: =AND(B3=C3,B4=C4) -> TRUE | BG6: =AND(B3=C3,B4=C4,B5=C5,B6=C6) -> TRUE | BH6: CI(z) ll | BI6: =BI3-BI2*BI4 -> 0.1655921156 | BJ6: CI(r) ll | BK6: =(EXP(2*BI6)-1)/(EXP(2*BI6)+1) -> 0.1640949812 | BL6: l arm (r) | BM6: =BI1-BK6 -> 0.3162486998 | BW6: mean | BX6: =AVERAGE(BX9:BX308) -> -0.4475876378 | BY6: =AVERAGE(BY9:BY308) -> -0.04371715551 | BZ6: =IF(AND(NOT(ISNA(BZ9)),CB5),BX6,NA()) ->  | CA6: =BY6 -> -0.04371715551 | CF6: intercept x ag y | CG6: =BY6-CG5*BX6 -> 0.1345102483
J7: Correlation | L7: 0 | X7: 0 | AZ7: all | BA7: =BB11 -> 0.48875 | BB7: =BD11 -> 0.4242857143 | BC7: maxy | BF7: captL? | BG7: =IF(AND(ISNUMBER(BH11),ISNUMBER(BO11)),AND(BH11>$J$8,$J$8>BH11-BO11),FALSE) -> FALSE | BH7: capture? | BI7: =AND(BI1+BM5>$J$8,$J$8>BI1-BM6) -> TRUE | BW7: sd | BX7: =STDEV(BX9:BX308) -> 0.9124998241 | BY7: =STDEV(BY9:BY308) -> 1.10074944 | BZ7: Main display | CB7: point past | CC7: Disp pts past edge | CE7: To calc r and reg lines
G8: SLIDER | I8: r | J8: =(AY2-100)/100 -> 0.6 | L8: 0 | X8: 0 | AZ8: captured | BA8: =BA7 -> 0.48875 | BB8: =BF11 ->  | BC8: =MAX(AY11:AY1010) -> 0.6442857143 | BF8: captU? | BG8: =IF(AND(ISNUMBER(BH11),ISNUMBER(BP11)),AND(BH11+BP11>$J$8,$J$8>=BH11),FALSE) -> FALSE | BU8: n | BV8: Rand x | BW8: Rand y | BX8: x | BY8: y | BZ8: x disp | CA8: y disp | CB8: edge? | CC8: x ext | CD8: y ext | CE8: x-Mx | CF8: y-My | CG8: Xprod
I9: Sample r | J9: =IF(AND(BF6,J28>0),CG2,"") -> 0.480343681 | L9: 0 | X9: 0 | AY9: Clean | AZ9: not capt'd | BA9: =BA7 -> 0.48875 | BB9: =BG11 ->  | BC9: All | BD9: Y disp for | BH9: Latest 25 datasets, for display | BQ9: Disp r for | BS9: Captured | BT9: Not captured | BU9: 1 | BV9: =IF(BU9>$G$11,"",MOD(B2*100000013,1)) -> 0.5964807123 | BW9: =IF(BU9>$G$11,"",MOD(BV9*100000013,1)) -> 0.9837071151 | BX9: =IF(BU9>$G$11,"",NORMSINV(BV9)) -> 0.2442482305 | BY9: =IF(BU9>$G$11,"",BX9*$J$8+$BW$5*NORMSINV(BW9)) -> 1.856269168 | BZ9: =IF(OR(NOT($BF$6),nsets=0,BX9=""),NA(),BX9) -> 0.2442482305 | CA9: =IF(BY9="",NA(),BY9) -> 1.856269168 | CB9: =OR(BZ9<-forzoom,BZ9>forzoom,CA9<-forzoom,CA9>forzoom) -> FALSE | CC9: =IF(NOT(CB9),NA(),IF(ISNA(BZ9),NA(),IF(BZ9<-forzoom,-forzoom,IF(BZ9>forzoom,forzoom,BZ9)))) ->  | CD9: =IF(ISNA(CA9),NA(),IF(CA9<-forzoom,-forzoom,IF(CA9>forzoom,forzoom,CA9))) -> 1.856269168 | CE9: =IF(BX9="","",BX9-$BX$6) -> 0.6918358683 | CF9: =IF(BY9="","",BY9-$BY$6) -> 1.899986324 | CG9: =IF(CE9="","",CE9*CF9) -> 1.314478688
A10: index | B10: r | C10: capture? | L10: 0 | X10: 0 | AY10: Ydisp | AZ10: n(Xtick) | BA10: n(Ytick) | BB10: Xdisp | BC10: Ydisp | BD10: no capt | BE10: Captured? | BF10: Captured | BG10: Not captured | BH10: r | BJ10: z from r | BK10: CI(z) ll | BL10: CI(z) ul | BM10: CI(r) ll | BN10: CI(r) ul | BO10: l arm (r) | BP10: u arm (r) | BQ10: no capt | BR10: Captured? | BS10: r | BT10: r | BU10: 2 | BV10: =IF(BU10>$G$11,"",MOD(BW9*100000013,1)) -> 0.2936055511 | BW10: 0.9292340726 | BX10: -0.5428819241 | BY10: 0.8503591692 | BZ10: -0.5428819241 | CA10: 0.8503591692 | CB10: FALSE | CD10: 0.8503591692 | CE10: -0.09529428629 | CF10: 0.8940763247 | CG10: -0.08520036525
A11: =nsets+1 -> 247 | B11: =BI1 -> 0.480343681 | C11: =BI7 -> TRUE | F11: N | G11: =AY4 -> 30 | L11: 0 | X11: 0 | AY11: =IF(ISNUMBER(BC11),BC11,0) -> 0.4242857143 | AZ11: =IF(B12="",NA(),ROUND(B12/$BA$3,0)) -> 25 | BA11: =COUNTIF(AZ11:$AZ$1010,AZ11)-1 -> 13 | BB11: =AZ11*$BA$3 -> 0.48875 | BC11: =IF(NOT($BF$6),NA(),IF(B12="","",$BA$4/2+$BA$4*BA11)) -> 0.4242857143 | BD11: =IF(AND($BF$4,$BF$2,$BG$2),IF($BE$6,NA(),BC11),BC11) -> 0.4242857143 | BE11: =BR11 ->  | BF11: =IF(NOT(AND($BF$4,$BF$2,$BG$2,BE11)),NA(),BC11) ->  | BG11: =IF(NOT(AND($BF$4,$BF$2,$BG$2,NOT(BE11))),NA(),BC11) ->  | BH11: =IF(NOT($BF$6),NA(),IF(B12="",NA(),B12)) -> 0.480343681 | BI11: 1 | BJ11: =0.5*LN((1+BH11)/(1-BH11)) -> 0.5234309443 | BK11: =BJ11-$BI$2*$BI$4 -> 0.1655921156 | BL11: =BJ11+$BI$2*$BI$4 -> 0.8812697731 | BM11: =(EXP(2*BK11)-1)/(EXP(2*BK11)+1) -> 0.1640949812 | BN11: =(EXP(2*BL11)-1)/(EXP(2*BL11)+1) -> 0.7070548704 | BO11: =IF(NOT($BG$2),NA(),BH11-BM11) ->  | BP11: =IF(NOT($BG$2),NA(),BN11-BH11) ->  | BQ11: =IF(AND($BF$4,$BF$2,$BG$2),NA(),BH11) -> 0.480343681 | BR11: =AND(BH11+BP11>$J$8,$J$8>BH11-BO11) ->  | BS11: =IF(NOT(AND($BF$4,$BF$2,BR11)),NA(),BH11) ->  | BT11: =IF(NOT(AND($BF$4,$BF$2,NOT(BR11))),NA(),BH11) ->  | BU11: 3 | BV11: 0.3366461843 | BW11: 0.8089222163 | BX11: -0.4216337489 | BY11: 0.4461649383 | BZ11: -0.4216337489 | CA11: 0.4461649383 | CB11: FALSE | CD11: 0.4461649383 | CE11: 0.02595388895 | CF11: 0.4898820938 | CG11: 0.01271434546
A12: 246 | B12: 0.480343681 | C12: TRUE | L12: 0 | X12: 0 | AY12: =IF(ISNUMBER(BC12),BC12,0) -> 0.4242857143 | AZ12: 34 | BA12: =COUNTIF(AZ12:$AZ$1010,AZ12)-1 -> 13 | BB12: 0.6647 | BC12: 0.4242857143 | BD12: 0.4242857143 | BE12: =BR12 ->  | BF12: =IF(NOT(AND($BF$4,$BF$2,$BG$2,BE12)),NA(),BC12) ->  | BG12: =IF(NOT(AND($BF$4,$BF$2,$BG$2,NOT(BE12))),NA(),BC12) ->  | BH12: 0.6652554664 | BI12: 2 | BJ12: =0.5*LN((1+BH12)/(1-BH12)) -> 0.8021830846 | BK12: =BJ12-$BI$2*$BI$4 -> 0.4443442559 | BL12: =BJ12+$BI$2*$BI$4 -> 1.160021913 | BM12: =(EXP(2*BK12)-1)/(EXP(2*BK12)+1) -> 0.4172389066 | BN12: =(EXP(2*BL12)-1)/(EXP(2*BL12)+1) -> 0.8210470226 | BQ12: 0.6652554664 | BU12: 4 | BV12: 0.1456084102 | BW12: 0.9168312997 | BX12: -1.055456005 | BY12: 0.4739814071 | BZ12: -1.055456005 | CA12: 0.4739814071 | CB12: FALSE | CD12: 0.4739814071 | CE12: -0.6078683672 | CF12: 0.5176985626 | CG12: -0.31469258
A13: 245 | B13: 0.6652554664 | C13: TRUE | E13: 2 | L13: 0 | X13: 0 | AY13: 0.2357142857 | AZ13: 35 | BA13: =COUNTIF(AZ13:$AZ$1010,AZ13)-1 -> 7 | BB13: 0.68425 | BC13: 0.2357142857 | BD13: 0.2357142857 | BH13: 0.6863200877 | BI13: 3 | BJ13: 0.8409654462 | BK13: 0.4831266175 | BL13: 1.198804275 | BM13: 0.4487441169 | BN13: 0.8332895232 | BQ13: 0.6863200877 | BU13: 5 | BV13: 0.8850658983 | BW13: 0.3357784003 | BX13: 1.20069843 | BY13: 0.3812091714 | BZ13: 1.20069843 | CA13: 0.3812091714 | CB13: FALSE | CD13: 0.3812091714 | CE13: 1.648286068 | CF13: 0.4249263269 | CG13: 0.7004001445
A14: 244 | B14: 0.6863200877 | C14: TRUE | L14: 0 | X14: 0 | AY14: 0.33 | AZ14: 38 | BA14: =COUNTIF(AZ14:$AZ$1010,AZ14)-1 -> 10 | BB14: 0.7429 | BC14: 0.33 | BD14: 0.33 | BH14: 0.7394565518 | BI14: 4 | BJ14: 0.949279191 | BK14: 0.5914403622 | BL14: 1.30711802 | BM14: 0.5309307406 | BN14: 0.8635443722 | BQ14: 0.7394565518 | BU14: 6 | BV14: 0.3953125328 | BW14: 0.4173183888 | BX14: -0.2654990189 | BY14: -0.3263062032 | BZ14: -0.2654990189 | CA14: -0.3263062032 | CB14: FALSE | CD14: -0.3263062032 | CE14: 0.1820886189 | CF14: -0.2825890477 | CG14: -0.05145624942
A15: 243 | B15: 0.7394565518 | C15: TRUE | L15: 0 | X15: 0 | AY15: 0.2042857143 | AZ15: 21 | BA15: =COUNTIF(AZ15:$AZ$1010,AZ15)-1 -> 6 | BB15: 0.41055 | BC15: 0.2042857143 | BD15: 0.2042857143 | BH15: 0.408103999 | BI15: 5 | BJ15: 0.4333342257 | BK15: 0.07549539695 | BL15: 0.7911730544 | BM15: 0.07535229314 | BN15: 0.6590730553 | BQ15: 0.408103999 | BU15: 7 | BV15: 0.3071085066 | BW15: 0.6484431475 | BX15: -0.5040631328 | BY15: 0.002458662221 | BZ15: -0.5040631328 | CA15: 0.002458662221 | CB15: FALSE | CD15: 0.002458662221 | CE15: -0.05647549498 | CF15: 0.04617581773 | CG15: -0.002607802163
A16: 242 | B16: 0.408103999 | C16: TRUE | L16: 0 | X16: 0 | AY16: 0.5814285714 | AZ16: 30 | BA16: =COUNTIF(AZ16:$AZ$1010,AZ16)-1 -> 18 | BB16: 0.5865 | BC16: 0.5814285714 | BD16: 0.5814285714 | BH16: 0.5811085084 | BI16: 6 | BJ16: 0.6641347756 | BK16: 0.3062959468 | BL16: 1.021973604 | BM16: 0.2970636422 | BN16: 0.7706691753 | BQ16: 0.5811085084 | BU16: 8 | BV16: 0.1837701648 | BW16: 0.8737495393 | BX16: -0.9010902628 | BY16: 0.374782604 | BZ16: -0.9010902628 | CA16: 0.374782604 | CB16: FALSE | CD16: 0.374782604 | CE16: -0.4535026249 | CF16: 0.4184997595 | CG16: -0.1897907395
A17: 241 | B17: 0.5811085084 | C17: TRUE | L17: 0 | X17: 0 | AY17: 0.2357142857 | AZ17: 39 | BA17: =COUNTIF(AZ17:$AZ$1010,AZ17)-1 -> 7 | BB17: 0.76245 | BC17: 0.2357142857 | BD17: 0.2357142857 | BH17: 0.7682847293 | BI17: 7 | BJ17: 1.01612797 | BK17: 0.6582891411 | BL17: 1.373966799 | BM17: 0.5772237171 | BN17: 0.879593082 | BQ17: 0.7682847293 | BU17: 9 | BV17: 0.284353599 | BW17: 0.591826126 | BX17: -0.5699565064 | BY17: -0.1561779244 | BZ17: -0.5699565064 | CA17: -0.1561779244 | CB17: FALSE | CD17: -0.1561779244 | CE17: -0.1223688686 | CF17: -0.1124607689 | CG17: 0.01376169705
A18: 240 | B18: 0.7682847293 | C18: TRUE | L18: 0 | X18: 0 | AY18: 0.4242857143 | AZ18: 27 | BA18: =COUNTIF(AZ18:$AZ$1010,AZ18)-1 -> 13 | BB18: 0.52785 | BC18: 0.4242857143 | BD18: 0.4242857143 | BH18: 0.52593756 | BI18: 8 | BJ18: 0.5845126253 | BK18: 0.2266737965 | BL18: 0.942351454 | BM18: 0.2228697175 | BN18: 0.7363007578 | BQ18: 0.52593756 | BU18: 10 | BV18: 0.29168199 | BW18: 0.7946086377 | BX18: -0.5484776377 | BY18: 0.3289270044 | BZ18: -0.5484776377 | CA18: 0.3289270044 | CB18: FALSE | CD18: 0.3289270044 | CE18: -0.1008899998 | CF18: 0.3726441599 | CG18: -0.03759606924
A19: 239 | B19: 0.52593756 | C19: TRUE | E19: 3 | F19: CIs | L19: 0 | X19: 0 | AY19: 0.2671428571 | AZ19: 31 | BA19: =COUNTIF(AZ19:$AZ$1010,AZ19)-1 -> 8 | BB19: 0.60605 | BC19: 0.2671428571 | BD19: 0.2671428571 | BH19: 0.6108428606 | BI19: 9 | BJ19: 0.7102648088 | BK19: 0.35242598 | BL19: 1.068103637 | BM19: 0.3385252698 | BN19: 0.7887456942 | BQ19: 0.6108428606 | BU19: 11 | BV19: 0.09896670282 | BW19: 0.5684541911 | BX19: -1.287461715 | BY19: -0.6345250188 | BZ19: -1.287461715 | CA19: -0.6345250188 | CB19: FALSE | CD19: -0.6345250188 | CE19: -0.8398740769 | CF19: -0.5908078633 | CG19: 0.4962042088
A20: 238 | B20: 0.6108428606 | C20: TRUE | F20: C | G20: =IF(AY6<100,AY6,99+(AY6-99)/10) -> 95 | L20: 0 | X20: 0 | AY20: 0.6442857143 | AZ20: 36 | BA20: =COUNTIF(AZ20:$AZ$1010,AZ20)-1 -> 20 | BB20: 0.7038 | BC20: 0.6442857143 | BD20: 0.6442857143 | BH20: 0.7036312463 | BI20: 10 | BJ20: 0.8744564054 | BK20: 0.5166175766 | BL20: 1.232295234 | BM20: 0.4750852337 | BN20: 0.8432437953 | BQ20: 0.7036312463 | BU20: 12 | BV20: 0.4987721294 | BW20: 0.4256842583 | BX20: -0.003077819982 | BY20: -0.1517447592 | BZ20: -0.003077819982 | CA20: -0.1517447592 | CB20: FALSE | CD20: -0.1517447592 | CE20: 0.4445098178 | CF20: -0.1080276037 | CG20: -0.04801933044
A21: 237 | B21: 0.7036312463 | C21: TRUE | L21: 0 | X21: 0 | AY21: 0.33 | AZ21: 26 | BA21: =COUNTIF(AZ21:$AZ$1010,AZ21)-1 -> 10 | BB21: 0.5083 | BC21: 0.33 | BD21: 0.33 | BH21: 0.5127925493 | BI21: 11 | BJ21: 0.5665112915 | BK21: 0.2086724628 | BL21: 0.9243501203 | BM21: 0.2056954793 | BN21: 0.7279488482 | BQ21: 0.5127925493 | BU21: 13 | BV21: 0.368074283 | BW21: 0.08534638584 | BX21: -0.3369579941 | BY21: -1.298159753 | BZ21: -0.3369579941 | CA21: -1.298159753 | CB21: FALSE | CD21: -1.298159753 | CE21: 0.1106296437 | CF21: -1.254442597 | CG21: -0.1387785376
A22: 236 | B22: 0.5127925493 | C22: TRUE | L22: 0 | M22: =$L$1 -> 0 | N22: 0 | O22: 0 | P22: 0 | Q22: 0 | R22: 0 | S22: 0 | T22: 0 | U22: 0 | V22: 0 | W22: 0 | X22: 0 | Y22: 5 | Z22: Descriptive statistics | AY22: 0.55 | AZ22: 30 | BA22: =COUNTIF(AZ22:$AZ$1010,AZ22)-1 -> 17 | BB22: 0.5865 | BC22: 0.55 | BD22: 0.55 | BH22: 0.5830814761 | BI22: 12 | BJ22: 0.6671188559 | BK22: 0.3092800271 | BL22: 1.024957685 | BM22: 0.2997819692 | BN22: 0.7718781339 | BQ22: 0.5830814761 | BU22: 14 | BV22: 0.6931631416 | BW22: 0.1719446629 | BX22: 0.5048364436 | BY22: -0.4543048759 | BZ22: 0.5048364436 | CA22: -0.4543048759 | CB22: FALSE | CD22: -0.4543048759 | CE22: 0.9524240815 | CF22: -0.4105877203 | CG22: -0.3910536324
A23: 235 | B23: 0.5830814761 | C23: TRUE | L23: 0 | X23: 0 | AA23: X | AB23: Y | AM23: Dot spacing | AY23: 0.2357142857 | AZ23: 28 | BA23: =COUNTIF(AZ23:$AZ$1010,AZ23)-1 -> 7 | BB23: 0.5474 | BC23: 0.2357142857 | BD23: 0.2357142857 | BH23: 0.5542900084 | BI23: 13 | BJ23: 0.6245528183 | BK23: 0.2667139896 | BL23: 0.9823916471 | BM23: 0.2605645564 | BN23: 0.7540993658 | BQ23: 0.5542900084 | BU23: 15 | BV23: 0.5281387419 | BW23: 0.05088894069 | BX23: 0.07059195138 | BY23: -1.266680755 | BZ23: 0.07059195138 | CA23: -1.266680755 | CB23: FALSE | CD23: -1.266680755 | CE23: 0.5181795892 | CF23: -1.2229636 | CG23: -0.6337147757
A24: 234 | B24: 0.5542900084 | C24: TRUE | E24: 4 | F24: Capture of r by CIs | L24: 0 | X24: 0 | Z24: Mean | AA24: =IF(ISNA(BZ9),"",BX6) -> -0.4475876378 | AB24: =IF(ISNA(BZ9),"",BY6) -> -0.04371715551 | AM24: x inc | AY24: 0.2985714286 | AZ24: 38 | BA24: =COUNTIF(AZ24:$AZ$1010,AZ24)-1 -> 9 | BB24: 0.7429 | BC24: 0.2985714286 | BD24: 0.2985714286 | BH24: 0.7494987703 | BI24: 14 | BJ24: 0.9718103896 | BK24: 0.6139715609 | BL24: 1.329649218 | BM24: 0.5469167394 | BN24: 0.869163574 | BQ24: 0.7494987703 | BU24: 16 | BV24: 0.7307510227 | BW24: 0.7694128007 | BX24: 0.6150859585 | BY24: 0.9585831054 | BZ24: 0.6150859585 | CA24: 0.9585831054 | CB24: FALSE | CD24: 0.9585831054 | CE24: 1.062673596 | CF24: 1.002300261 | CG24: 1.065118023
A25: 233 | B25: 0.7494987703 | C25: TRUE | F25: Display line to mark r | L25: 0 | X25: 0 | Z25: SD | AA25: =IF(ISNA(BZ9),"",BX7) -> 0.9124998241 | AB25: =IF(ISNA(BZ9),"",BY7) -> 1.10074944 | AM25: 782 | AY25: 0.3928571429 | AZ25: 34 | BA25: =COUNTIF(AZ25:$AZ$1010,AZ25)-1 -> 12 | BB25: 0.6647 | BC25: 0.3928571429 | BD25: 0.3928571429 | BH25: 0.6563495878 | BI25: 15 | BJ25: 0.7863732598 | BK25: 0.428534431 | BL25: 1.144212089 | BM25: 0.4040957841 | BN25: 0.8158275719 | BQ25: 0.6563495878 | BU25: 17 | BV25: 0.0693334192 | BW25: 0.8217102736 | BX25: -1.480773883 | BY25: -0.1509423567 | BZ25: -1.480773883 | CA25: -0.1509423567 | CB25: FALSE | CD25: -0.1509423567 | CE25: -1.033186245 | CF25: -0.1072252012 | CG25: 0.110783603
A26: 232 | B26: 0.6563495878 | C26: TRUE | G26: Show capture | L26: =$L$1 -> 0 | X26: =$L$1 -> 0 | AL26: 8 | AY26: 0.6442857143 | AZ26: 29 | BA26: =COUNTIF(AZ26:$AZ$1010,AZ26)-1 -> 20 | BB26: 0.56695 | BC26: 0.6442857143 | BD26: 0.6442857143 | BH26: 0.5659040985 | BI26: 16 | BJ26: 0.6414765771 | BK26: 0.2836377483 | BL26: 0.9993154058 | BM26: 0.2762685457 | BN26: 0.761306494 | BQ26: 0.5659040985 | BU26: 18 | BV26: 0.04458020627 | BW26: 0.2070413083 | BX26: -1.699843257 | BY26: -1.673290131 | BZ26: -1.699843257 | CA26: -1.673290131 | CB26: FALSE | CD26: -1.673290131 | CE26: -1.252255619 | CF26: -1.629572976 | CG26: 2.040641915
A27: 231 | B27: 0.5659040985 | C27: TRUE | L27: 0 | X27: 0 | AM27: y inc | AY27: 0.6128571429 | AZ27: 29 | BA27: =COUNTIF(AZ27:$AZ$1010,AZ27)-1 -> 19 | BB27: 0.56695 | BC27: 0.6128571429 | BD27: 0.6128571429 | BH27: 0.5681492186 | BI27: 17 | BJ27: 0.6447856231 | BK27: 0.2869467944 | BL27: 1.002624452 | BM27: 0.2793222283 | BN27: 0.7626941572 | BQ27: 0.5681492186 | BU27: 19 | BV27: 0.5199175924 | BW27: 0.9995559901 | BX27: 0.04994675937 | BY27: 2.689002716 | BZ27: 0.04994675937 | CA27: 2.689002716 | CB27: FALSE | CD27: 2.689002716 | CE27: 0.4975343972 | CF27: 2.732719872 | CG27: 1.359622134
A28: 230 | B28: 0.5681492186 | C28: TRUE | I28: Number of samples taken | J28: =IF(BF6,nsets,"") -> 246 | L28: 0 | X28: 0 | Y28: 6 | Z28: Regression lines | AM28: 440 | AY28: 0.1414285714 | AZ28: 17 | BA28: =COUNTIF(AZ28:$AZ$1010,AZ28)-1 -> 4 | BB28: 0.33235 | BC28: 0.1414285714 | BD28: 0.1414285714 | BH28: 0.3289546597 | BI28: 18 | BJ28: 0.3416556181 | BK28: -0.01618321068 | BL28: 0.6994944468 | BM28: -0.01618179805 | BN28: 0.6040467844 | BQ28: 0.3289546597 | BU28: 20 | BV28: 0.004218563437 | BW28: 0.39858751 | BX28: -2.634057217 | BY28: -1.78603822 | BZ28: -2.634057217 | CA28: -1.78603822 | CB28: FALSE | CD28: -1.78603822 | CE28: -2.186469579 | CF28: -1.742321064 | CG28: 3.809532004
A29: 229 | B29: 0.3289546597 | C29: TRUE | J29: Number of CIs capturing: | L29: 0 | X29: 0 | Z29: Y against X | AY29: 0.5814285714 | AZ29: 29 | BA29: =COUNTIF(AZ29:$AZ$1010,AZ29)-1 -> 18 | BB29: 0.56695 | BC29: 0.5814285714 | BD29: 0.5814285714 | BH29: 0.5721989367 | BI29: 19 | BJ29: 0.6507861165 | BK29: 0.2929472877 | BL29: 1.008624945 | BM29: 0.2848452345 | BN29: 0.7651926847 | BQ29: 0.5721989367 | BU29: 21 | BV29: 0.1806114763 | BW29: 0.9781638831 | BX29: -0.9130372465 | BY29: 1.065956152 | BZ29: -0.9130372465 | CA29: 1.065956152 | CB29: FALSE | CD29: 1.065956152 | CE29: -0.4654496087 | CF29: 1.109673308 | CG29: -0.5164970069
A30: 228 | B30: 0.5721989367 | C30: TRUE | I30: with lower arm | J30: =IF(AND($BF$2,$BF$4,$BG$2,BF6,BE6),nlcapt,"") ->  | L30: 0 | X30: 0 | AA30: Slope | AB30: =IF(ISNA(BZ9),"",IF(CC3,BW1,"")) ->  | AY30: 0.2042857143 | AZ30: 35 | BA30: =COUNTIF(AZ30:$AZ$1010,AZ30)-1 -> 6 | BB30: 0.68425 | BC30: 0.2042857143 | BD30: 0.2042857143 | BH30: 0.6865076595 | BI30: 20 | BJ30: 0.8413201342 | BK30: 0.4834813055 | BL30: 1.199158963 | BM30: 0.4490273359 | BN30: 0.833397894 | BQ30: 0.6865076595 | BU30: 22 | BV30: 0.02513240278 | BW30: 0.6044884175 | BX30: -1.957703575 | BY30: -0.9626363753 | BZ30: -1.957703575 | CA30: -0.9626363753 | CB30: FALSE | CD30: -0.9626363753 | CE30: -1.510115937 | CF30: -0.9189192198 | CG30: 1.387674558
A31: 227 | B31: 0.6865076595 | C31: TRUE | I31: with upper arm | J31: =IF(AND($BF$2,$BF$4,$BG$2,BF6,BE6),nucapt,"") ->  | L31: 0 | X31: 0 | Z31: X against Y | AY31: 0.3614285714 | AZ31: 34 | BA31: =COUNTIF(AZ31:$AZ$1010,AZ31)-1 -> 11 | BB31: 0.6647 | BC31: 0.3614285714 | BD31: 0.3614285714 | BH31: 0.6610316912 | BI31: 21 | BJ31: 0.7946437852 | BK31: 0.4368049564 | BL31: 1.152482614 | BM31: 0.4109925804 | BN31: 0.818574846 | BQ31: 0.6610316912 | BU31: 23 | BV31: 0.6089712232 | BW31: 0.2401389331 | BX31: 0.2766386897 | BY31: -0.398701363 | BZ31: 0.2766386897 | CA31: -0.398701363 | CB31: FALSE | CD31: -0.398701363 | CE31: 0.7242263275 | CF31: -0.3549842075 | CG31: -0.2570889089
A32: 226 | B32: 0.6610316912 | C32: TRUE | L32: 0 | X32: 0 | AA32: Slope | AB32: =IF(ISNA(BZ9),"",IF(CC4,CB1,"")) ->  | AY32: 0.5185714286 | AZ32: 30 | BA32: =COUNTIF(AZ32:$AZ$1010,AZ32)-1 -> 16 | BB32: 0.5865 | BC32: 0.5185714286 | BD32: 0.5185714286 | BH32: 0.5880927916 | BI32: 22 | BJ32: 0.6747454857 | BK32: 0.316906657 | BL32: 1.032584314 | BM32: 0.306707232 | BN32: 0.7749427491 | BQ32: 0.5880927916 | BU32: 24 | BV32: 0.4280614704 | BW32: 0.6037357301 | BX32: -0.1813116773 | BY32: 0.101635869 | BZ32: -0.1813116773 | CA32: 0.101635869 | CB32: FALSE | CD32: 0.101635869 | CE32: 0.2662759605 | CF32: 0.1453530245 | CG32: 0.03870401621
A33: 225 | B33: 0.5880927916 | C33: TRUE | I33: Percent of CIs that capture | J33: =IF(AND($BF$2,$BF$4,nsets>0,$BG$2,BF6,BE6),100*(nlcapt+nucapt)/nsets,"") ->  | K33: % | L33: 0 | X33: 0 | AY33: 0.55 | AZ33: 29 | BA33: =COUNTIF(AZ33:$AZ$1010,AZ33)-1 -> 17 | BB33: 0.56695 | BC33: 0.55 | BD33: 0.55 | BH33: 0.5608017106 | BI33: 23 | BJ33: 0.634001945 | BK33: 0.2761631163 | BL33: 0.9918407738 | BM33: 0.2693502523 | BN33: 0.7581461408 | BQ33: 0.5608017106 | BU33: 25 | BV33: 0.853763923 | BW33: 0.403828308 | BX33: 1.052713861 | BY33: 0.436868112 | BZ33: 1.052713861 | CA33: 0.436868112 | CB33: FALSE | CD33: 0.436868112 | CE33: 1.500301499 | CF33: 0.4805852675 | CG33: 0.7210227972
A34: 224 | B34: 0.5608017106 | C34: TRUE | L34: 0 | X34: 0 | AY34: 0.1728571429 | AZ34: 21 | BA34: =COUNTIF(AZ34:$AZ$1010,AZ34)-1 -> 5 | BB34: 0.41055 | BC34: 0.1728571429 | BD34: 0.1728571429 | BH34: 0.4158316154 | BI34: 24 | BJ34: 0.4426415402 | BK34: 0.08480271143 | BL34: 0.8004803689 | BM34: 0.08460000828 | BN34: 0.6643052373 | BQ34: 0.4158316154 | BU34: 26 | BV34: 0.04839394987 | BW34: 0.6157508343 | BX34: -1.660629404 | BY34: -0.7609058741 | BZ34: -1.660629404 | CA34: -0.7609058741 | CB34: FALSE | CD34: -0.7609058741 | CE34: -1.213041766 | CF34: -0.7171887185 | CG34: 0.8699798699
A35: 223 | B35: 0.4158316154 | C35: TRUE | L35: 0 | X35: 0 | AY35: 0.07857142857 | AZ35: 20 | BA35: =COUNTIF(AZ35:$AZ$1010,AZ35)-1 -> 2 | BB35: 0.391 | BC35: 0.07857142857 | BD35: 0.07857142857 | BH35: 0.3938728576 | BI35: 25 | BJ35: 0.4163758051 | BK35: 0.05853697638 | BL35: 0.7742146339 | BM35: 0.05847020739 | BN35: 0.649373507 | BQ35: 0.3938728576 | BU35: 27 | BV35: 0.4393426031 | BW35: 0.02019636333 | BX35: -0.1526361617 | BY35: -1.731349795 | BZ35: -0.1526361617 | CA35: -1.731349795 | CB35: FALSE | CD35: -1.731349795 | CE35: 0.2949514761 | CF35: -1.687632639 | CG35: -0.497769738
A36: 222 | B36: 0.3938728576 | C36: TRUE | AY36: 0.33 | AZ36: 34 | BA36: =COUNTIF(AZ36:$AZ$1010,AZ36)-1 -> 10 | BB36: 0.6647 | BC36: 0.33 | BD36: 0.33 | BH36: =IF(NOT($BF$6),NA(),IF(B37="",NA(),B37)) -> 0.6595346415 | BI36: 26 | BJ36: =0.5*LN((1+BH36)/(1-BH36)) -> 0.7919895612 | BK36: 0.4341507325 | BL36: =BJ36+$BI$2*$BI$4 -> 1.14982839 | BM36: =(EXP(2*BK36)-1)/(EXP(2*BK36)+1) -> 0.4087842906 | BN36: =(EXP(2*BL36)-1)/(EXP(2*BL36)+1) -> 0.8176972193 | BO36: =IF(NOT($BG$2),NA(),BH36-BM36) ->  | BP36: =IF(NOT($BG$2),NA(),BN36-BH36) ->  | BQ36: =IF(AND($BF$4,$BF$2,$BG$2),NA(),BH36) -> 0.6595346415 | BR36: =AND(BH36+BP36>$J$8,$J$8>BH36-BO36) ->  | BU36: 28 | BV36: 0.5955414623 | BW36: 0.9722598046 | BX36: 0.2418233109 | BY36: 1.677169978 | BZ36: 0.2418233109 | CA36: 1.677169978 | CB36: FALSE | CD36: 1.677169978 | CE36: 0.6894109487 | CF36: 1.720887133 | CG36: 1.186398431
A37: 221 | B37: 0.6595346415 | C37: TRUE | AY37: 0.5185714286 | AZ37: 29 | BA37: =COUNTIF(AZ37:$AZ$1010,AZ37)-1 -> 16 | BB37: 0.56695 | BC37: 0.5185714286 | BD37: 0.5185714286 | BH37: 0.5750353928 | BI37: 27 | BJ37: 0.6550135671 | BK37: 0.2971747384 | BL37: 1.012852396 | BM37: 0.2887249883 | BN37: 0.766939219 | BQ37: 0.5750353928 | BU37: 29 | BV37: 0.1000212282 | BW37: 0.1196996421 | BX37: -1.281430615 | BY37: -1.710050053 | BZ37: -1.281430615 | CA37: -1.710050053 | CB37: FALSE | CD37: -1.710050053 | CE37: -0.8338429776 | CF37: -1.666332897 | CG37: 1.389459985
A38: 220 | B38: 0.5750353928 | C38: TRUE | AY38: 0.3928571429 | AZ38: 27 | BA38: =COUNTIF(AZ38:$AZ$1010,AZ38)-1 -> 12 | BB38: 0.52785 | BC38: 0.3928571429 | BD38: 0.3928571429 | BH38: 0.5361230418 | BI38: 28 | BJ38: 0.5986988375 | BK38: 0.2408600088 | BL38: 0.9565376663 | BM38: 0.236307899 | BN38: 0.7427285028 | BQ38: 0.5361230418 | BU38: 30 | BV38: 0.7623140663 | BW38: 0.5391684026 | BX38: 0.7137660318 | BY38: 0.5069307343 | BZ38: 0.7137660318 | CA38: 0.5069307343 | CB38: FALSE | CD38: 0.5069307343 | CE38: 1.16135367 | CF38: 0.5506478898 | CG38: 0.6394969474
A39: 219 | B39: 0.5361230418 | C39: TRUE | AY39: 0.4871428571 | AZ39: 30 | BA39: =COUNTIF(AZ39:$AZ$1010,AZ39)-1 -> 15 | BB39: 0.5865 | BC39: 0.4871428571 | BD39: 0.4871428571 | BH39: 0.578142878 | BI39: 29 | BJ39: 0.6596686789 | BK39: 0.3018298502 | BL39: 1.017507508 | BM39: 0.2929862819 | BN39: 0.7688493803 | BQ39: 0.578142878 | BU39: 31
A40: 218 | B40: 0.578142878 | C40: TRUE | AY40: 0.1728571429 | AZ40: 35 | BA40: =COUNTIF(AZ40:$AZ$1010,AZ40)-1 -> 5 | BB40: 0.68425 | BC40: 0.1728571429 | BD40: 0.1728571429 | BH40: 0.6877804822 | BI40: 30 | BJ40: 0.8437315488 | BK40: 0.4858927201 | BL40: 1.201570378 | BM40: 0.4509504616 | BN40: 0.8341329769 | BQ40: 0.6877804822 | BU40: 32
A41: 217 | B41: 0.6877804822 | C41: TRUE | AY41: 0.1414285714 | AZ41: 21 | BA41: =COUNTIF(AZ41:$AZ$1010,AZ41)-1 -> 4 | BB41: 0.41055 | BC41: 0.1414285714 | BD41: 0.1414285714 | BH41: 0.4026489802 | BI41: 31 | BJ41: 0.4268064715 | BK41: 0.06896764279 | BL41: 0.7846453003 | BM41: 0.06885850142 | BN41: 0.6553649085 | BQ41: 0.4026489802 | BU41: 33
A42: 216 | B42: 0.4026489802 | C42: TRUE | AY42: 0.4557142857 | AZ42: 30 | BA42: =COUNTIF(AZ42:$AZ$1010,AZ42)-1 -> 14 | BB42: 0.5865 | BC42: 0.4557142857 | BD42: 0.4557142857 | BH42: 0.5785743895 | BI42: 32 | BJ42: 0.6603170796 | BK42: 0.3024782509 | BL42: 1.018155908 | BM42: 0.2935789106 | BN42: 0.7691143602 | BQ42: 0.5785743895 | BU42: 34
A43: 215 | B43: 0.5785743895 | C43: TRUE | AY43: 0.2357142857 | AZ43: 31 | BA43: =COUNTIF(AZ43:$AZ$1010,AZ43)-1 -> 7 | BB43: 0.60605 | BC43: 0.2357142857 | BD43: 0.2357142857 | BH43: 0.6055784577 | BI43: 33 | BJ43: 0.7019095694 | BK43: 0.3440707407 | BL43: 1.059748398 | BM43: 0.3311067252 | BN43: 0.7855675438 | BQ43: 0.6055784577 | BU43: 35
A44: 214 | B44: 0.6055784577 | C44: TRUE | AY44: 0.3614285714 | AZ44: 27 | BA44: =COUNTIF(AZ44:$AZ$1010,AZ44)-1 -> 11 | BB44: 0.52785 | BC44: 0.3614285714 | BD44: 0.3614285714 | BH44: 0.523851182 | BI44: 34 | BJ44: 0.5816328169 | BK44: 0.2237939881 | BL44: 0.9394716456 | BM44: 0.2201312018 | BN44: 0.7349794071 | BQ44: 0.523851182 | BU44: 36
A45: 213 | B45: 0.523851182 | C45: TRUE | AY45: 0.2042857143 | AZ45: 39 | BA45: =COUNTIF(AZ45:$AZ$1010,AZ45)-1 -> 6 | BB45: 0.76245 | BC45: 0.2042857143 | BD45: 0.2042857143 | BH45: 0.7553550759 | BI45: 35 | BJ45: 0.9853092841 | BK45: 0.6274704553 | BL45: 1.343148113 | BM45: 0.556307969 | BN45: 0.8724263128 | BQ45: 0.7553550759 | BU45: 37
A46: 212 | B46: 0.7553550759 | C46: TRUE | AY46: 0.1414285714 | AZ46: 18 | BA46: =COUNTIF(AZ46:$AZ$1010,AZ46)-1 -> 4 | BB46: 0.3519 | BC46: 0.1414285714 | BD46: 0.1414285714 | BH46: 0.3489132222 | BI46: 36 | BJ46: 0.3642057971 | BK46: 0.00636696833 | BL46: 0.7220446258 | BM46: 0.006366882296 | BN46: 0.6181741937 | BQ46: 0.3489132222 | BU46: 38
A47: 211 | B47: 0.3489132222 | C47: TRUE | AY47: 0.1728571429 | AZ47: 39 | BA47: =COUNTIF(AZ47:$AZ$1010,AZ47)-1 -> 5 | BB47: 0.76245 | BC47: 0.1728571429 | BD47: 0.1728571429 | BH47: 0.761107566 | BI47: 37 | BJ47: 0.9988424027 | BK47: 0.641003574 | BL47: 1.356681231 | BM47: 0.5655824874 | BN47: 0.8756210858 | BQ47: 0.761107566 | BU47: 39
A48: 210 | B48: 0.761107566 | C48: TRUE | AY48: 0.2357142857 | AZ48: 33 | BA48: =COUNTIF(AZ48:$AZ$1010,AZ48)-1 -> 7 | BB48: 0.64515 | BC48: 0.2357142857 | BD48: 0.2357142857 | BH48: 0.6396388996 | BI48: 38 | BJ48: 0.7575623641 | BK48: 0.3997235353 | BL48: 1.115401193 | BM48: 0.3797123835 | BN48: 0.8059633507 | BQ48: 0.6396388996 | BU48: 40
A49: 209 | B49: 0.6396388996 | C49: TRUE | AY49: 0.2985714286 | AZ49: 34 | BA49: =COUNTIF(AZ49:$AZ$1010,AZ49)-1 -> 9 | BB49: 0.6647 | BC49: 0.2985714286 | BD49: 0.2985714286 | BH49: 0.6651857332 | BI49: 39 | BJ49: 0.8020579985 | BK49: 0.4442191698 | BL49: 1.159896827 | BM49: 0.4171355911 | BN49: 0.8210062552 | BQ49: 0.6651857332 | BU49: 41
A50: 208 | B50: 0.6651857332 | C50: TRUE | AY50: 0.01571428571 | AZ50: 6 | BA50: =COUNTIF(AZ50:$AZ$1010,AZ50)-1 -> 0 | BB50: 0.1173 | BC50: 0.01571428571 | BD50: 0.01571428571 | BH50: 0.1223642015 | BI50: 40 | BJ50: 0.1229804671 | BK50: -0.2348583617 | BL50: 0.4808192958 | BM50: -0.2306334128 | BN50: 0.446899517 | BQ50: 0.1223642015 | BU50: 42
A51: 207 | B51: 0.1223642015 | C51: FALSE | AY51: 0.33 | AZ51: 27 | BA51: =COUNTIF(AZ51:$AZ$1010,AZ51)-1 -> 10 | BB51: 0.52785 | BC51: 0.33 | BD51: 0.33 | BH51: 0.5346809981 | BI51: 41 | BJ51: 0.5966773119 | BK51: 0.2388384831 | BL51: 0.9545161406 | BM51: 0.2343983487 | BN51: 0.7418207813 | BQ51: 0.5346809981 | BU51: 43
A52: 206 | B52: 0.5346809981 | C52: TRUE | AY52: 0.2671428571 | AZ52: 38 | BA52: =COUNTIF(AZ52:$AZ$1010,AZ52)-1 -> 8 | BB52: 0.7429 | BC52: 0.2671428571 | BD52: 0.2671428571 | BH52: 0.7370843652 | BI52: 42 | BJ52: 0.944065067 | BK52: 0.5862262382 | BL52: 1.301903896 | BM52: 0.5271760525 | BN52: 0.8622124819 | BQ52: 0.7370843652 | BU52: 44
A53: 205 | B53: 0.7370843652 | C53: TRUE | AY53: 0.6128571429 | AZ53: 36 | BA53: =COUNTIF(AZ53:$AZ$1010,AZ53)-1 -> 19 | BB53: 0.7038 | BC53: 0.6128571429 | BD53: 0.6128571429 | BH53: 0.7091626664 | BI53: 43 | BJ53: 0.8854973706 | BK53: 0.5276585418 | BL53: 1.243336199 | BM53: 0.4835892346 | BN53: 0.8464044161 | BQ53: 0.7091626664 | BU53: 45
A54: 204 | B54: 0.7091626664 | C54: TRUE | AY54: 0.11 | AZ54: 41 | BA54: =COUNTIF(AZ54:$AZ$1010,AZ54)-1 -> 3 | BB54: 0.80155 | BC54: 0.11 | BD54: 0.11 | BH54: 0.804490001 | BI54: 44 | BJ54: 1.111210879 | BK54: 0.7533720507 | BL54: 1.469049708 | BM54: 0.637156363 | BN54: 0.8993960205 | BQ54: 0.804490001 | BU54: 46
A55: 203 | B55: 0.804490001 | C55: FALSE | AY55: 0.1414285714 | AZ55: 39 | BA55: =COUNTIF(AZ55:$AZ$1010,AZ55)-1 -> 4 | BB55: 0.76245 | BC55: 0.1414285714 | BD55: 0.1414285714 | BH55: 0.7543170205 | BI55: 45 | BJ55: 0.9828964472 | BK55: 0.6250576185 | BL55: 1.340735276 | BM55: 0.5546396172 | BN55: 0.8718487381 | BQ55: 0.7543170205 | BU55: 47
A56: 202 | B56: 0.7543170205 | C56: TRUE | AY56: 0.2357142857 | AZ56: 38 | BA56: =COUNTIF(AZ56:$AZ$1010,AZ56)-1 -> 7 | BB56: 0.7429 | BC56: 0.2357142857 | BD56: 0.2357142857 | BH56: 0.7349945685 | BI56: 46 | BJ56: 0.9395046199 | BK56: 0.5816657911 | BL56: 1.297343449 | BM56: 0.5238751071 | BN56: 0.8610377073 | BQ56: 0.7349945685 | BU56: 48
A57: 201 | B57: 0.7349945685 | C57: TRUE | AY57: 0.4242857143 | AZ57: 30 | BA57: =COUNTIF(AZ57:$AZ$1010,AZ57)-1 -> 13 | BB57: 0.5865 | BC57: 0.4242857143 | BD57: 0.4242857143 | BH57: 0.5815629579 | BI57: 47 | BJ57: 0.6648212046 | BK57: 0.3069823759 | BL57: 1.022660033 | BM57: 0.2976893684 | BN57: 0.7709477654 | BQ57: 0.5815629579 | BU57: 49
A58: 200 | B58: 0.5815629579 | C58: TRUE | AY58: 0.4242857143 | AZ58: 23 | BA58: =COUNTIF(AZ58:$AZ$1010,AZ58)-1 -> 13 | BB58: 0.44965 | BC58: 0.4242857143 | BD58: 0.4242857143 | BH58: 0.4409987799 | BI58: 48 | BJ58: 0.4734700468 | BK58: 0.115631218 | BL58: 0.8313088755 | BM58: 0.1151186073 | BN58: 0.6811781842 | BQ58: 0.4409987799 | BU58: 50
A59: 199 | B59: 0.4409987799 | C59: TRUE | AY59: 0.3928571429 | AZ59: 23 | BA59: =COUNTIF(AZ59:$AZ$1010,AZ59)-1 -> 12 | BB59: 0.44965 | BC59: 0.3928571429 | BD59: 0.3928571429 | BH59: 0.4544151123 | BI59: 49 | BJ59: 0.4902503532 | BK59: 0.1324115245 | BL59: 0.8480891819 | BM59: 0.1316430645 | BN59: 0.6900698958 | BQ59: 0.4544151123 | BU59: 51
A60: 198 | B60: 0.4544151123 | C60: TRUE | AY60: 0.01571428571 | AZ60: 46 | BA60: =COUNTIF(AZ60:$AZ$1010,AZ60)-1 -> 0 | BB60: 0.8993 | BC60: 0.01571428571 | BD60: 0.01571428571 | BH60: 0.8912042957 | BI60: 50 | BJ60: 1.427748624 | BK60: 1.069909795 | BL60: 1.785587453 | BM60: 0.7894272338 | BN60: 0.9452929303 | BQ60: 0.8912042957 | BU60: 52
A61: 197 | B61: 0.8912042957 | C61: FALSE | AY61: 0.11 | AZ61: 17 | BA61: =COUNTIF(AZ61:$AZ$1010,AZ61)-1 -> 3 | BB61: 0.33235 | BC61: 0.11 | BD61: 0.11 | BH61: 0.3386222705 | BI61: 51 | BJ61: 0.3525355397 | BK61: -0.005303289045 | BL61: 0.7103743684 | BM61: -0.005303239328 | BN61: 0.6109115358 | BQ61: 0.3386222705 | BU61: 53
A62: 196 | B62: 0.3386222705 | C62: TRUE | AY62: 0.3614285714 | AZ62: 23 | BA62: =COUNTIF(AZ62:$AZ$1010,AZ62)-1 -> 11 | BB62: 0.44965 | BC62: 0.3614285714 | BD62: 0.3614285714 | BH62: 0.4417127374 | BI62: 52 | BJ62: 0.4743567247 | BK62: 0.1165178959 | BL62: 0.8321955534 | BM62: 0.1159934452 | BN62: 0.6816531532 | BQ62: 0.4417127374 | BU62: 54
A63: 195 | B63: 0.4417127374 | C63: TRUE | AY63: 0.33 | AZ63: 23 | BA63: =COUNTIF(AZ63:$AZ$1010,AZ63)-1 -> 10 | BB63: 0.44965 | BC63: 0.33 | BD63: 0.33 | BH63: 0.4550743196 | BI63: 53 | BJ63: 0.491081419 | BK63: 0.1332425903 | BL63: 0.8489202478 | BM63: 0.1324596385 | BN63: 0.6905049614 | BQ63: 0.4550743196 | BU63: 55
A64: 194 | B64: 0.4550743196 | C64: TRUE | AY64: 0.4871428571 | AZ64: 29 | BA64: =COUNTIF(AZ64:$AZ$1010,AZ64)-1 -> 15 | BB64: 0.56695 | BC64: 0.4871428571 | BD64: 0.4871428571 | BH64: 0.5695722453 | BI64: 54 | BJ64: 0.6468894568 | BK64: 0.289050628 | BL64: 1.004728286 | BM64: 0.2812607769 | BN64: 0.7635727747 | BQ64: 0.5695722453 | BU64: 56
A65: 193 | B65: 0.5695722453 | C65: TRUE | AY65: 0.07857142857 | AZ65: 41 | BA65: =COUNTIF(AZ65:$AZ$1010,AZ65)-1 -> 2 | BB65: 0.80155 | BC65: 0.07857142857 | BD65: 0.07857142857 | BH65: 0.8093239756 | BI65: 55 | BJ65: 1.12506639 | BK65: 0.7672275611 | BL65: 1.482905219 | BM65: 0.6453144338 | BN65: 0.9020108731 | BQ65: 0.8093239756 | BU65: 57
A66: 192 | B66: 0.8093239756 | C66: FALSE | AY66: 0.3928571429 | AZ66: 25 | BA66: =COUNTIF(AZ66:$AZ$1010,AZ66)-1 -> 12 | BB66: 0.48875 | BC66: 0.3928571429 | BD66: 0.3928571429 | BH66: 0.4932178661 | BI66: 56 | BJ66: 0.5403037584 | BK66: 0.1824649297 | BL66: 0.8981425872 | BM66: 0.1804665759 | BN66: 0.7153922598 | BQ66: 0.4932178661 | BU66: 58
A67: 191 | B67: 0.4932178661 | C67: TRUE | AY67: 0.2042857143 | AZ67: 32 | BA67: =COUNTIF(AZ67:$AZ$1010,AZ67)-1 -> 6 | BB67: 0.6256 | BC67: 0.2042857143 | BD67: 0.2042857143 | BH67: 0.6284360732 | BI67: 57 | BJ67: 0.738827221 | BK67: 0.3809883923 | BL67: 1.09666605 | BM67: 0.3635655224 | BN67: 0.7992982623 | BQ67: 0.6284360732 | BU67: 59
A68: 190 | B68: 0.6284360732 | C68: TRUE | AY68: 0.2042857143 | AZ68: 28 | BA68: =COUNTIF(AZ68:$AZ$1010,AZ68)-1 -> 6 | BB68: 0.5474 | BC68: 0.2042857143 | BD68: 0.2042857143 | BH68: 0.5401525605 | BI68: 58 | BJ68: 0.6043709873 | BK68: 0.2465321585 | BL68: 0.962209816 | BM68: 0.241656082 | BN68: 0.74526094 | BQ68: 0.5401525605 | BU68: 60
A69: 189 | B69: 0.5401525605 | C69: TRUE | AY69: 0.5814285714 | AZ69: 36 | BA69: =COUNTIF(AZ69:$AZ$1010,AZ69)-1 -> 18 | BB69: 0.7038 | BC69: 0.5814285714 | BD69: 0.5814285714 | BH69: 0.7093748317 | BI69: 59 | BJ69: 0.8859243159 | BK69: 0.5280854872 | BL69: 1.243763145 | BM69: 0.4839162676 | BN69: 0.8465254539 | BQ69: 0.7093748317 | BU69: 61
A70: 188 | B70: 0.7093748317 | C70: TRUE | AY70: 0.55 | AZ70: 36 | BA70: =COUNTIF(AZ70:$AZ$1010,AZ70)-1 -> 17 | BB70: 0.7038 | BC70: 0.55 | BD70: 0.55 | BH70: 0.6958003482 | BI70: 60 | BJ70: 0.8591129276 | BK70: 0.5012740988 | BL70: 1.216951756 | BM70: 0.4631185792 | BN70: 0.8387526976 | BQ70: 0.6958003482 | BU70: 62
A71: 187 | B71: 0.6958003482 | C71: TRUE | AY71: 0.5185714286 | AZ71: 36 | BA71: =COUNTIF(AZ71:$AZ$1010,AZ71)-1 -> 16 | BB71: 0.7038 | BC71: 0.5185714286 | BD71: 0.5185714286 | BH71: 0.6963954999 | BI71: 61 | BJ71: 0.8602675585 | BK71: 0.5024287298 | BL71: 1.218106387 | BM71: 0.4640250811 | BN71: 0.8390947073 | BQ71: 0.6963954999 | BU71: 63
A72: 186 | B72: 0.6963954999 | C72: TRUE | AY72: 0.2985714286 | AZ72: 27 | BA72: =COUNTIF(AZ72:$AZ$1010,AZ72)-1 -> 9 | BB72: 0.52785 | BC72: 0.2985714286 | BD72: 0.2985714286 | BH72: 0.534877122 | BI72: 62 | BJ72: 0.5969519908 | BK72: 0.2391131621 | BL72: 0.9547908196 | BM72: 0.2346579194 | BN72: 0.7419442798 | BQ72: 0.534877122 | BU72: 64
A73: 185 | B73: 0.534877122 | C73: TRUE | AY73: 0.3614285714 | AZ73: 25 | BA73: =COUNTIF(AZ73:$AZ$1010,AZ73)-1 -> 11 | BB73: 0.48875 | BC73: 0.3614285714 | BD73: 0.3614285714 | BH73: 0.4968191337 | BI73: 63 | BJ73: 0.5450739387 | BK73: 0.1872351099 | BL73: 0.9029127674 | BM73: 0.1850773958 | BN73: 0.7177131903 | BQ73: 0.4968191337 | BU73: 65 | BW73: =IF(BU73>$G$11,"",MOD(BV73*100000013,1)) ->  | BX73: =IF(BU73>$G$11,"",NORMSINV(BV73)) ->  | BY73: =IF(BU73>$G$11,"",BX73*$J$8+$BW$5*NORMSINV(BW73)) ->  | BZ73: =IF(OR(NOT($BF$6),nsets=0,BX73=""),NA(),BX73) ->  | CA73: =IF(BY73="",NA(),BY73) ->  | CB73: =OR(BZ73<-forzoom,BZ73>forzoom,CA73<-forzoom,CA73>forzoom) ->  | CC73: =IF(NOT(CB73),NA(),IF(ISNA(BZ73),NA(),IF(BZ73<-forzoom,-forzoom,IF(BZ73>forzoom,forzoom,BZ73)))) ->  | CD73: =IF(ISNA(CA73),NA(),IF(CA73<-forzoom,-forzoom,IF(CA73>forzoom,forzoom,CA73))) ->  | CE73: =IF(BX73="","",BX73-$BX$6) ->  | CF73: =IF(BY73="","",BY73-$BY$6) ->  | CG73: =IF(CE73="","",CE73*CF73) -> 
A74: 184 | B74: 0.4968191337 | C74: TRUE | AY74: 0.11 | AZ74: 19 | BA74: =COUNTIF(AZ74:$AZ$1010,AZ74)-1 -> 3 | BB74: 0.37145 | BC74: 0.11 | BD74: 0.11 | BH74: 0.3658584847 | BI74: 64 | BJ74: 0.3836331483 | BK74: 0.02579431958 | BL74: 0.7414719771 | BM74: 0.02578860037 | BN74: 0.6300336717 | BQ74: 0.3658584847 | BU74: 66 | BV74: =IF(BU74>$G$11,"",MOD(BW73*100000013,1)) -> 
A75: 183 | B75: 0.3658584847 | C75: TRUE | AY75: 0.2671428571 | AZ75: =IF(B76="",NA(),ROUND(B76/$BA$3,0)) -> 27 | BA75: =COUNTIF(AZ75:$AZ$1010,AZ75)-1 -> 8 | BB75: =AZ75*$BA$3 -> 0.52785 | BC75: =IF(NOT($BF$6),NA(),IF(B76="","",$BA$4/2+$BA$4*BA75)) -> 0.2671428571 | BD75: =IF(AND($BF$4,$BF$2,$BG$2),IF($BE$6,NA(),BC75),BC75) -> 0.2671428571 | BH75: 0.522009886 | BI75: 65 | BJ75: 0.5790984917 | BK75: 0.221259663 | BL75: 0.9369373205 | BM75: 0.2177183434 | BN75: 0.7338119389 | BQ75: 0.522009886 | BU75: 67
A76: 182 | B76: 0.522009886 | C76: TRUE | AY76: =IF(ISNUMBER(BC76),BC76,0) -> 0.4557142857 | AZ76: 29 | BA76: =COUNTIF(AZ76:$AZ$1010,AZ76)-1 -> 14 | BB76: 0.56695 | BC76: 0.4557142857 | BD76: 0.4557142857 | BE76: =BR76 ->  | BF76: =IF(NOT(AND($BF$4,$BF$2,$BG$2,BE76)),NA(),BC76) ->  | BG76: =IF(NOT(AND($BF$4,$BF$2,$BG$2,NOT(BE76))),NA(),BC76) ->  | BH76: 0.5578757245 | BI76: 66 | BJ76: 0.6297437242 | BK76: =BJ76-$BI$2*$BI$4 -> 0.2719048954 | BL76: 0.9875825529 | BM76: 0.2653964526 | BN76: 0.7563296305 | BQ76: 0.5578757245 | BU76: 68
A77: 181 | B77: 0.5578757245 | C77: TRUE | AY77: 0.11 | AZ77: 18 | BA77: =COUNTIF(AZ77:$AZ$1010,AZ77)-1 -> 3 | BB77: 0.3519 | BC77: 0.11 | BD77: 0.11 | BH77: 0.354019183 | BI77: 67 | BJ77: 0.3700314063 | BK77: 0.01219257756 | BL77: 0.7278702351 | BM77: 0.01219197342 | BN77: 0.6217606523 | BQ77: 0.354019183 | BU77: 69
A78: 180 | B78: 0.354019183 | C78: TRUE | AY78: 0.2985714286 | AZ78: 23 | BA78: =COUNTIF(AZ78:$AZ$1010,AZ78)-1 -> 9 | BB78: 0.44965 | BC78: 0.2985714286 | BD78: 0.2985714286 | BH78: 0.4417236506 | BI78: 68 | BJ78: 0.4743702833 | BK78: 0.1165314546 | BL78: 0.8322091121 | BM78: 0.1160068214 | BN78: 0.6816604118 | BQ78: 0.4417236506 | BU78: 70
A79: 179 | B79: 0.4417236506 | C79: TRUE | AY79: 0.2357142857 | AZ79: 24 | BA79: =COUNTIF(AZ79:$AZ$1010,AZ79)-1 -> 7 | BB79: 0.4692 | BC79: 0.2357142857 | BD79: 0.2357142857 | BH79: 0.4773961226 | BI79: 69 | BJ79: 0.5196063341 | BK79: 0.1617675054 | BL79: 0.8774451629 | BM79: 0.1603710379 | BN79: 0.7051371079 | BQ79: 0.4773961226 | BU79: 71
A80: 178 | B80: 0.4773961226 | C80: TRUE | AY80: 0.2042857143 | AZ80: 38 | BA80: =COUNTIF(AZ80:$AZ$1010,AZ80)-1 -> 6 | BB80: 0.7429 | BC80: 0.2042857143 | BD80: 0.2042857143 | BH80: 0.7379411844 | BI80: 70 | BJ80: 0.9459437494 | BK80: 0.5881049207 | BL80: 1.303782578 | BM80: 0.5285312779 | BN80: 0.8626937522 | BQ80: 0.7379411844 | BU80: 72
A81: 177 | B81: 0.7379411844 | C81: TRUE | AY81: 0.2042857143 | AZ81: 31 | BA81: =COUNTIF(AZ81:$AZ$1010,AZ81)-1 -> 6 | BB81: 0.60605 | BC81: 0.2042857143 | BD81: 0.2042857143 | BH81: 0.5991903352 | BI81: 71 | BJ81: 0.6918830382 | BK81: 0.3340442095 | BL81: 1.049721867 | BM81: 0.3221499843 | BN81: 0.7816982019 | BQ81: 0.5991903352 | BU81: 73
A82: 176 | B82: 0.5991903352 | C82: TRUE | AY82: 0.33 | AZ82: 25 | BA82: =COUNTIF(AZ82:$AZ$1010,AZ82)-1 -> 10 | BB82: 0.48875 | BC82: 0.33 | BD82: 0.33 | BH82: 0.4983092916 | BI82: 72 | BJ82: 0.5470544007 | BK82: 0.189215572 | BL82: 0.9048932295 | BM82: 0.1869893165 | BN82: 0.7186721278 | BQ82: 0.4983092916 | BU82: 74
A83: 175 | B83: 0.4983092916 | C83: TRUE | AY83: 0.4242857143 | AZ83: 29 | BA83: =COUNTIF(AZ83:$AZ$1010,AZ83)-1 -> 13 | BB83: 0.56695 | BC83: 0.4242857143 | BD83: 0.4242857143 | BH83: 0.5601818374 | BI83: 73 | BJ83: 0.6330981406 | BK83: 0.2752593119 | BL83: 0.9909369693 | BM83: 0.2685118146 | BN83: 0.7577615667 | BQ83: 0.5601818374 | BU83: 75
A84: 174 | B84: 0.5601818374 | C84: TRUE | AY84: 0.3928571429 | AZ84: 29 | BA84: =COUNTIF(AZ84:$AZ$1010,AZ84)-1 -> 12 | BB84: 0.56695 | BC84: 0.3928571429 | BD84: 0.3928571429 | BH84: 0.5684797512 | BI84: 74 | BJ84: 0.645273841 | BK84: 0.2874350123 | BL84: 1.00311267 | BM84: 0.2797722936 | BN84: 0.7628983016 | BQ84: 0.5684797512 | BU84: 76
A85: 173 | B85: 0.5684797512 | C85: TRUE | AY85: 0.1728571429 | AZ85: 28 | BA85: =COUNTIF(AZ85:$AZ$1010,AZ85)-1 -> 5 | BB85: 0.5474 | BC85: 0.1728571429 | BD85: 0.1728571429 | BH85: 0.5378224412 | BI85: 75 | BJ85: 0.601086776 | BK85: 0.2432479473 | BL85: 0.9589256047 | BM85: 0.2385612158 | BN85: 0.7437972479 | BQ85: 0.5378224412 | BU85: 77
A86: 172 | B86: 0.5378224412 | C86: TRUE | AY86: 0.1728571429 | AZ86: 32 | BA86: =COUNTIF(AZ86:$AZ$1010,AZ86)-1 -> 5 | BB86: 0.6256 | BC86: 0.1728571429 | BD86: 0.1728571429 | BH86: 0.6300881492 | BI86: 76 | BJ86: 0.7415623176 | BK86: 0.3837234889 | BL86: 1.099401146 | BM86: 0.3659367304 | BN86: 0.8002838096 | BQ86: 0.6300881492 | BU86: 78
A87: 171 | B87: 0.6300881492 | C87: TRUE | AY87: 0.1728571429 | AZ87: 38 | BA87: =COUNTIF(AZ87:$AZ$1010,AZ87)-1 -> 5 | BB87: 0.7429 | BC87: 0.1728571429 | BD87: 0.1728571429 | BH87: 0.7513663285 | BI87: 77 | BJ87: 0.9760854534 | BK87: 0.6182466247 | BL87: 1.333924282 | BM87: 0.5499060475 | BN87: 0.8702051842 | BQ87: 0.7513663285 | BU87: 79
A88: 170 | B88: 0.7513663285 | C88: TRUE | AY88: 0.11 | AZ88: 40 | BA88: =COUNTIF(AZ88:$AZ$1010,AZ88)-1 -> 3 | BB88: 0.782 | BC88: 0.11 | BD88: 0.11 | BH88: 0.780311306 | BI88: 78 | BJ88: 1.046166001 | BK88: 0.6883271724 | BL88: 1.40400483 | BM88: 0.5969062716 | BN88: 0.8862142389 | BQ88: 0.780311306 | BU88: 80
A89: 169 | B89: 0.780311306 | C89: TRUE | AY89: 0.2357142857 | AZ89: 27 | BA89: =COUNTIF(AZ89:$AZ$1010,AZ89)-1 -> 7 | BB89: 0.52785 | BC89: 0.2357142857 | BD89: 0.2357142857 | BH89: 0.5242102744 | BI89: 79 | BJ89: 0.5821278492 | BK89: 0.2242890205 | BL89: 0.939966678 | BM89: 0.2206021946 | BN89: 0.7352069428 | BQ89: 0.5242102744 | BU89: 81
A90: 168 | B90: 0.5242102744 | C90: TRUE | AY90: 0.3614285714 | AZ90: 29 | BA90: =COUNTIF(AZ90:$AZ$1010,AZ90)-1 -> 11 | BB90: 0.56695 | BC90: 0.3614285714 | BD90: 0.3614285714 | BH90: 0.5636001176 | BI90: 80 | BJ90: 0.6380936124 | BK90: 0.2802547836 | BL90: 0.9959324411 | BM90: 0.2731408722 | BN90: 0.7598805867 | BQ90: 0.5636001176 | BU90: 82
A91: 167 | B91: 0.5636001176 | C91: TRUE | AY91: 0.3928571429 | AZ91: 30 | BA91: =COUNTIF(AZ91:$AZ$1010,AZ91)-1 -> 12 | BB91: 0.5865 | BC91: 0.3928571429 | BD91: 0.3928571429 | BH91: 0.5781666599 | BI91: 81 | BJ91: 0.6597044015 | BK91: 0.3018655728 | BL91: 1.01754323 | BM91: 0.2930189378 | BN91: 0.7688639859 | BQ91: 0.5781666599 | BU91: 83
A92: 166 | B92: 0.5781666599 | C92: TRUE | AY92: 0.2671428571 | AZ92: 23 | BA92: =COUNTIF(AZ92:$AZ$1010,AZ92)-1 -> 8 | BB92: 0.44965 | BC92: 0.2671428571 | BD92: 0.2671428571 | BH92: 0.4541232321 | BI92: 82 | BJ92: 0.4898825789 | BK92: 0.1320437502 | BL92: 0.8477214077 | BM92: 0.1312816463 | BN92: 0.6898772055 | BQ92: 0.4541232321 | BU92: 84
A93: 165 | B93: 0.4541232321 | C93: TRUE | AY93: 0.2357142857 | AZ93: 23 | BA93: =COUNTIF(AZ93:$AZ$1010,AZ93)-1 -> 7 | BB93: 0.44965 | BC93: 0.2357142857 | BD93: 0.2357142857 | BH93: 0.4443774651 | BI93: 83 | BJ93: 0.4776722591 | BK93: 0.1198334303 | BL93: 0.8355110878 | BM93: 0.1192631014 | BN93: 0.6834241123 | BQ93: 0.4443774651 | BU93: 85
A94: 164 | B94: 0.4443774651 | C94: TRUE | AY94: 0.2671428571 | AZ94: 34 | BA94: =COUNTIF(AZ94:$AZ$1010,AZ94)-1 -> 8 | BB94: 0.6647 | BC94: 0.2671428571 | BD94: 0.2671428571 | BH94: 0.6570609178 | BI94: 84 | BJ94: 0.7876239761 | BK94: 0.4297851474 | BL94: 1.145462805 | BM94: 0.4051417376 | BN94: 0.8162454166 | BQ94: 0.6570609178 | BU94: 86
A95: 163 | B95: 0.6570609178 | C95: TRUE | AY95: 0.2042857143 | AZ95: 23 | BA95: =COUNTIF(AZ95:$AZ$1010,AZ95)-1 -> 6 | BB95: 0.44965 | BC95: 0.2042857143 | BD95: 0.2042857143 | BH95: 0.4475527167 | BI95: 85 | BJ95: 0.4816358069 | BK95: 0.1237969782 | BL95: 0.8394746357 | BM95: 0.1231684065 | BN95: 0.6855306944 | BQ95: 0.4475527167 | BU95: 87
A96: 162 | B96: 0.4475527167 | C96: TRUE | AY96: 0.01571428571 | AZ96: 13 | BA96: =COUNTIF(AZ96:$AZ$1010,AZ96)-1 -> 0 | BB96: 0.25415 | BC96: 0.01571428571 | BD96: 0.01571428571 | BH96: 0.2536018515 | BI96: 86 | BJ96: 0.2592584996 | BK96: -0.09858032919 | BL96: 0.6170973283 | BM96: -0.09826222844 | BN96: 0.5491037879 | BQ96: 0.2536018515 | BU96: 88
A97: 161 | B97: 0.2536018515 | C97: FALSE | AY97: 0.33 | AZ97: 29 | BA97: =COUNTIF(AZ97:$AZ$1010,AZ97)-1 -> 10 | BB97: 0.56695 | BC97: 0.33 | BD97: 0.33 | BH97: 0.5634471232 | BI97: 87 | BJ97: 0.6378694254 | BK97: 0.2800305966 | BL97: 0.9957082541 | BM97: 0.2729333982 | BN97: 0.7597858333 | BQ97: 0.5634471232 | BU97: 89
A98: 160 | B98: 0.5634471232 | C98: TRUE | AY98: 0.1414285714 | AZ98: 35 | BA98: =COUNTIF(AZ98:$AZ$1010,AZ98)-1 -> 4 | BB98: 0.68425 | BC98: 0.1414285714 | BD98: 0.1414285714 | BH98: 0.6911505602 | BI98: 88 | BJ98: 0.8501552364 | BK98: 0.4923164076 | BL98: 1.207994065 | BM98: 0.4560530007 | BN98: 0.8360767632 | BQ98: 0.6911505602 | BU98: 90
A99: 159 | B99: 0.6911505602 | C99: TRUE | AY99: 0.1728571429 | AZ99: 23 | BA99: =COUNTIF(AZ99:$AZ$1010,AZ99)-1 -> 5 | BB99: 0.44965 | BC99: 0.1728571429 | BD99: 0.1728571429 | BH99: 0.4551317359 | BI99: 89 | BJ99: 0.4911538337 | BK99: 0.133315005 | BL99: 0.8489926625 | BM99: 0.132530782 | BN99: 0.6905428471 | BQ99: 0.4551317359 | BU99: 91
A100: 158 | B100: 0.4551317359 | C100: TRUE | AY100: 0.2985714286 | AZ100: 29 | BA100: =COUNTIF(AZ100:$AZ$1010,AZ100)-1 -> 9 | BB100: 0.56695 | BC100: 0.2985714286 | BD100: 0.2985714286 | BH100: =IF(NOT($BF$6),NA(),IF(B101="",NA(),B101)) -> 0.5608453784 | BI100: 90 | BJ100: =0.5*LN((1+BH100)/(1-BH100)) -> 0.6340656492 | BK100: 0.2762268205 | BL100: =BJ100+$BI$2*$BI$4 -> 0.991904478 | BM100: =(EXP(2*BK100)-1)/(EXP(2*BK100)+1) -> 0.2694093338 | BN100: =(EXP(2*BL100)-1)/(EXP(2*BL100)+1) -> 0.7581732274 | BO100: =IF(NOT($BG$2),NA(),BH100-BM100) ->  | BP100: =IF(NOT($BG$2),NA(),BN100-BH100) ->  | BQ100: =IF(AND($BF$4,$BF$2,$BG$2),NA(),BH100) -> 0.5608453784 | BR100: =AND(BH100+BP100>$J$8,$J$8>BH100-BO100) ->  | BU100: 92
A101: 157 | B101: 0.5608453784 | C101: TRUE | AY101: 0.2985714286 | AZ101: 26 | BA101: =COUNTIF(AZ101:$AZ$1010,AZ101)-1 -> 9 | BB101: 0.5083 | BC101: 0.2985714286 | BD101: 0.2985714286 | BH101: 0.5064302546 | BI101: 91 | BJ101: 0.5579169421 | BK101: 0.2000781133 | BL101: 0.9157557708 | BM101: 0.1974503893 | BN101: 0.723883392 | BQ101: 0.5064302546 | BU101: 93
A102: 156 | B102: 0.5064302546 | C102: TRUE | AY102: 0.1414285714 | AZ102: 23 | BA102: =COUNTIF(AZ102:$AZ$1010,AZ102)-1 -> 4 | BB102: 0.44965 | BC102: 0.1414285714 | BD102: 0.1414285714 | BH102: 0.4538537864 | BI102: 92 | BJ102: 0.4895431816 | BK102: 0.1317043528 | BL102: 0.8473820103 | BM102: 0.1309480835 | BN102: 0.689699296 | BQ102: 0.4538537864 | BU102: 94
A103: 155 | B103: 0.4538537864 | C103: TRUE | AY103: 0.2042857143 | AZ103: 27 | BA103: =COUNTIF(AZ103:$AZ$1010,AZ103)-1 -> 6 | BB103: 0.52785 | BC103: 0.2042857143 | BD103: 0.2042857143 | BH103: 0.522676188 | BI103: 93 | BJ103: 0.580014802 | BK103: 0.2221759732 | BL103: 0.9378536307 | BM103: 0.218591045 | BN103: 0.7342345502 | BQ103: 0.522676188 | BU103: 95
A104: 154 | B104: 0.522676188 | C104: TRUE | AY104: 0.04714285714 | AZ104: 41 | BA104: =COUNTIF(AZ104:$AZ$1010,AZ104)-1 -> 1 | BB104: 0.80155 | BC104: 0.04714285714 | BD104: 0.04714285714 | BH104: 0.8006900087 | BI104: 94 | BJ104: 1.100531925 | BK104: 0.7426930965 | BL104: 1.458370754 | BM104: 0.6307695105 | BN104: 0.8973357031 | BQ104: 0.8006900087 | BU104: 96
A105: 153 | B105: 0.8006900087 | C105: FALSE | AY105: 0.07857142857 | AZ105: 22 | BA105: =COUNTIF(AZ105:$AZ$1010,AZ105)-1 -> 2 | BB105: 0.4301 | BC105: 0.07857142857 | BD105: 0.07857142857 | BH105: 0.4300829256 | BI105: 95 | BJ105: 0.4599984224 | BK105: 0.1021595937 | BL105: 0.8178372511 | BM105: 0.1018056721 | BN105: 0.6738910131 | BQ105: 0.4300829256 | BU105: 97
A106: 152 | B106: 0.4300829256 | C106: TRUE | AY106: 0.2042857143 | AZ106: 33 | BA106: =COUNTIF(AZ106:$AZ$1010,AZ106)-1 -> 6 | BB106: 0.64515 | BC106: 0.2042857143 | BD106: 0.2042857143 | BH106: 0.6402968757 | BI106: 96 | BJ106: 0.7586767449 | BK106: 0.4008379161 | BL106: 1.116515574 | BM106: 0.3806656874 | BN106: 0.8063535049 | BQ106: 0.6402968757 | BU106: 98
A107: 151 | B107: 0.6402968757 | C107: TRUE | AY107: 0.11 | AZ107: 23 | BA107: =COUNTIF(AZ107:$AZ$1010,AZ107)-1 -> 3 | BB107: 0.44965 | BC107: 0.11 | BD107: 0.11 | BH107: 0.4558034537 | BI107: 97 | BJ107: 0.4920013746 | BK107: 0.1341625458 | BL107: 0.8498402033 | BM107: 0.1333633426 | BN107: 0.6909859791 | BQ107: 0.4558034537 | BU107: 99
A108: 150 | B108: 0.4558034537 | C108: TRUE | AY108: 0.1728571429 | AZ108: 31 | BA108: =COUNTIF(AZ108:$AZ$1010,AZ108)-1 -> 5 | BB108: 0.60605 | BC108: 0.1728571429 | BD108: 0.1728571429 | BH108: 0.6095162186 | BI108: 98 | BJ108: 0.7081512461 | BK108: 0.3503124173 | BL108: 1.065990075 | BM108: 0.336652583 | BN108: 0.7879456881 | BQ108: 0.6095162186 | BU108: 100
A109: 149 | B109: 0.6095162186 | C109: TRUE | AY109: 0.4871428571 | AZ109: 36 | BA109: =COUNTIF(AZ109:$AZ$1010,AZ109)-1 -> 15 | BB109: 0.7038 | BC109: 0.4871428571 | BD109: 0.4871428571 | BH109: 0.6973102894 | BI109: 99 | BJ109: 0.8620459355 | BK109: 0.5042071068 | BL109: 1.219884764 | BM109: 0.4654193873 | BN109: 0.83962018 | BQ109: 0.6973102894 | BU109: 101
A110: 148 | B110: 0.6973102894 | C110: TRUE | AY110: 0.1728571429 | AZ110: 27 | BA110: =COUNTIF(AZ110:$AZ$1010,AZ110)-1 -> 5 | BB110: 0.52785 | BC110: 0.1728571429 | BD110: 0.1728571429 | BH110: 0.5348922151 | BI110: 100 | BJ110: 0.5969731326 | BK110: 0.2391343039 | BL110: 0.9548119614 | BM110: 0.2346778969 | BN110: 0.7419537833 | BQ110: 0.5348922151 | BU110: 102
A111: 147 | B111: 0.5348922151 | C111: TRUE | AY111: 0.04714285714 | AZ111: 22 | BA111: =COUNTIF(AZ111:$AZ$1010,AZ111)-1 -> 1 | BB111: 0.4301 | BC111: 0.04714285714 | BD111: 0.04714285714 | BH111: 0.4287892682 | BI111: 101 | BJ111: 0.45841225 | BK111: 0.1005734213 | BL111: 0.8162510787 | BM111: 0.1002356872 | BN111: 0.673024242 | BQ111: 0.4287892682 | BU111: 103
A112: 146 | B112: 0.4287892682 | C112: TRUE | AY112: 0.11 | AZ112: 35 | BA112: =COUNTIF(AZ112:$AZ$1010,AZ112)-1 -> 3 | BB112: 0.68425 | BC112: 0.11 | BD112: 0.11 | BH112: 0.6837145242 | BI112: 102 | BJ112: 0.836056224 | BK112: 0.4782173952 | BL112: 1.193895053 | BM112: 0.4448148465 | BN112: 0.8317829737 | BQ112: 0.6837145242 | BU112: 104
A113: 145 | B113: 0.6837145242 | C113: TRUE | AY113: 0.11 | AZ113: 39 | BA113: =COUNTIF(AZ113:$AZ$1010,AZ113)-1 -> 3 | BB113: 0.76245 | BC113: 0.11 | BD113: 0.11 | BH113: 0.7595684111 | BI113: 103 | BJ113: 0.9951941208 | BK113: 0.637355292 | BL113: 1.35303295 | BM113: 0.5630961115 | BN113: 0.8747672626 | BQ113: 0.7595684111 | BU113: 105
A114: 144 | B114: 0.7595684111 | C114: TRUE | AY114: 0.1414285714 | AZ114: 32 | BA114: =COUNTIF(AZ114:$AZ$1010,AZ114)-1 -> 4 | BB114: 0.6256 | BC114: 0.1414285714 | BD114: 0.1414285714 | BH114: 0.6172166767 | BI114: 104 | BJ114: 0.7204963781 | BK114: 0.3626575494 | BL114: 1.078335207 | BM114: 0.347552725 | BN114: 0.7925809175 | BQ114: 0.6172166767 | BU114: 106
A115: 143 | B115: 0.6172166767 | C115: TRUE | AY115: 0.2671428571 | AZ115: 26 | BA115: =COUNTIF(AZ115:$AZ$1010,AZ115)-1 -> 8 | BB115: 0.5083 | BC115: 0.2671428571 | BD115: 0.2671428571 | BH115: 0.5151684705 | BI115: 105 | BJ115: 0.5697402223 | BK115: 0.2119013935 | BL115: 0.927579051 | BM115: 0.2087857287 | BN115: 0.7294631731 | BQ115: 0.5151684705 | BU115: 107
A116: 142 | B116: 0.5151684705 | C116: TRUE | AY116: 0.07857142857 | AZ116: 17 | BA116: =COUNTIF(AZ116:$AZ$1010,AZ116)-1 -> 2 | BB116: 0.33235 | BC116: 0.07857142857 | BD116: 0.07857142857 | BH116: 0.3327210699 | BI116: 106 | BJ116: 0.3458849519 | BK116: -0.01195387688 | BL116: 0.7037237806 | BM116: -0.01195330752 | BN116: 0.6067260897 | BQ116: 0.3327210699 | BU116: 108
A117: 141 | B117: 0.3327210699 | C117: TRUE | AY117: 0.07857142857 | AZ117: 19 | BA117: =COUNTIF(AZ117:$AZ$1010,AZ117)-1 -> 2 | BB117: 0.37145 | BC117: 0.07857142857 | BD117: 0.07857142857 | BH117: 0.3681194506 | BI117: 107 | BJ117: 0.3862460199 | BK117: 0.02840719117 | BL117: 0.7440848487 | BM117: 0.0283995524 | BN117: 0.6316067904 | BQ117: 0.3681194506 | BU117: 109
A118: 140 | B118: 0.3681194506 | C118: TRUE | AY118: 0.2357142857 | AZ118: 37 | BA118: =COUNTIF(AZ118:$AZ$1010,AZ118)-1 -> 7 | BB118: 0.72335 | BC118: 0.2357142857 | BD118: 0.2357142857 | BH118: 0.726272175 | BI118: 108 | BJ118: 0.9207926385 | BK118: 0.5629538098 | BL118: 1.278631467 | BM118: 0.5101657486 | BN118: 0.8561198647 | BQ118: 0.726272175 | BU118: 110
A119: 139 | B119: 0.726272175 | C119: TRUE | AY119: 0.3614285714 | AZ119: 30 | BA119: =COUNTIF(AZ119:$AZ$1010,AZ119)-1 -> 11 | BB119: 0.5865 | BC119: 0.3614285714 | BD119: 0.3614285714 | BH119: 0.5792123737 | BI119: 109 | BJ119: 0.6612766242 | BK119: 0.3034377954 | BL119: 1.019115453 | BM119: 0.2944555062 | BN119: 0.7695060096 | BQ119: 0.5792123737 | BU119: 111
A120: 138 | B120: 0.5792123737 | C120: TRUE | AY120: 0.2985714286 | AZ120: 25 | BA120: =COUNTIF(AZ120:$AZ$1010,AZ120)-1 -> 9 | BB120: 0.48875 | BC120: 0.2985714286 | BD120: 0.2985714286 | BH120: 0.4890198324 | BI120: 110 | BJ120: 0.5347712867 | BK120: 0.1769324579 | BL120: 0.8926101154 | BM120: 0.1751089922 | BN120: 0.712680525 | BQ120: 0.4890198324 | BU120: 112
A121: 137 | B121: 0.4890198324 | C121: TRUE | AY121: 0.2357142857 | AZ121: 34 | BA121: =COUNTIF(AZ121:$AZ$1010,AZ121)-1 -> 7 | BB121: 0.6647 | BC121: 0.2357142857 | BD121: 0.2357142857 | BH121: 0.6736243364 | BI121: 111 | BJ121: 0.8173488774 | BK121: 0.4595100487 | BL121: 1.175187706 | BM121: 0.4296848034 | BN121: 0.8259281254 | BQ121: 0.6736243364 | BU121: 113
A122: 136 | B122: 0.6736243364 | C122: TRUE | AY122: 0.07857142857 | AZ122: 35 | BA122: =COUNTIF(AZ122:$AZ$1010,AZ122)-1 -> 2 | BB122: 0.68425 | BC122: 0.07857142857 | BD122: 0.07857142857 | BH122: 0.6779741382 | BI122: 112 | BJ122: 0.825355308 | BK122: 0.4675164793 | BL122: 1.183194137 | BM122: 0.4361904943 | BN122: 0.8284561401 | BQ122: 0.6779741382 | BU122: 114
A123: 135 | B123: 0.6779741382 | C123: TRUE | AY123: 0.2357142857 | AZ123: 26 | BA123: =COUNTIF(AZ123:$AZ$1010,AZ123)-1 -> 7 | BB123: 0.5083 | BC123: 0.2357142857 | BD123: 0.2357142857 | BH123: 0.508980757 | BI123: 113 | BJ123: 0.561353194 | BK123: 0.2035143653 | BL123: 0.9191920227 | BM123: 0.2007504213 | BN123: 0.7255149584 | BQ123: 0.508980757 | BU123: 115
A124: 134 | B124: 0.508980757 | C124: TRUE | AY124: 0.4557142857 | AZ124: 36 | BA124: =COUNTIF(AZ124:$AZ$1010,AZ124)-1 -> 14 | BB124: 0.7038 | BC124: 0.4557142857 | BD124: 0.4557142857 | BH124: 0.7026237033 | BI124: 114 | BJ124: 0.8724636831 | BK124: 0.5146248543 | BL124: 1.230302512 | BM124: 0.4735408207 | BN124: 0.8426670499 | BQ124: 0.7026237033 | BU124: 116
A125: 133 | B125: 0.7026237033 | C125: TRUE | AY125: 0.2042857143 | AZ125: 34 | BA125: =COUNTIF(AZ125:$AZ$1010,AZ125)-1 -> 6 | BB125: 0.6647 | BC125: 0.2042857143 | BD125: 0.2042857143 | BH125: 0.6704664799 | BI125: 115 | BJ125: 0.8115900583 | BK125: 0.4537512296 | BL125: 1.169428887 | BM125: 0.4249776338 | BN125: 0.8240889994 | BQ125: 0.6704664799 | BU125: 117
A126: 132 | B126: 0.6704664799 | C126: TRUE | AY126: 0.1728571429 | AZ126: 34 | BA126: =COUNTIF(AZ126:$AZ$1010,AZ126)-1 -> 5 | BB126: 0.6647 | BC126: 0.1728571429 | BD126: 0.1728571429 | BH126: 0.668899397 | BI126: 116 | BJ126: 0.8087486894 | BK126: 0.4509098607 | BL126: 1.166587518 | BM126: 0.4226466247 | BN126: 0.8231751311 | BQ126: 0.668899397 | BU126: 118
A127: 131 | B127: 0.668899397 | C127: TRUE | AY127: 0.1414285714 | AZ127: 38 | BA127: =COUNTIF(AZ127:$AZ$1010,AZ127)-1 -> 4 | BB127: 0.7429 | BC127: 0.1414285714 | BD127: 0.1414285714 | BH127: 0.7496737207 | BI127: 117 | BJ127: 0.9722097101 | BK127: 0.6143708813 | BL127: 1.330048539 | BM127: 0.5471965549 | BN127: 0.8692611958 | BQ127: 0.7496737207 | BU127: 119
A128: 130 | B128: 0.7496737207 | C128: TRUE | AY128: 0.2671428571 | AZ128: 25 | BA128: =COUNTIF(AZ128:$AZ$1010,AZ128)-1 -> 8 | BB128: 0.48875 | BC128: 0.2671428571 | BD128: 0.2671428571 | BH128: 0.4873496958 | BI128: 118 | BJ128: 0.5325785714 | BK128: 0.1747397427 | BL128: 0.8904174002 | BM128: 0.1729826996 | BN128: 0.7115998325 | BQ128: 0.4873496958 | BU128: 120
A129: 129 | B129: 0.4873496958 | C129: TRUE | AY129: 0.01571428571 | AZ129: 8 | BA129: =COUNTIF(AZ129:$AZ$1010,AZ129)-1 -> 0 | BB129: 0.1564 | BC129: 0.01571428571 | BD129: 0.01571428571 | BH129: 0.1523982262 | BI129: 119 | BJ129: 0.1535947724 | BK129: -0.2042440563 | BL129: 0.5114336012 | BM129: -0.2014506025 | BN129: 0.4710614387 | BQ129: 0.1523982262 | BU129: 121
A130: 128 | B130: 0.1523982262 | C130: FALSE | AY130: 0.2042857143 | AZ130: 26 | BA130: =COUNTIF(AZ130:$AZ$1010,AZ130)-1 -> 6 | BB130: 0.5083 | BC130: 0.2042857143 | BD130: 0.2042857143 | BH130: 0.5101054852 | BI130: 120 | BJ130: 0.5628723465 | BK130: 0.2050335178 | BL130: 0.9207111753 | BM130: 0.2022079052 | BN130: 0.726233679 | BQ130: 0.5101054852 | BU130: 122
A131: 127 | B131: 0.5101054852 | C131: TRUE | AY131: 0.1414285714 | AZ131: 27 | BA131: =COUNTIF(AZ131:$AZ$1010,AZ131)-1 -> 4 | BB131: 0.52785 | BC131: 0.1414285714 | BD131: 0.1414285714 | BH131: 0.5352122712 | BI131: 121 | BJ131: 0.5974215669 | BK131: 0.2395827382 | BL131: 0.9552603957 | BM131: 0.2351015896 | BN131: 0.7421552895 | BQ131: 0.5352122712 | BU131: 123
A132: 126 | B132: 0.5352122712 | C132: TRUE | AY132: 0.4242857143 | AZ132: 36 | BA132: =COUNTIF(AZ132:$AZ$1010,AZ132)-1 -> 13 | BB132: 0.7038 | BC132: 0.4242857143 | BD132: 0.4242857143 | BH132: 0.7016871467 | BI132: 122 | BJ132: 0.870616349 | BK132: 0.5127775202 | BL132: 1.228455178 | BM132: 0.4721064814 | BN132: 0.8421306507 | BQ132: 0.7016871467 | BU132: 124
A133: 125 | B133: 0.7016871467 | C133: TRUE | AY133: 0.11 | AZ133: 32 | BA133: =COUNTIF(AZ133:$AZ$1010,AZ133)-1 -> 3 | BB133: 0.6256 | BC133: 0.11 | BD133: 0.11 | BH133: 0.631008241 | BI133: 123 | BJ133: 0.7430896725 | BK133: 0.3852508437 | BL133: 1.100928501 | BM133: 0.3672588176 | BN133: 0.8008322928 | BQ133: 0.631008241 | BU133: 125
A134: 124 | B134: 0.631008241 | C134: TRUE | AY134: 0.33 | AZ134: 30 | BA134: =COUNTIF(AZ134:$AZ$1010,AZ134)-1 -> 10 | BB134: 0.5865 | BC134: 0.33 | BD134: 0.33 | BH134: 0.58125843 | BI134: 124 | BJ134: 0.664361166 | BK134: 0.3065223373 | BL134: 1.022199995 | BM134: 0.2972700406 | BN134: 0.7707610894 | BQ134: 0.58125843 | BU134: 126
A135: 123 | B135: 0.58125843 | C135: TRUE | AY135: 0.2042857143 | AZ135: 24 | BA135: =COUNTIF(AZ135:$AZ$1010,AZ135)-1 -> 6 | BB135: 0.4692 | BC135: 0.2042857143 | BD135: 0.2042857143 | BH135: 0.4638954326 | BI135: 125 | BJ135: 0.5022635178 | BK135: 0.1444246891 | BL135: 0.8601023466 | BM135: 0.1434288367 | BN135: 0.6963104005 | BQ135: 0.4638954326 | BU135: 127
A136: 122 | B136: 0.4638954326 | C136: TRUE | AY136: 0.2671428571 | AZ136: 29 | BA136: =COUNTIF(AZ136:$AZ$1010,AZ136)-1 -> 8 | BB136: 0.56695 | BC136: 0.2671428571 | BD136: 0.2671428571 | BH136: 0.5730736166 | BI136: 126 | BJ136: 0.6520875539 | BK136: 0.2942487252 | BL136: 1.009926383 | BM136: 0.2860406336 | BN136: 0.7657315678 | BQ136: 0.5730736166 | BU136: 128
A137: 121 | B137: 0.5730736166 | C137: TRUE | AY137: 0.3928571429 | AZ137: 36 | BA137: =COUNTIF(AZ137:$AZ$1010,AZ137)-1 -> 12 | BB137: 0.7038 | BC137: 0.3928571429 | BD137: 0.3928571429 | BH137: 0.7076965146 | BI137: 127 | BJ137: 0.8825540389 | BK137: 0.5247152102 | BL137: 1.240392868 | BM137: 0.4813310185 | BN137: 0.8455676063 | BQ137: 0.7076965146 | BU137: 129 | BW137: =IF(BU137>$G$11,"",MOD(BV137*100000013,1)) ->  | BX137: =IF(BU137>$G$11,"",NORMSINV(BV137)) ->  | BY137: =IF(BU137>$G$11,"",BX137*$J$8+$BW$5*NORMSINV(BW137)) ->  | BZ137: =IF(OR(NOT($BF$6),nsets=0,BX137=""),NA(),BX137) ->  | CA137: =IF(BY137="",NA(),BY137) ->  | CB137: =OR(BZ137<-forzoom,BZ137>forzoom,CA137<-forzoom,CA137>forzoom) ->  | CC137: =IF(NOT(CB137),NA(),IF(ISNA(BZ137),NA(),IF(BZ137<-forzoom,-forzoom,IF(BZ137>forzoom,forzoom,BZ137)))) ->  | CD137: =IF(ISNA(CA137),NA(),IF(CA137<-forzoom,-forzoom,IF(CA137>forzoom,forzoom,CA137))) ->  | CE137: =IF(BX137="","",BX137-$BX$6) ->  | CF137: =IF(BY137="","",BY137-$BY$6) ->  | CG137: =IF(CE137="","",CE137*CF137) -> 
A138: 120 | B138: 0.7076965146 | C138: TRUE | AY138: 0.11 | AZ138: 21 | BA138: =COUNTIF(AZ138:$AZ$1010,AZ138)-1 -> 3 | BB138: 0.41055 | BC138: 0.11 | BD138: 0.11 | BH138: 0.4091134017 | BI138: 128 | BJ138: 0.4345459373 | BK138: 0.07670710852 | BL138: 0.792384766 | BM138: 0.07655701406 | BN138: 0.6597578796 | BQ138: 0.4091134017 | BU138: 130 | BV138: =IF(BU138>$G$11,"",MOD(BW137*100000013,1)) -> 
A139: 119 | B139: 0.4091134017 | C139: TRUE | AY139: 0.07857142857 | AZ139: =IF(B140="",NA(),ROUND(B140/$BA$3,0)) -> 21 | BA139: =COUNTIF(AZ139:$AZ$1010,AZ139)-1 -> 2 | BB139: =AZ139*$BA$3 -> 0.41055 | BC139: =IF(NOT($BF$6),NA(),IF(B140="","",$BA$4/2+$BA$4*BA139)) -> 0.07857142857 | BD139: =IF(AND($BF$4,$BF$2,$BG$2),IF($BE$6,NA(),BC139),BC139) -> 0.07857142857 | BH139: 0.4020417955 | BI139: 129 | BJ139: 0.4260820096 | BK139: 0.06824318087 | BL139: 0.7839208384 | BM139: 0.06813743869 | BN139: 0.654951409 | BQ139: 0.4020417955 | BU139: 131
A140: 118 | B140: 0.4020417955 | C140: TRUE | AY140: =IF(ISNUMBER(BC140),BC140,0) -> 0.07857142857 | AZ140: 23 | BA140: =COUNTIF(AZ140:$AZ$1010,AZ140)-1 -> 2 | BB140: 0.44965 | BC140: 0.07857142857 | BD140: 0.07857142857 | BE140: =BR140 ->  | BF140: =IF(NOT(AND($BF$4,$BF$2,$BG$2,BE140)),NA(),BC140) ->  | BG140: =IF(NOT(AND($BF$4,$BF$2,$BG$2,NOT(BE140))),NA(),BC140) ->  | BH140: 0.4552610059 | BI140: 130 | BJ140: 0.4913168895 | BK140: =BJ140-$BI$2*$BI$4 -> 0.1334780607 | BL140: 0.8491557182 | BM140: 0.1326909703 | BN140: 0.6906281402 | BQ140: 0.4552610059 | BU140: 132
A141: 117 | B141: 0.4552610059 | C141: TRUE | AY141: 0.1414285714 | AZ141: 31 | BA141: =COUNTIF(AZ141:$AZ$1010,AZ141)-1 -> 4 | BB141: 0.60605 | BC141: 0.1414285714 | BD141: 0.1414285714 | BH141: 0.6116212195 | BI141: 131 | BJ141: 0.711507409 | BK141: 0.3536685803 | BL141: 1.069346238 | BM141: 0.3396250057 | BN141: 0.7892147882 | BQ141: 0.6116212195 | BU141: 133
A142: 116 | B142: 0.6116212195 | C142: TRUE | AY142: 0.3614285714 | AZ142: 36 | BA142: =COUNTIF(AZ142:$AZ$1010,AZ142)-1 -> 11 | BB142: 0.7038 | BC142: 0.3614285714 | BD142: 0.3614285714 | BH142: 0.6976163205 | BI142: 132 | BJ142: 0.8626418543 | BK142: 0.5048030256 | BL142: 1.220480683 | BM142: 0.4658860915 | BN142: 0.8397959107 | BQ142: 0.6976163205 | BU142: 134
A143: 115 | B143: 0.6976163205 | C143: TRUE | AY143: 0.33 | AZ143: 36 | BA143: =COUNTIF(AZ143:$AZ$1010,AZ143)-1 -> 10 | BB143: 0.7038 | BC143: 0.33 | BD143: 0.33 | BH143: 0.7050239187 | BI143: 133 | BJ143: 0.8772200728 | BK143: 0.519381244 | BL143: 1.235058902 | BM143: 0.4772223135 | BN143: 0.8440404704 | BQ143: 0.7050239187 | BU143: 135
A144: 114 | B144: 0.7050239187 | C144: TRUE | AY144: 0.2985714286 | AZ144: 30 | BA144: =COUNTIF(AZ144:$AZ$1010,AZ144)-1 -> 9 | BB144: 0.5865 | BC144: 0.2985714286 | BD144: 0.2985714286 | BH144: 0.586144464 | BI144: 134 | BJ144: 0.6717722594 | BK144: 0.3139334307 | BL144: 1.029611088 | BM144: 0.3040112446 | BN144: 0.7737523136 | BQ144: 0.586144464 | BU144: 136
A145: 113 | B145: 0.586144464 | C145: TRUE | AY145: 0.1728571429 | AZ145: 33 | BA145: =COUNTIF(AZ145:$AZ$1010,AZ145)-1 -> 5 | BB145: 0.64515 | BC145: 0.1728571429 | BD145: 0.1728571429 | BH145: 0.6528075421 | BI145: 135 | BJ145: 0.7801757008 | BK145: 0.422336872 | BL145: 1.13801453 | BM145: 0.398897293 | BN145: 0.813744445 | BQ145: 0.6528075421 | BU145: 137
A146: 112 | B146: 0.6528075421 | C146: TRUE | AY146: 0.07857142857 | AZ146: 18 | BA146: =COUNTIF(AZ146:$AZ$1010,AZ146)-1 -> 2 | BB146: 0.3519 | BC146: 0.07857142857 | BD146: 0.07857142857 | BH146: 0.3592584216 | BI146: 136 | BJ146: 0.3760341649 | BK146: 0.01819533619 | BL146: 0.7338729937 | BM146: 0.01819332847 | BN146: 0.6254290909 | BQ146: 0.3592584216 | BU146: 138
A147: 111 | B147: 0.3592584216 | C147: TRUE | AY147: 0.2985714286 | AZ147: 36 | BA147: =COUNTIF(AZ147:$AZ$1010,AZ147)-1 -> 9 | BB147: 0.7038 | BC147: 0.2985714286 | BD147: 0.2985714286 | BH147: 0.7092843693 | BI147: 137 | BJ147: 0.8857422445 | BK147: 0.5279034158 | BL147: 1.243581073 | BM147: 0.4837768205 | BN147: 0.8464738479 | BQ147: 0.7092843693 | BU147: 139
A148: 110 | B148: 0.7092843693 | C148: TRUE | AY148: 0.11 | AZ148: 27 | BA148: =COUNTIF(AZ148:$AZ$1010,AZ148)-1 -> 3 | BB148: 0.52785 | BC148: 0.11 | BD148: 0.11 | BH148: 0.5188357719 | BI148: 138 | BJ148: 0.5747453693 | BK148: 0.2169065405 | BL148: 0.932584198 | BM148: 0.2135676569 | BN148: 0.7317964602 | BQ148: 0.5188357719 | BU148: 140
A149: 109 | B149: 0.5188357719 | C149: TRUE | AY149: 0.07857142857 | AZ149: 40 | BA149: =COUNTIF(AZ149:$AZ$1010,AZ149)-1 -> 2 | BB149: 0.782 | BC149: 0.07857142857 | BD149: 0.07857142857 | BH149: 0.7851073077 | BI149: 139 | BJ149: 1.058547505 | BK149: 0.7007086766 | BL149: 1.416386334 | BM149: 0.6048174095 | BN149: 0.8888426361 | BQ149: 0.7851073077 | BU149: 141
A150: 108 | B150: 0.7851073077 | C150: FALSE | AY150: 0.2357142857 | AZ150: 29 | BA150: =COUNTIF(AZ150:$AZ$1010,AZ150)-1 -> 7 | BB150: 0.56695 | BC150: 0.2357142857 | BD150: 0.2357142857 | BH150: 0.5582991698 | BI150: 140 | BJ150: 0.6303587157 | BK150: 0.272519887 | BL150: 0.9881975445 | BM150: 0.2659680337 | BN150: 0.7565927032 | BQ150: 0.5582991698 | BU150: 142
A151: 107 | B151: 0.5582991698 | C151: TRUE | AY151: 0.07857142857 | AZ151: 32 | BA151: =COUNTIF(AZ151:$AZ$1010,AZ151)-1 -> 2 | BB151: 0.6256 | BC151: 0.07857142857 | BD151: 0.07857142857 | BH151: 0.624281706 | BI151: 141 | BJ151: 0.7319906627 | BK151: 0.374151834 | BL151: 1.089829491 | BM151: 0.3576179293 | BN151: 0.7968159027 | BQ151: 0.624281706 | BU151: 143
A152: 106 | B152: 0.624281706 | C152: TRUE | AY152: 0.11 | AZ152: 31 | BA152: =COUNTIF(AZ152:$AZ$1010,AZ152)-1 -> 3 | BB152: 0.60605 | BC152: 0.11 | BD152: 0.11 | BH152: 0.6049434775 | BI152: 142 | BJ152: 0.7009074844 | BK152: 0.3430686556 | BL152: 1.058746313 | BM152: 0.3302142045 | BN152: 0.7851835597 | BQ152: 0.6049434775 | BU152: 144
A153: 105 | B153: 0.6049434775 | C153: TRUE | AY153: 0.01571428571 | AZ153: 41 | BA153: =COUNTIF(AZ153:$AZ$1010,AZ153)-1 -> 0 | BB153: 0.80155 | BC153: 0.01571428571 | BD153: 0.01571428571 | BH153: 0.8067841338 | BI153: 143 | BJ153: 1.11774789 | BK153: 0.7599090615 | BL153: 1.475586719 | BM153: 0.6410233935 | BN153: 0.9006378382 | BQ153: 0.8067841338 | BU153: 145
A154: 104 | B154: 0.8067841338 | C154: FALSE | AY154: 0.1728571429 | AZ154: 24 | BA154: =COUNTIF(AZ154:$AZ$1010,AZ154)-1 -> 5 | BB154: 0.4692 | BC154: 0.1728571429 | BD154: 0.1728571429 | BH154: 0.4602463756 | BI154: 144 | BJ154: 0.4976238333 | BK154: 0.1397850046 | BL154: 0.8554626621 | BM154: 0.1388816056 | BN154: 0.693912529 | BQ154: 0.4602463756 | BU154: 146
A155: 103 | B155: 0.4602463756 | C155: TRUE | AY155: 0.2357142857 | AZ155: 25 | BA155: =COUNTIF(AZ155:$AZ$1010,AZ155)-1 -> 7 | BB155: 0.48875 | BC155: 0.2357142857 | BD155: 0.2357142857 | BH155: 0.4820325408 | BI155: 145 | BJ155: 0.5256286713 | BK155: 0.1677898426 | BL155: 0.8834675001 | BM155: 0.1662327552 | BN155: 0.7081521883 | BQ155: 0.4820325408 | BU155: 147
A156: 102 | B156: 0.4820325408 | C156: TRUE | AY156: 0.07857142857 | AZ156: 31 | BA156: =COUNTIF(AZ156:$AZ$1010,AZ156)-1 -> 2 | BB156: 0.60605 | BC156: 0.07857142857 | BD156: 0.07857142857 | BH156: 0.60867893 | BI156: 146 | BJ156: 0.7068201034 | BK156: 0.3489812747 | BL156: 1.064658932 | BM156: 0.3354717769 | BN156: 0.787440467 | BQ156: 0.60867893 | BU156: 148
A157: 101 | B157: 0.60867893 | C157: TRUE | AY157: 0.04714285714 | AZ157: 18 | BA157: =COUNTIF(AZ157:$AZ$1010,AZ157)-1 -> 1 | BB157: 0.3519 | BC157: 0.04714285714 | BD157: 0.04714285714 | BH157: 0.345702745 | BI157: 147 | BJ157: 0.360554938 | BK157: 0.002716109268 | BL157: 0.7183937668 | BM157: 0.002716102589 | BN157: 0.6159133792 | BQ157: 0.345702745 | BU157: 149
A158: 100 | B158: 0.345702745 | C158: TRUE | AY158: 0.2042857143 | AZ158: 29 | BA158: =COUNTIF(AZ158:$AZ$1010,AZ158)-1 -> 6 | BB158: 0.56695 | BC158: 0.2042857143 | BD158: 0.2042857143 | BH158: 0.5622702062 | BI158: 148 | BJ158: 0.636146746 | BK158: 0.2783079172 | BL158: 0.9939855747 | BM158: 0.2713382973 | BN158: 0.7590566591 | BQ158: 0.5622702062 | BU158: 150
A159: 99 | B159: 0.5622702062 | C159: TRUE | AY159: 0.04714285714 | AZ159: 35 | BA159: =COUNTIF(AZ159:$AZ$1010,AZ159)-1 -> 1 | BB159: 0.68425 | BC159: 0.04714285714 | BD159: 0.04714285714 | BH159: 0.6768391516 | BI159: 149 | BJ159: 0.8232578304 | BK159: 0.4654190017 | BL159: 1.181096659 | BM159: 0.4344905346 | BN159: 0.8277971001 | BQ159: 0.6768391516 | BU159: 151
A160: 98 | B160: 0.6768391516 | C160: TRUE | AY160: 0.04714285714 | AZ160: 23 | BA160: =COUNTIF(AZ160:$AZ$1010,AZ160)-1 -> 1 | BB160: 0.44965 | BC160: 0.04714285714 | BD160: 0.04714285714 | BH160: 0.4507794842 | BI160: 150 | BJ160: 0.4856781186 | BK160: 0.1278392899 | BL160: 0.8435169474 | BM160: 0.1271473917 | BN160: 0.6876673796 | BQ160: 0.4507794842 | BU160: 152
A161: 97 | B161: 0.4507794842 | C161: TRUE | AY161: 0.01571428571 | AZ161: 35 | BA161: =COUNTIF(AZ161:$AZ$1010,AZ161)-1 -> 0 | BB161: 0.68425 | BC161: 0.01571428571 | BD161: 0.01571428571 | BH161: 0.6916727658 | BI161: 151 | BJ161: 0.8511557265 | BK161: 0.4933168978 | BL161: 1.208994555 | BM161: 0.4568450429 | BN161: 0.8363776346 | BQ161: 0.6916727658 | BU161: 153
A162: 96 | B162: 0.6916727658 | C162: TRUE | AY162: 0.1414285714 | AZ162: 28 | BA162: =COUNTIF(AZ162:$AZ$1010,AZ162)-1 -> 4 | BB162: 0.5474 | BC162: 0.1414285714 | BD162: 0.1414285714 | BH162: 0.5509831983 | BI162: 152 | BJ162: 0.6197920115 | BK162: 0.2619531828 | BL162: 0.9776308403 | BM162: 0.2561215012 | BN162: 0.7520384841 | BQ162: 0.5509831983 | BU162: 154
A163: 95 | B163: 0.5509831983 | C163: TRUE | AY163: 0.11 | AZ163: 38 | BA163: =COUNTIF(AZ163:$AZ$1010,AZ163)-1 -> 3 | BB163: 0.7429 | BC163: 0.11 | BD163: 0.11 | BH163: 0.7368180745 | BI163: 153 | BJ163: 0.9434822502 | BK163: 0.5856434214 | BL163: 1.301321079 | BM163: 0.5267550797 | BN163: 0.862062862 | BQ163: 0.7368180745 | BU163: 155
A164: 94 | B164: 0.7368180745 | C164: TRUE | AY164: 0.1728571429 | AZ164: 29 | BA164: =COUNTIF(AZ164:$AZ$1010,AZ164)-1 -> 5 | BB164: 0.56695 | BC164: 0.1728571429 | BD164: 0.1728571429 | BH164: =IF(NOT($BF$6),NA(),IF(B165="",NA(),B165)) -> 0.5625986209 | BI164: 154 | BJ164: =0.5*LN((1+BH164)/(1-BH164)) -> 0.6366271179 | BK164: 0.2787882892 | BL164: =BJ164+$BI$2*$BI$4 -> 0.9944659467 | BM164: =(EXP(2*BK164)-1)/(EXP(2*BK164)+1) -> 0.2717832441 | BN164: =(EXP(2*BL164)-1)/(EXP(2*BL164)+1) -> 0.7592601824 | BO164: =IF(NOT($BG$2),NA(),BH164-BM164) ->  | BP164: =IF(NOT($BG$2),NA(),BN164-BH164) ->  | BQ164: =IF(AND($BF$4,$BF$2,$BG$2),NA(),BH164) -> 0.5625986209 | BR164: =AND(BH164+BP164>$J$8,$J$8>BH164-BO164) ->  | BU164: 156
A165: 93 | B165: 0.5625986209 | C165: TRUE | AY165: 0.1414285714 | AZ165: 24 | BA165: =COUNTIF(AZ165:$AZ$1010,AZ165)-1 -> 4 | BB165: 0.4692 | BC165: 0.1414285714 | BD165: 0.1414285714 | BH165: 0.4786672637 | BI165: 155 | BJ165: 0.5212539882 | BK165: 0.1634151595 | BL165: 0.879092817 | BM165: 0.1619758907 | BN165: 0.705964556 | BQ165: 0.4786672637 | BU165: 157
A166: 92 | B166: 0.4786672637 | C166: TRUE | AY166: 0.11 | AZ166: 24 | BA166: =COUNTIF(AZ166:$AZ$1010,AZ166)-1 -> 3 | BB166: 0.4692 | BC166: 0.11 | BD166: 0.11 | BH166: 0.4687670935 | BI166: 156 | BJ166: 0.5084890361 | BK166: 0.1506502074 | BL166: 0.8663278649 | BM166: 0.1495207664 | BN166: 0.6995036041 | BQ166: 0.4687670935 | BU166: 158
A167: 91 | B167: 0.4687670935 | C167: TRUE | AY167: 0.2671428571 | AZ167: 36 | BA167: =COUNTIF(AZ167:$AZ$1010,AZ167)-1 -> 8 | BB167: 0.7038 | BC167: 0.2671428571 | BD167: 0.2671428571 | BH167: 0.6981263342 | BI167: 157 | BJ167: 0.8636360805 | BK167: 0.5057972518 | BL167: 1.221474909 | BM167: 0.4666641604 | BN167: 0.8400887072 | BQ167: 0.6981263342 | BU167: 159
A168: 90 | B168: 0.6981263342 | C168: TRUE | AY168: 0.01571428571 | AZ168: 18 | BA168: =COUNTIF(AZ168:$AZ$1010,AZ168)-1 -> 0 | BB168: 0.3519 | BC168: 0.01571428571 | BD168: 0.01571428571 | BH168: 0.3579493946 | BI168: 158 | BJ168: 0.3745319587 | BK168: 0.01669313 | BL168: 0.7323707875 | BM168: 0.0166915796 | BN168: 0.6245136306 | BQ168: 0.3579493946 | BU168: 160
A169: 89 | B169: 0.3579493946 | C169: TRUE | AY169: 0.07857142857 | AZ169: 27 | BA169: =COUNTIF(AZ169:$AZ$1010,AZ169)-1 -> 2 | BB169: 0.52785 | BC169: 0.07857142857 | BD169: 0.07857142857 | BH169: 0.5259384336 | BI169: 159 | BJ169: 0.5845138329 | BK169: 0.2266750042 | BL169: 0.9423526617 | BM169: 0.2228708652 | BN169: 0.7363013107 | BQ169: 0.5259384336 | BU169: 161
A170: 88 | B170: 0.5259384336 | C170: TRUE | AY170: 0.07857142857 | AZ170: 24 | BA170: =COUNTIF(AZ170:$AZ$1010,AZ170)-1 -> 2 | BB170: 0.4692 | BC170: 0.07857142857 | BD170: 0.07857142857 | BH170: 0.469015131 | BI170: 160 | BJ170: 0.5088069754 | BK170: 0.1509681467 | BL170: 0.8666458042 | BM170: 0.1498315829 | BN170: 0.699665938 | BQ170: 0.469015131 | BU170: 162
A171: 87 | B171: 0.469015131 | C171: TRUE | AY171: 0.1414285714 | AZ171: 33 | BA171: =COUNTIF(AZ171:$AZ$1010,AZ171)-1 -> 4 | BB171: 0.64515 | BC171: 0.1414285714 | BD171: 0.1414285714 | BH171: 0.6526638295 | BI171: 161 | BJ171: 0.7799253025 | BK171: 0.4220864738 | BL171: 1.137764131 | BM171: 0.3986867169 | BN171: 0.8136598382 | BQ171: 0.6526638295 | BU171: 163
A172: 86 | B172: 0.6526638295 | C172: TRUE | AY172: 0.2357142857 | AZ172: 36 | BA172: =COUNTIF(AZ172:$AZ$1010,AZ172)-1 -> 7 | BB172: 0.7038 | BC172: 0.2357142857 | BD172: 0.2357142857 | BH172: 0.707522731 | BI172: 162 | BJ172: 0.8822059764 | BK172: 0.5243671477 | BL172: 1.240044805 | BM172: 0.4810635502 | BN172: 0.8454683739 | BQ172: 0.707522731 | BU172: 164
A173: 85 | B173: 0.707522731 | C173: TRUE | AY173: 0.07857142857 | AZ173: 38 | BA173: =COUNTIF(AZ173:$AZ$1010,AZ173)-1 -> 2 | BB173: 0.7429 | BC173: 0.07857142857 | BD173: 0.07857142857 | BH173: 0.7337469673 | BI173: 163 | BJ173: 0.9367965576 | BK173: 0.5789577288 | BL173: 1.294635386 | BM173: 0.5219074726 | BN173: 0.8603357291 | BQ173: 0.7337469673 | BU173: 165
A174: 84 | B174: 0.7337469673 | C174: TRUE | AY174: 0.04714285714 | AZ174: 38 | BA174: =COUNTIF(AZ174:$AZ$1010,AZ174)-1 -> 1 | BB174: 0.7429 | BC174: 0.04714285714 | BD174: 0.04714285714 | BH174: 0.7420977551 | BI174: 164 | BJ174: 0.9551323275 | BK174: 0.5972934987 | BL174: 1.312971156 | BM174: 0.5351208822 | BN174: 0.8650252708 | BQ174: 0.7420977551 | BU174: 166
A175: 83 | B175: 0.7420977551 | C175: TRUE | AY175: 0.2042857143 | AZ175: 37 | BA175: =COUNTIF(AZ175:$AZ$1010,AZ175)-1 -> 6 | BB175: 0.72335 | BC175: 0.2042857143 | BD175: 0.2042857143 | BH175: 0.7241040372 | BI175: 165 | BJ175: 0.9162194738 | BK175: 0.5583806451 | BL175: 1.274058303 | BM175: 0.50677495 | BN175: 0.8548937691 | BQ175: 0.7241040372 | BU175: 167
A176: 82 | B176: 0.7241040372 | C176: TRUE | AY176: 0.2042857143 | AZ176: 25 | BA176: =COUNTIF(AZ176:$AZ$1010,AZ176)-1 -> 6 | BB176: 0.48875 | BC176: 0.2042857143 | BD176: 0.2042857143 | BH176: 0.4895417914 | BI176: 166 | BJ176: 0.5354575293 | BK176: 0.1776187005 | BL176: 0.893296358 | BM176: 0.1757741125 | BN176: 0.7130180506 | BQ176: 0.4895417914 | BU176: 168
A177: 81 | B177: 0.4895417914 | C177: TRUE | AY177: 0.04714285714 | AZ177: 32 | BA177: =COUNTIF(AZ177:$AZ$1010,AZ177)-1 -> 1 | BB177: 0.6256 | BC177: 0.04714285714 | BD177: 0.04714285714 | BH177: 0.629944791 | BI177: 167 | BJ177: 0.7413246073 | BK177: 0.3834857785 | BL177: 1.099163436 | BM177: 0.3657308338 | BN177: 0.8001983256 | BQ177: 0.629944791 | BU177: 169
A178: 80 | B178: 0.629944791 | C178: TRUE | AY178: 0.1414285714 | AZ178: 29 | BA178: =COUNTIF(AZ178:$AZ$1010,AZ178)-1 -> 4 | BB178: 0.56695 | BC178: 0.1414285714 | BD178: 0.1414285714 | BH178: 0.5703356813 | BI178: 168 | BJ178: 0.6480202178 | BK178: 0.2901813891 | BL178: 1.005859047 | BM178: 0.2823017546 | BN178: 0.7640438461 | BQ178: 0.5703356813 | BU178: 170
A179: 79 | B179: 0.5703356813 | C179: TRUE | AY179: 0.04714285714 | AZ179: 20 | BA179: =COUNTIF(AZ179:$AZ$1010,AZ179)-1 -> 1 | BB179: 0.391 | BC179: 0.04714285714 | BD179: 0.04714285714 | BH179: 0.3941376651 | BI179: 169 | BJ179: 0.4166892758 | BK179: 0.05885044709 | BL179: 0.7745281046 | BM179: 0.05878260069 | BN179: 0.6495547546 | BQ179: 0.3941376651 | BU179: 171
A180: 78 | B180: 0.3941376651 | C180: TRUE | AY180: 0.2671428571 | AZ180: 30 | BA180: =COUNTIF(AZ180:$AZ$1010,AZ180)-1 -> 8 | BB180: 0.5865 | BC180: 0.2671428571 | BD180: 0.2671428571 | BH180: 0.5875559153 | BI180: 170 | BJ180: 0.6739251541 | BK180: 0.3160863253 | BL180: 1.031763983 | BM180: 0.3059638815 | BN180: 0.7746148479 | BQ180: 0.5875559153 | BU180: 172
A181: 77 | B181: 0.5875559153 | C181: TRUE | AY181: 0.01571428571 | AZ181: 22 | BA181: =COUNTIF(AZ181:$AZ$1010,AZ181)-1 -> 0 | BB181: 0.4301 | BC181: 0.01571428571 | BD181: 0.01571428571 | BH181: 0.4252088773 | BI181: 171 | BJ181: 0.4540334763 | BK181: 0.09619464756 | BL181: 0.811872305 | BM181: 0.09589903218 | BN181: 0.6706218202 | BQ181: 0.4252088773 | BU181: 173
A182: 76 | B182: 0.4252088773 | C182: TRUE | AY182: 0.2357142857 | AZ182: 30 | BA182: =COUNTIF(AZ182:$AZ$1010,AZ182)-1 -> 7 | BB182: 0.5865 | BC182: 0.2357142857 | BD182: 0.2357142857 | BH182: 0.5910730704 | BI182: 172 | BJ182: 0.6793137354 | BK182: 0.3214749067 | BL182: 1.037152564 | BM182: 0.3108399304 | BN182: 0.7767611491 | BQ182: 0.5910730704 | BU182: 174
A183: 75 | B183: 0.5910730704 | C183: TRUE | AY183: 0.2042857143 | AZ183: 30 | BA183: =COUNTIF(AZ183:$AZ$1010,AZ183)-1 -> 6 | BB183: 0.5865 | BC183: 0.2042857143 | BD183: 0.2042857143 | BH183: 0.5808402515 | BI183: 173 | BJ183: 0.6637298404 | BK183: 0.3058910116 | BL183: 1.021568669 | BM183: 0.2966943969 | BN183: 0.7705046923 | BQ183: 0.5808402515 | BU183: 175
A184: 74 | B184: 0.5808402515 | C184: TRUE | AY184: 0.04714285714 | AZ184: 11 | BA184: =COUNTIF(AZ184:$AZ$1010,AZ184)-1 -> 1 | BB184: 0.21505 | BC184: 0.04714285714 | BD184: 0.04714285714 | BH184: 0.2206985173 | BI184: 174 | BJ184: 0.2243902728 | BK184: -0.1334485559 | BL184: 0.5822291016 | BM184: -0.1326619849 | BN184: 0.5242836991 | BQ184: 0.2206985173 | BU184: 176
A185: 73 | B185: 0.2206985173 | C185: FALSE | AY185: 0.04714285714 | AZ185: 21 | BA185: =COUNTIF(AZ185:$AZ$1010,AZ185)-1 -> 1 | BB185: 0.41055 | BC185: 0.04714285714 | BD185: 0.04714285714 | BH185: 0.4147748091 | BI185: 175 | BJ185: 0.4413644685 | BK185: 0.08352563978 | BL185: 0.7992032973 | BM185: 0.08333194052 | BN185: 0.6635911338 | BQ185: 0.4147748091 | BU185: 177
A186: 72 | B186: 0.4147748091 | C186: TRUE | AY186: 0.04714285714 | AZ186: 19 | BA186: =COUNTIF(AZ186:$AZ$1010,AZ186)-1 -> 1 | BB186: 0.37145 | BC186: 0.04714285714 | BD186: 0.04714285714 | BH186: 0.3776915016 | BI186: 176 | BJ186: 0.3973643023 | BK186: 0.03952547358 | BL186: 0.7552031311 | BM186: 0.03950490337 | BN186: 0.6382428141 | BQ186: 0.3776915016 | BU186: 178
A187: 71 | B187: 0.3776915016 | C187: TRUE | AY187: 0.11 | AZ187: 28 | BA187: =COUNTIF(AZ187:$AZ$1010,AZ187)-1 -> 3 | BB187: 0.5474 | BC187: 0.11 | BD187: 0.11 | BH187: 0.5474579625 | BI187: 177 | BJ187: 0.61474409 | BK187: 0.2569052613 | BL187: 0.9725829188 | BM187: 0.2513986484 | BN187: 0.7498371364 | BQ187: 0.5474579625 | BU187: 179
A188: 70 | B188: 0.5474579625 | C188: TRUE | AY188: 0.1728571429 | AZ188: 37 | BA188: =COUNTIF(AZ188:$AZ$1010,AZ188)-1 -> 5 | BB188: 0.72335 | BC188: 0.1728571429 | BD188: 0.1728571429 | BH188: 0.7154495688 | BI188: 178 | BJ188: 0.898259982 | BK188: 0.5404211533 | BL188: 1.256098811 | BM188: 0.4933066979 | BN188: 0.849985014 | BQ188: 0.7154495688 | BU188: 180
A189: 69 | B189: 0.7154495688 | C189: TRUE | AY189: 0.07857142857 | AZ189: 28 | BA189: =COUNTIF(AZ189:$AZ$1010,AZ189)-1 -> 2 | BB189: 0.5474 | BC189: 0.07857142857 | BD189: 0.07857142857 | BH189: 0.5539589303 | BI189: 179 | BJ189: 0.624075035 | BK189: 0.2662362063 | BL189: 0.9819138637 | BM189: 0.2601191562 | BN189: 0.7538932073 | BQ189: 0.5539589303 | BU189: 181
A190: 68 | B190: 0.5539589303 | C190: TRUE | AY190: 0.04714285714 | AZ190: 24 | BA190: =COUNTIF(AZ190:$AZ$1010,AZ190)-1 -> 1 | BB190: 0.4692 | BC190: 0.04714285714 | BD190: 0.04714285714 | BH190: 0.4661792196 | BI190: 180 | BJ190: 0.5051774801 | BK190: 0.1473386514 | BL190: 0.8630163088 | BM190: 0.146281653 | BN190: 0.6978084896 | BQ190: 0.4661792196 | BU190: 182
A191: 67 | B191: 0.4661792196 | C191: TRUE | AY191: 0.11 | AZ191: 29 | BA191: =COUNTIF(AZ191:$AZ$1010,AZ191)-1 -> 3 | BB191: 0.56695 | BC191: 0.11 | BD191: 0.11 | BH191: 0.5655111142 | BI191: 181 | BJ191: 0.6408986375 | BK191: 0.2830598088 | BL191: 0.9987374662 | BM191: 0.2757346318 | BN191: 0.7610634141 | BQ191: 0.5655111142 | BU191: 183
A192: 66 | B192: 0.5655111142 | C192: TRUE | AY192: 0.1728571429 | AZ192: 30 | BA192: =COUNTIF(AZ192:$AZ$1010,AZ192)-1 -> 5 | BB192: 0.5865 | BC192: 0.1728571429 | BD192: 0.1728571429 | BH192: 0.5842052679 | BI192: 182 | BJ192: 0.6688232232 | BK192: 0.3109843944 | BL192: 1.026662052 | BM192: 0.3013323726 | BN192: 0.7725661405 | BQ192: 0.5842052679 | BU192: 184
A193: 65 | B193: 0.5842052679 | C193: TRUE | AY193: 0.1414285714 | AZ193: 30 | BA193: =COUNTIF(AZ193:$AZ$1010,AZ193)-1 -> 4 | BB193: 0.5865 | BC193: 0.1414285714 | BD193: 0.1414285714 | BH193: 0.5849531712 | BI193: 183 | BJ193: 0.6699593933 | BK193: 0.3121205645 | BL193: 1.027798222 | BM193: 0.3023650232 | BN193: 0.773023776 | BQ193: 0.5849531712 | BU193: 185
A194: 64 | B194: 0.5849531712 | C194: TRUE | AY194: 0.1728571429 | AZ194: 25 | BA194: =COUNTIF(AZ194:$AZ$1010,AZ194)-1 -> 5 | BB194: 0.48875 | BC194: 0.1728571429 | BD194: 0.1728571429 | BH194: 0.4845944572 | BI194: 184 | BJ194: 0.5289714343 | BK194: 0.1711326056 | BL194: 0.886810263 | BM194: 0.1694813293 | BN194: 0.7098146825 | BQ194: 0.4845944572 | BU194: 186
A195: 63 | B195: 0.4845944572 | C195: TRUE | AY195: 0.1414285714 | AZ195: 37 | BA195: =COUNTIF(AZ195:$AZ$1010,AZ195)-1 -> 4 | BB195: 0.72335 | BC195: 0.1414285714 | BD195: 0.1414285714 | BH195: 0.7153079222 | BI195: 185 | BJ195: 0.8979698613 | BK195: 0.5401310326 | BL195: 1.25580869 | BM195: 0.4930871471 | BN195: 0.8499044782 | BQ195: 0.7153079222 | BU195: 187
A196: 62 | B196: 0.7153079222 | C196: TRUE | AY196: 0.1728571429 | AZ196: 26 | BA196: =COUNTIF(AZ196:$AZ$1010,AZ196)-1 -> 5 | BB196: 0.5083 | BC196: 0.1728571429 | BD196: 0.1728571429 | BH196: 0.5060892434 | BI196: 186 | BJ196: 0.5574584094 | BK196: 0.1996195807 | BL196: 0.9152972382 | BM196: 0.1970096935 | BN196: 0.7236650613 | BQ196: 0.5060892434 | BU196: 188
A197: 61 | B197: 0.5060892434 | C197: TRUE | AY197: 0.01571428571 | AZ197: 23 | BA197: =COUNTIF(AZ197:$AZ$1010,AZ197)-1 -> 0 | BB197: 0.44965 | BC197: 0.01571428571 | BD197: 0.01571428571 | BH197: 0.4518908551 | BI197: 187 | BJ197: 0.4870737936 | BK197: 0.1292349649 | BL197: 0.8449126223 | BM197: 0.128520259 | BN197: 0.6884023529 | BQ197: 0.4518908551 | BU197: 189
A198: 60 | B198: 0.4518908551 | C198: TRUE | AY198: 0.11 | AZ198: 33 | BA198: =COUNTIF(AZ198:$AZ$1010,AZ198)-1 -> 3 | BB198: 0.64515 | BC198: 0.11 | BD198: 0.11 | BH198: 0.6361515388 | BI198: 188 | BJ198: 0.7516823374 | BK198: 0.3938435086 | BL198: 1.109521166 | BM198: 0.3746689454 | BN198: 0.8038930663 | BQ198: 0.6361515388 | BU198: 190
A199: 59 | B199: 0.6361515388 | C199: TRUE | AY199: 0.04714285714 | AZ199: 28 | BA199: =COUNTIF(AZ199:$AZ$1010,AZ199)-1 -> 1 | BB199: 0.5474 | BC199: 0.04714285714 | BD199: 0.04714285714 | BH199: 0.5408286673 | BI199: 189 | BJ199: 0.605326116 | BK199: 0.2474872873 | BL199: 0.9631649447 | BM199: 0.2425552256 | BN199: 0.7456852748 | BQ199: 0.5408286673 | BU199: 191
A200: 58 | B200: 0.5408286673 | C200: TRUE | AY200: 0.2042857143 | AZ200: 36 | BA200: =COUNTIF(AZ200:$AZ$1010,AZ200)-1 -> 6 | BB200: 0.7038 | BC200: 0.2042857143 | BD200: 0.2042857143 | BH200: 0.7003153283 | BI200: 190 | BJ200: 0.8679190863 | BK200: 0.5100802576 | BL200: 1.225757915 | BM200: 0.4700077294 | BN200: 0.8413444598 | BQ200: 0.7003153283 | BU200: 192
... 810 more rows

Sheet Two correlations
C1: Two correlations | I1: =($E$8+$E$11+$F$9+$F$12+$C$15)/1000000 -> 0.0001558 | J1: =$I$1 -> 0.0001558 | K1: 0.0001558 | L1: 0.0001558 | M1: 0.0001558 | N1: 0.0001558 | O1: 0.0001558 | P1: 0.0001558 | Q1: 0.0001558 | AR1: For display | AS1: 1 | AT1: =E8 -> 0.2 | AW1: Diff axis
C2: See CIs on two independent correlations, r1 and r2. | I2: =$I$1 -> 0.0001558 | Q2: =$I$1 -> 0.0001558 | AQ2: z for C | AR2: =NORMSINV(0.5+C15/200) -> 1.959963985 | AS2: 2 | AT2: =E11 -> 0.6 | AV2: 1.9 | AW2: 3.3 | AX2: =IF(AND($AU$12,AY2<=$AR$25,AY2>=$AR$26),AY2,NA()) ->  | AY2: =$E$8+AV2 -> 2.1
C3: See overlap of the two CIs, and | I3: 0.0001558 | Q3: 0.0001558 | AQ3: For overlap lines | AS3: tweak | AT3: 0.04 | AV3: 1.8 | AW3: =AW2 -> 3.3 | AY3: =$E$8+AV3 -> 2
C4: the p value for the difference. | I4: 0.0001558 | Q4: 0.0001558 | AQ4: =IF(AU9,IF(E19>F19,1+AT3,1),NA()) -> 1 | AR4: =MAX(E19:F19) -> 0.3058420678 | AS4: =IF(AU9,IF(E18>F18,1,1+AT3),NA()) -> 1.04 | AT4: =MIN(E18:F18) -> 0.5226129503 | AV4: 1.7 | AW4: 3.3 | AY4: 1.9
C5: Display the CI on the difference (r2 - r1). | I5: 0.0001558 | Q5: 0.0001558 | AQ5: =IF(AU9,IF(E19>F19,2,2-AT3),NA()) -> 1.96 | AR5: =MAX(E19:F19) -> 0.3058420678 | AS5: =IF(AU9,IF(E18>F18,2-AT3,2),NA()) -> 2 | AT5: =MIN(E18:F18) -> 0.5226129503 | AV5: 1.6 | AW5: 3.3 | AY5: 1.8
I6: 0.0001558 | Q6: 0.0001558 | AR6: r1 | AS6: r2 | AT6: Diff z | AU6: =ABS(AR7-AS7) -> 0.4904146265 | AV6: 1.5 | AW6: 3.3 | AY6: 1.7
A7: 1 | B7: Set correlations and set sizes | I7: 0.0001558 | Q7: 0.0001558 | AQ7: z | AR7: =0.5*LN((1+E8)/(1-E8)) -> 0.2027325541 | AS7: =0.5*LN((1+E11)/(1-E11)) -> 0.6931471806 | AT7: SD diff z | AU7: =SQRT(1/(F9-3)+1/(F12-3)) -> 0.272165527 | AV7: 1.4 | AW7: 3.3 | AY7: 1.6
D8: r1 | E8: =(AT18-1000)/1000 -> 0.2 | F8: N1 | I8: 0.0001558 | Q8: 0.0001558 | AQ8: SD of z | AR8: =1/SQRT(F9-3) -> 0.1924500897 | AS8: =1/SQRT(F12-3) -> 0.1924500897 | AT8: z for diff | AU8: =AU6/AU7 -> 1.801898396 | AV8: 1.3 | AW8: 3.3 | AY8: 1.5
D9: SLIDER | F9: =AT21 -> 30 | I9: 0.0001558 | Q9: 0.0001558 | AQ9: CI(z) ul | AR9: =AR7+$AR$2*AR8 -> 0.5799277987 | AS9: =AS7+$AR$2*AS8 -> 1.070342425 | AT9: dspolap? | AU9: TRUE | AV9: 1.2 | AW9: 3.3 | AY9: 1.4
I10: 0.0001558 | Q10: 0.0001558 | AQ10: CI(z) ll | AR10: =AR7-$AR$2*AR8 -> -0.1744626906 | AS10: =AS7-$AR$2*AS8 -> 0.3159519359 | AT10: for cond'l format | AV10: 1.1 | AW10: 3.3 | AY10: 1.3
D11: r2 | E11: =(AT19-1000)/1000 -> 0.6 | F11: N2 | I11: 0.0001558 | Q11: 0.0001558 | AQ11: CI(z)moe | AR11: =$AR$2*AR8 -> 0.3771952447 | AT11: =IF(E8>=E11,9,-9) -> -9 | AV11: 1 | AW11: 3.3 | AX11: 1.2 | AY11: 1.2
D12: SLIDER | F12: =AT23 -> 30 | I12: 0.0001558 | Q12: 0.0001558 | AQ12: Difference (r2 - r1) | AT12: DiffAxis? | AU12: TRUE | AV12: 0.9 | AW12: 3.3 | AX12: 1.1 | AY12: 1.1
I13: 0.0001558 | Q13: 0.0001558 | AQ13: r2 - r1 | AR13: =E11-E8 -> 0.4 | AS13: bars | AV13: 0.8 | AW13: 3.3 | AX13: 1 | AY13: 1
A14: 2 | I14: 0.0001558 | Q14: 0.0001558 | AQ14: UL(r)diff | AR14: =AR13+SQRT((F18-E11)^2+(E8-E19)^2) -> 0.8181627816 | AS14: =AR14-AR13 -> 0.4181627816 | AV14: 0.7 | AW14: 3.3 | AX14: 0.9 | AY14: 0.9
B15: C | C15: =IF(AT25<100,AT25,99+(AT25-99)/10) -> 95 | I15: 0.0001558 | Q15: 0.0001558 | AQ15: LL(r)diff | AR15: =AR13-SQRT((E11-F19)^2+(E18-E8)^2) -> -0.03658676662 | AS15: =AR13-AR15 -> 0.4365867666 | AV15: 0.6 | AW15: 3.3 | AX15: 0.8 | AY15: 0.8
I16: 0.0001558 | Q16: 0.0001558 | AQ16: Diff for display | AV16: 0.5 | AW16: 3.3 | AX16: 0.7 | AY16: 0.7
A17: 3 | B17: Descriptive statistics | E17: r1 | F17: r2 | I17: 0.0001558 | Q17: 0.0001558 | AQ17: 2.9 | AR17: =IF(AU12,E11,NA()) -> 0.6 | AT17: sliders | AV17: 0.4 | AW17: 3.3 | AX17: 0.6 | AY17: 0.6
D18: upper CI limit (UL) | E18: =(EXP(2*AR9)-1)/(EXP(2*AR9)+1) -> 0.5226129503 | F18: =(EXP(2*AS9)-1)/(EXP(2*AS9)+1) -> 0.7895901951 | I18: 0.0001558 | Q18: 0.0001558 | AQ18: Dashed horiz | AT18: 1200 | AV18: 0.3 | AW18: 3.3 | AX18: 0.5 | AY18: 0.5
D19: lower CI limit (LL) | E19: =(EXP(2*AR10)-1)/(EXP(2*AR10)+1) -> -0.1727139249 | F19: =(EXP(2*AS10)-1)/(EXP(2*AS10)+1) -> 0.3058420678 | I19: 0.0001558 | Q19: 0.0001558 | AQ19: =AS1 -> 1 | AR19: =IF(AU12,E8,NA()) -> 0.2 | AT19: 1600 | AV19: 0.2 | AW19: 3.3 | AX19: 0.4 | AY19: 0.4
I20: 0.0001558 | Q20: 0.0001558 | AQ20: =AW2 -> 3.3 | AR20: =IF($AU$12,E8,NA()) -> 0.2 | AT20: N1 | AV20: 0.1 | AW20: 3.3 | AX20: 0.3 | AY20: 0.3
D21: CI arm length | E21: r1 | F21: r2 | I21: 0.0001558 | Q21: 0.0001558 | AQ21: =AS2 -> 2 | AR21: =IF($AU$12,AR17,NA()) -> 0.6 | AT21: 30 | AV21: 0 | AW21: 3.3 | AX21: 0.2 | AY21: 0.2
D22: upper arm | E22: =E18-E8 -> 0.3226129503 | F22: =F18-E11 -> 0.1895901951 | I22: 0.0001558 | Q22: 0.0001558 | AQ22: =AQ17 -> 2.9 | AR22: =IF($AU$12,AR17,NA()) -> 0.6 | AT22: N2 | AV22: -0.1 | AW22: 3.3 | AX22: 0.1 | AY22: 0.1
D23: lower arm | E23: =E8-E19 -> 0.3727139249 | F23: =E11-F19 -> 0.2941579322 | I23: 0.0001558 | Q23: 0.0001558 | AQ23: =AQ22 -> 2.9 | AR23: =IF($AU$12,AR17,NA()) -> 0.6 | AT23: 30 | AV23: -0.2 | AW23: 3.3 | AX23: 0 | AY23: 0
D24: MOEav | E24: =(E22+E23)/2 -> 0.3476634376 | F24: =(F22+F23)/2 -> 0.2418740637 | I24: 0.0001558 | Q24: 0.0001558 | AQ24: =AW2 -> 3.3 | AR24: =IF($AU$12,AR17,NA()) -> 0.6 | AT24: for C | AV24: -0.3 | AW24: 3.3 | AY24: -0.1
I25: 0.0001558 | Q25: 0.0001558 | AQ25: max | AR25: =MAX(E8,E8+AR14)+0.2 -> 1.218162782 | AT25: 95 | AV25: -0.4 | AW25: 3.3 | AY25: -0.2
A26: 4 | B26: Overlap | E26: Mark overlap | I26: 0.0001558 | Q26: 0.0001558 | AQ26: min | AR26: =MIN(E8,E8+AR15)-0.2 -> -0.03658676662 | AV26: -0.5 | AW26: 3.3 | AY26: -0.3
C27: Average overlap arm | D27: =IF(E8>E11,AVERAGE(E23,F22),AVERAGE(E22,F23)) -> 0.3083854413 | F27: Overlap | I27: 0.0001558 | Q27: 0.0001558 | AQ27: point for label | AV27: -0.6 | AW27: 3.3 | AY27: -0.4
C28: Arm ratio | D28: =IF(C15>0,IF(E8>E11,IF(E23>F22,E23/F22,F22/E23),IF(E22>F23,E22/F23,F23/E22)),"") -> 1.096733812 | F28: =IF(C15>0,(AT4-AR4)/D27,"") -> 0.7029219072 | I28: 0.0001558 | Q28: 0.0001558 | AQ28: =AW2+0.5 -> 3.8 | AR28: =IF($AU$12,E8,NA()) -> 0.2 | AV28: -0.7 | AW28: 3.3 | AY28: -0.5
F29: two-tail p | G29: =2*(1-NORMSDIST(AU8)) -> 0.07156139264 | I29: 0.0001558 | Q29: 0.0001558 | AQ29: part X axis | AS29: bar | AV29: -0.8 | AW29: 3.3 | AY29: -0.6
I30: 0.0001558 | Q30: 0.0001558 | AQ30: 0 | AR30: 0 | AS30: 2.4 | AV30: -0.9 | AW30: 3.3 | AY30: -0.7
A31: 5 | B31: CI on the difference | I31: 0.0001558 | Q31: 0.0001558 | AV31: -1 | AW31: 3.3 | AY31: -0.8
B32: Display CI and difference axis | F32: r2 - r1 | G32: =E11-E8 -> 0.4 | I32: 0.0001558 | Q32: 0.0001558 | AV32: -1.1 | AW32: 3.3 | AY32: -0.9
C33: upper arm | D33: =AS14 -> 0.4181627816 | F33: ULdiff | G33: =AR14 -> 0.8181627816 | I33: 0.0001558 | Q33: 0.0001558 | AV33: -1.2 | AW33: 3.3 | AY33: -1
C34: lower arm | D34: =AS15 -> 0.4365867666 | F34: LLdiff | G34: =AR15 -> -0.03658676662 | I34: 0.0001558 | Q34: 0.0001558 | AV34: -1.3 | AW34: 3.3 | AY34: -1.1
C35: MOEav | D35: =(D33+D34)/2 -> 0.4273747741 | I35: 0.0001558 | Q35: 0.0001558 | AV35: -1.4 | AW35: 3.3 | AY35: -1.2
AV36: -1.5 | AW36: 3.3 | AY36: -1.3
AV37: -1.6 | AW37: 3.3 | AY37: -1.4
AV38: -1.7 | AW38: 3.3 | AY38: -1.5
AV39: -1.8 | AW39: 3.3 | AY39: -1.6
AV40: -1.9 | AW40: 3.3 | AY40: -1.7

Sheet Figure
C1: Figure of ESs and CIs | O1: 4 Dependent variable | T1: 6 Reference value label | AC1: =(AC82+SUM(F12,G11,G13,J12,K11,K13,N12,O11,O13,R12,S11,S13,F18)+SUM(G17,G19,J18,K17,K19,N18,O17,O19,R18,S17,S19,F24)+SUM(G23,G25,J24,K23,K25,N24,O23,O25,R24,S23,S25,F30,G29,G31,J30,K29,K31,N30,O29,O31,R30)+SUM(S29,S31,Y11,Y13,Y17,Y19,Y23,Y25,Y29,Y31,Y36,Y37,Y38,Y4))/10000000 -> 0.0001416 | AD1: =$AC$1 -> 0.0001416 | AE1: 0.0001416 | AF1: 0.0001416 | AG1: 0.0001416 | AH1: 0.0001416 | AI1: 0.0001416 | AJ1: 0.0001416 | AK1: 0.0001416 | AL1: 0.0001416 | AM1: 0.0001416 | AN1: 0.0001416 | AO1: 0.0001416 | AP1: 0.0001416 | AQ1: 0.0001416
C2: The top figure shows up to 4 data series, each with up to 4 points | P2: Label: | T2: Clinical threshold | AC2: =$AC$1 -> 0.0001416 | AQ2: =$AC$1 -> 0.0001416
C3: Enter means (or other effect size estimates) for all data points | O3: Anxiety score | T3: Display | AC3: 0.0001416 | AQ3: 0.0001416
C4: Enter lengths of + and - bars of CIs, for all data points | O4: 5 Horizontal offset | X4: Value | Y4: 60 | AC4: 0.0001416 | AQ4: 0.0001416
C5: A second figure shows differences between two selected points | R5: =AC82 -> 19 | AC5: 0.0001416 | AQ5: 0.0001416
W6: 8 | Y6: Lower figure | AC6: 0.0001416 | AQ6: 0.0001416
F7: Point 1 | H7: 7 | J7: Point 2 | N7: Point 3 | R7: Point 4 | X7: Difference | AC7: 0.0001416 | AQ7: 0.0001416
D8: 2 Labels:. | E8: Pretest | I8: Posttest | M8: Follow Up 1 | Q8: Follow Up 2 | W8: =IF(AK101="","",AK101) -> Posttest - Pretest | AC8: 0.0001416 | AQ8: 0.0001416
E9: 1 | F9: Mean | G9: Bars | J9: Mean | K9: Bars | N9: Mean | O9: Bars | R9: Mean | S9: Bars | X9: Diff | Y9: Bars | AC9: 0.0001416 | AQ9: 0.0001416
C10: Series 1 | AC10: 0.0001416 | AQ10: 0.0001416
B11: Label: | C11: 3 | F11: + | G11: 13 | J11: + | K11: 17 | N11: + | O11: 14 | R11: + | S11: 16 | X11: + | Y11: 7 | AC11: 0.0001416 | AQ11: 0.0001416
B12: Treatment | F12: 76 | J12: 45 | N12: 47 | R12: 37 | X12: =AK102 -> -31 | AC12: 0.0001416 | AQ12: 0.0001416
B13: Display Series 1 | F13: - | J13: - | N13: - | R13: - | X13: - | AC13: 0.0001416 | AQ13: 0.0001416
C14: Display line | AC14: 0.0001416 | AQ14: 0.0001416
AC15: 0.0001416 | AQ15: 0.0001416
C16: Series 2 | AC16: 0.0001416 | AQ16: 0.0001416
B17: Label: | F17: + | G17: 14 | J17: + | K17: 12 | N17: + | O17: 17 | R17: + | S17: 17 | X17: + | Y17: 6 | AC17: 0.0001416 | AQ17: =$AC$1 -> 0.0001416
B18: Control | F18: 87 | J18: 80 | N18: 72 | R18: 84 | X18: =AK103 -> -7 | AC18: 0.0001416 | AQ18: 0.0001416
B19: Display series 2 | F19: - | J19: - | N19: - | R19: - | X19: - | AC19: 0.0001416 | AQ19: 0.0001416
C20: Display line | AC20: 0.0001416 | AQ20: 0.0001416
AC21: 0.0001416 | AQ21: 0.0001416
C22: Series 3 | AC22: 0.0001416 | AQ22: 0.0001416
B23: Label: | F23: + | G23: 13 | J23: + | K23: 23 | N23: + | O23: 14 | R23: + | S23: 17 | X23: + | Y23: 4 | AC23: 0.0001416 | AQ23: 0.0001416
B24: Treatment 2 | F24: 74 | J24: 57 | N24: 58 | R24: 64 | X24: =AK104 ->  | AC24: 0.0001416 | AQ24: 0.0001416
B25: Display series 3 | F25: - | J25: - | N25: - | R25: - | X25: - | AC25: 0.0001416 | AQ25: 0.0001416
C26: Display line | AC26: 0.0001416 | AQ26: 0.0001416
AC27: 0.0001416 | AQ27: 0.0001416
C28: Series 4 | AC28: 0.0001416 | AQ28: 0.0001416
B29: Label: | F29: + | G29: 17 | J29: + | K29: 16 | N29: + | O29: 23 | R29: + | S29: 17 | X29: + | Y29: 17 | AC29: 0.0001416 | AQ29: 0.0001416
B30: Treatment 3 | F30: 92 | J30: 93 | N30: 70 | R30: 67 | X30: =AK105 ->  | AC30: 0.0001416 | AQ30: 0.0001416
B31: Display series 4 | F31: - | J31: - | N31: - | R31: - | X31: - | AC31: 0.0001416 | AQ31: 0.0001416
C32: Display line | AC32: 0.0001416 | AQ32: 0.0001416
W33: Lower figure | AC33: 0.0001416 | AQ33: 0.0001416
AC34: =$AC$1 -> 0.0001416 | AQ34: 0.0001416
M35: 9 Reference labels | AC35: 0.0001416 | AD35: =$AC$1 -> 0.0001416 | AE35: 0.0001416 | AF35: 0.0001416 | AG35: 0.0001416 | AH35: 0.0001416 | AI35: 0.0001416 | AJ35: 0.0001416 | AK35: 0.0001416 | AL35: 0.0001416 | AM35: 0.0001416 | AN35: 0.0001416 | AO35: 0.0001416 | AP35: 0.0001416 | AQ35: 0.0001416
M36: Large | Q36: Display label at this position: | Y36: -30 | AC36: 0.0001416 | AQ36: 0.0001416
M37: Medium | Q37: Display label at this position: | Y37: -20 | AC37: 0.0001416 | AQ37: 0.0001416
M38: Small | Q38: Display label at this position: | Y38: -10 | AC38: 0.0001416 | AQ38: 0.0001416
AC39: 0.0001416 | AQ39: 0.0001416
AC40: 0.0001416 | AQ40: 0.0001416
AC41: 0.0001416 | AQ41: 0.0001416
AC42: 0.0001416 | AQ42: 0.0001416
AC43: 0.0001416 | AQ43: 0.0001416
AC44: 0.0001416 | AQ44: 0.0001416
AC45: 0.0001416 | AQ45: 0.0001416
AC46: 0.0001416 | AQ46: 0.0001416
AC47: 0.0001416 | AQ47: 0.0001416
AC48: 0.0001416 | AQ48: 0.0001416
AC49: 0.0001416 | AQ49: 0.0001416
AC50: 0.0001416 | AQ50: 0.0001416
AC51: 0.0001416 | AQ51: 0.0001416
AC52: 0.0001416 | AQ52: 0.0001416
AC53: 0.0001416 | AQ53: 0.0001416
N81: Lower fig | S81: For horiz axis labels | T81: diff fig | AC81: offset | AH81: Display | AI81: xinc | AJ81: 0.005 | AK81: =AJ81*AC82 -> 0.095
N82: =IF(seriesonetf,IF(B12="","",B12),"") -> Treatment | R82: =IF(E8="","",E8) -> Pretest | S82: =AVERAGE(AI83:AI98,0) -> 58.66666667 | T82: 0 | AC82: 19 | AE82: M | AF82: xoffset | AG82: x | AH82: x | AI82: M | AJ82: bar+ | AK82: bar- | AL82: forbar- | AM82: disp line
N83: =IF(seriestwotf,IF(B18="","",B18),"") -> Control | R83: =IF(I8="","",I8) -> Posttest | S83: =S82 -> 58.66666667 | T83: 0 | AC83: Series 1 | AD83: 1 | AE83: =IF(F12="","",F12) -> 76 | AF83: =-1.5*$AK$81 -> -0.1425 | AG83: =AD83+AF83 -> 0.8575 | AH83: =IF(AND(AE83<>"",$AC$84),AD83+AF83,NA()) -> 0.8575 | AI83: =IF($AC$84,AE83,"") -> 76 | AJ83: =IF(AND(AE83<>"",$AC$84),G11,NA()) -> 13 | AK83: =IF($AC$84,IF(AL83="",AJ83,AL83),NA()) -> 13 | AL83: =IF(G13="","",G13) ->  | AM83: =IF(AND($AC$84,$AC$85),AE83,NA()) -> 76
N84: =IF(seriesthreetf,IF(B24="","",B24),"") ->  | R84: =IF(M8="","",M8) -> Follow Up 1 | S84: =S83 -> 58.66666667 | T84: 0 | AC84: TRUE | AD84: 2 | AE84: =IF(J12="","",J12) -> 45 | AF84: =-1.5*$AK$81 -> -0.1425 | AG84: =AD84+AF84 -> 1.8575 | AH84: =IF(AND(AE84<>"",$AC$84),AD84+AF84,NA()) -> 1.8575 | AI84: =IF($AC$84,AE84,"") -> 45 | AJ84: =IF(AND(AE84<>"",$AC$84),K11,NA()) -> 17 | AK84: =IF($AC$84,IF(AL84="",AJ84,AL84),NA()) -> 17 | AL84: =IF(K13="","",K13) ->  | AM84: =IF(AND($AC$84,$AC$85),AE84,NA()) -> 45
N85: =IF(seriesfourtf,IF(B30="","",B30),"") ->  | R85: =IF(Q8="","",Q8) -> Follow Up 2 | S85: =S84 -> 58.66666667 | T85: 0 | AC85: TRUE | AD85: 3 | AE85: =IF(N12="","",N12) -> 47 | AF85: =-1.5*$AK$81 -> -0.1425 | AG85: 2.8575 | AH85: =IF(AND(AE85<>"",$AC$84),AD85+AF85,NA()) -> 2.8575 | AI85: =IF($AC$84,AE85,"") -> 47 | AJ85: =IF(AND(AE85<>"",$AC$84),O11,NA()) -> 14 | AK85: =IF($AC$84,IF(AL85="",AJ85,AL85),NA()) -> 14 | AL85: =IF(O13="","",O13) ->  | AM85: =IF(AND($AC$84,$AC$85),AE85,NA()) -> 47
AD86: 4 | AE86: =IF(R12="","",R12) -> 37 | AF86: =-1.5*$AK$81 -> -0.1425 | AG86: 3.8575 | AH86: =IF(AND(AE86<>"",$AC$84),AD86+AF86,NA()) -> 3.8575 | AI86: =IF($AC$84,AE86,"") -> 37 | AJ86: =IF(AND(AE86<>"",$AC$84),S11,NA()) -> 16 | AK86: =IF($AC$84,IF(AL86="",AJ86,AL86),NA()) -> 16 | AL86: =IF(S13="","",S13) ->  | AM86: =IF(AND($AC$84,$AC$85),AE86,NA()) -> 37
N87: Label for difference series | AC87: Series 2 | AD87: 1 | AE87: =IF(F18="","",F18) -> 87 | AF87: =-0.5*$AK$81 -> -0.0475 | AG87: 0.9525 | AH87: =IF(AND(AE87<>"",$AC$88),AD87+AF87,NA()) -> 0.9525 | AI87: =IF($AC$88,AE87,"") -> 87 | AJ87: =IF(AND(AE87<>"",$AC$88),G17,NA()) -> 14 | AK87: =IF($AC$88,IF(AL87="",AJ87,AL87),NA()) -> 14 | AL87: =IF(G19="","",G19) ->  | AM87: =IF(AND($AC$88,$AC$89),AE87,NA()) -> 87
N88: =I8&" - "&E8 -> Posttest - Pretest | R88: allfalse? | AC88: TRUE | AD88: 2 | AE88: =IF(J18="","",J18) -> 80 | AF88: =-0.5*$AK$81 -> -0.0475 | AG88: 1.9525 | AH88: =IF(AND(AE88<>"",$AC$88),AD88+AF88,NA()) -> 1.9525 | AI88: =IF($AC$88,AE88,"") -> 80 | AJ88: =IF(AND(AE88<>"",$AC$88),K17,NA()) -> 12 | AK88: =IF($AC$88,IF(AL88="",AJ88,AL88),NA()) -> 12 | AL88: =IF(K19="","",K19) ->  | AM88: =IF(AND($AC$88,$AC$89),AE88,NA()) -> 80
N89: For ES labels | R89: =OR(seriesonetf,seriestwotf,seriesthreetf,seriesfourtf) -> TRUE | AC89: TRUE | AD89: 3 | AE89: =IF(N18="","",N18) -> 72 | AF89: =-0.5*$AK$81 -> -0.0475 | AG89: 2.9525 | AH89: =IF(AND(AE89<>"",$AC$88),AD89+AF89,NA()) -> 2.9525 | AI89: =IF($AC$88,AE89,"") -> 72 | AJ89: =IF(AND(AE89<>"",$AC$88),O17,NA()) -> 17 | AK89: =IF($AC$88,IF(AL89="",AJ89,AL89),NA()) -> 17 | AL89: =IF(O19="","",O19) ->  | AM89: =IF(AND($AC$88,$AC$89),AE89,NA()) -> 72
N90: 0.5 | O90: =IF(R90,Y36,NA()) -> -30 | R90: TRUE | AD90: 4 | AE90: =IF(R18="","",R18) -> 84 | AF90: =-0.5*$AK$81 -> -0.0475 | AG90: 3.9525 | AH90: =IF(AND(AE90<>"",$AC$88),AD90+AF90,NA()) -> 3.9525 | AI90: =IF($AC$88,AE90,"") -> 84 | AJ90: =IF(AND(AE90<>"",$AC$88),S17,NA()) -> 17 | AK90: =IF($AC$88,IF(AL90="",AJ90,AL90),NA()) -> 17 | AL90: =IF(S19="","",S19) ->  | AM90: =IF(AND($AC$88,$AC$89),AE90,NA()) -> 84
N91: =N90 -> 0.5 | O91: =IF(R91,Y37,NA()) -> -20 | R91: TRUE | AC91: Series 3 | AD91: 1 | AE91: =IF(F24="","",F24) -> 74 | AF91: =0.5*$AK$81 -> 0.0475 | AG91: 1.0475 | AH91: =IF(AND(AE91<>"",$AC$92),AD91+AF91,NA()) ->  | AI91: =IF($AC$92,AE91,"") ->  | AJ91: =IF(AND(AE91<>"",$AC$92),G23,NA()) ->  | AK91: =IF($AC$92,IF(AL91="",AJ91,AL91),NA()) ->  | AL91: =IF(G25="","",G25) ->  | AM91: =IF(AND($AC$92,$AC$93),AE91,NA()) -> 
N92: =N91 -> 0.5 | O92: =IF(R92,Y38,NA()) -> -10 | R92: TRUE | AC92: FALSE | AD92: 2 | AE92: =IF(J24="","",J24) -> 57 | AF92: =0.5*$AK$81 -> 0.0475 | AG92: 2.0475 | AH92: =IF(AND(AE92<>"",$AC$92),AD92+AF92,NA()) ->  | AI92: =IF($AC$92,AE92,"") ->  | AJ92: =IF(AND(AE92<>"",$AC$92),K23,NA()) ->  | AK92: =IF($AC$92,IF(AL92="",AJ92,AL92),NA()) ->  | AL92: =IF(K25="","",K25) ->  | AM92: =IF(AND($AC$92,$AC$93),AE92,NA()) -> 
AC93: TRUE | AD93: 3 | AE93: =IF(N24="","",N24) -> 58 | AF93: =0.5*$AK$81 -> 0.0475 | AG93: 3.0475 | AH93: =IF(AND(AE93<>"",$AC$92),AD93+AF93,NA()) ->  | AI93: =IF($AC$92,AE93,"") ->  | AJ93: =IF(AND(AE93<>"",$AC$92),O23,NA()) ->  | AK93: =IF($AC$92,IF(AL93="",AJ93,AL93),NA()) ->  | AL93: =IF(O25="","",O25) ->  | AM93: =IF(AND($AC$92,$AC$93),AE93,NA()) ->  | AN93: For differences, lower figure
N94: Label for lower figure, vertical axis | AD94: 4 | AE94: =IF(R24="","",R24) -> 64 | AF94: =0.5*$AK$81 -> 0.0475 | AG94: 4.0475 | AH94: =IF(AND(AE94<>"",$AC$92),AD94+AF94,NA()) ->  | AI94: =IF($AC$92,AE94,"") ->  | AJ94: =IF(AND(AE94<>"",$AC$92),S23,NA()) ->  | AK94: =IF($AC$92,IF(AL94="",AJ94,AL94),NA()) ->  | AL94: =IF(S25="","",S25) ->  | AM94: =IF(AND($AC$92,$AC$93),AE94,NA()) ->  | AN94: bar+ | AO94: bar- | AP94: forbar-
N95: =O3&" difference" -> Anxiety score difference | AC95: Series 4 | AD95: 1 | AE95: =IF(F30="","",F30) -> 92 | AF95: =1.5*$AK$81 -> 0.1425 | AG95: 1.1425 | AH95: =IF(AND(AE95<>"",$AC$96),AD95+AF95,NA()) ->  | AI95: =IF($AC$96,AE95,"") ->  | AJ95: =IF(AND(AE95<>"",$AC$96),G29,NA()) ->  | AK95: =IF($AC$96,IF(AL95="",AJ95,AL95),NA()) ->  | AL95: =IF(G31="","",G31) ->  | AM95: =IF(AND($AC$96,$AC$97),AE95,NA()) ->  | AN95: =Y11 -> 7 | AO95: =IF(AP95="",AN95,AP95) -> 7 | AP95: =IF(Y13="","",Y13) -> 
AC96: FALSE | AD96: 2 | AE96: =IF(J30="","",J30) -> 93 | AF96: =1.5*$AK$81 -> 0.1425 | AG96: 2.1425 | AH96: =IF(AND(AE96<>"",$AC$96),AD96+AF96,NA()) ->  | AI96: =IF($AC$96,AE96,"") ->  | AJ96: =IF(AND(AE96<>"",$AC$96),K29,NA()) ->  | AK96: =IF($AC$96,IF(AL96="",AJ96,AL96),NA()) ->  | AL96: =IF(K31="","",K31) ->  | AM96: =IF(AND($AC$96,$AC$97),AE96,NA()) ->  | AN96: =Y17 -> 6 | AO96: =IF(AP96="",AN96,AP96) -> 6 | AP96: =IF(Y19="","",Y19) -> 
N97: Reference value in upper figure | AC97: TRUE | AD97: 3 | AE97: =IF(N30="","",N30) -> 70 | AF97: =1.5*$AK$81 -> 0.1425 | AG97: 3.1425 | AH97: =IF(AND(AE97<>"",$AC$96),AD97+AF97,NA()) ->  | AI97: =IF($AC$96,AE97,"") ->  | AJ97: =IF(AND(AE97<>"",$AC$96),O29,NA()) ->  | AK97: =IF($AC$96,IF(AL97="",AJ97,AL97),NA()) ->  | AL97: =IF(O31="","",O31) ->  | AM97: =IF(AND($AC$96,$AC$97),AE97,NA()) ->  | AN97: =Y23 -> 4 | AO97: =IF(AP97="",AN97,AP97) -> 4 | AP97: =IF(Y25="","",Y25) -> 
N98: Disp? | O98: TRUE | AD98: 4 | AE98: =IF(R30="","",R30) -> 67 | AF98: =1.5*$AK$81 -> 0.1425 | AG98: 4.1425 | AH98: =IF(AND(AE98<>"",$AC$96),AD98+AF98,NA()) ->  | AI98: =IF($AC$96,AE98,"") ->  | AJ98: =IF(AND(AE98<>"",$AC$96),S29,NA()) ->  | AK98: =IF($AC$96,IF(AL98="",AJ98,AL98),NA()) ->  | AL98: =IF(S31="","",S31) ->  | AM98: =IF(AND($AC$96,$AC$97),AE98,NA()) ->  | AN98: =Y29 -> 17 | AO98: =IF(AP98="",AN98,AP98) -> 17 | AP98: =IF(Y31="","",Y31) -> 
N99: To display line and label
N100: =IF(O98,4.5,NA()) -> 4.5 | O100: =IF(O98,Y4,NA()) -> 60 | AC100: For figure of differences | AG100: 2nd series | AI100: 1st series | AK100: 1st - 2nd | AN100: For display
AD101: Series? | AG101: =IF(AD106,IF(AD102,IF(E8="","",E8),IF(AD103,IF(I8="","",I8),IF(M8="","",M8))),"") -> Pretest | AI101: =IF(AD106,IF(AD105,IF(Q8="","",Q8),IF(AD104,IF(M8="","",M8),IF(I8="","",I8))),"") -> Posttest | AK101: =IF(AD106,AI101&" - "&AG101,"") -> Posttest - Pretest | AN101: x | AO101: diff
AD102: TRUE | AE102: =IF(AD102,1,0) -> 1 | AG102: =IF($AD$106,IF(AD102,IF(F12="","",F12),IF(AD103,IF(J12="","",J12),IF(N12="","",N12))),"") -> 76 | AI102: =IF($AD$106,IF(AD105,IF(R12="","",R12),IF(AD104,IF(N12="","",N12),IF(J12="","",J12))),"") -> 45 | AK102: =IF(seriesonetf,IF(AND(AG102<>"",AI102<>"",$AD$106),AI102-AG102,""),"") -> -31 | AN102: 1 | AO102: =IF(AK102="",NA(),AK102) -> -31
AD103: TRUE | AE103: =IF(AD103,1,0) -> 1 | AG103: =IF($AD$106,IF(AD102,IF(F18="","",F18),IF(AD103,IF(J18="","",J18),IF(N18="","",N18))),"") -> 87 | AI103: =IF($AD$106,IF(AD105,IF(R18="","",R18),IF(AD104,IF(N18="","",N18),IF(J18="","",J18))),"") -> 80 | AK103: =IF(seriestwotf,IF(AND(AG103<>"",AI103<>"",$AD$106),AI103-AG103,""),"") -> -7 | AN103: 2 | AO103: =IF(AK103="",NA(),AK103) -> -7
AD104: FALSE | AE104: =IF(AD104,1,0) -> 0 | AG104: =IF($AD$106,IF(AD102,IF(F24="","",F24),IF(AD103,IF(J24="","",J24),IF(N24="","",N24))),"") -> 74 | AI104: =IF($AD$106,IF(AD105,IF(R24="","",R24),IF(AD104,IF(N24="","",N24),IF(J24="","",J24))),"") -> 57 | AK104: =IF(seriesthreetf,IF(AND(AG104<>"",AI104<>"",$AD$106),AI104-AG104,""),"") ->  | AN104: 3 | AO104: =IF(AK104="",NA(),AK104) -> 
AD105: FALSE | AE105: =IF(AD105,1,0) -> 0 | AG105: =IF($AD$106,IF(AD102,IF(F30="","",F30),IF(AD103,IF(J30="","",J30),IF(N30="","",N30))),"") -> 92 | AI105: =IF($AD$106,IF(AD105,IF(R30="","",R30),IF(AD104,IF(N30="","",N30),IF(J30="","",J30))),"") -> 93 | AK105: =IF(seriesfourtf,IF(AND(AG105<>"",AI105<>"",$AD$106),AI105-AG105,""),"") ->  | AN105: 4 | AO105: =IF(AK105="",NA(),AK105) -> 
AD106: =IF(AE106=2,TRUE,FALSE) -> TRUE | AE106: =SUM(AE102:AE105) -> 2
